Workbook

Sheet TOD Coverpage
A5: Transit-Oriented Development Housing Program
A8: Round 4 Notice of Funding Availability
A10: Supplemental Application
A26: State of California
A27: Governor Gavin Newsom
A29: Lourdes Castro Ramirez, Secretary
A30: Business, Consumer Services and Housing Agency
A32: Gustavo Velasquez, Director
A33: Department of Housing and Community Development
A36: 2020 West El Camino Avenue, Suite 150
A37: Sacramento, CA 95833
A38: Phone (916) 263-2771
A39: Email tod@hcd.ca.gov
A41: April 30, 2020 Notice of Funding Availability
A43: Rev. | B43: 2020-05-29

Sheet Overview
A1: =CONCATENATE(Overview!E9," Overview") -> Overview | AJ1: ='TOD Coverpage'!B43 -> 2020-05-29 | AN1: Yet to be formed L.P.
A2: When you open this file, you may see a yellow banner at the top with a button that says "Enable Content" or "Enable Editing". It is essential that you click this box so that the macros are enabled. Enabling macros is necessary for full workbook functionality. Macros may not work with Apple Mac Microsoft Excel, but users have stated Mac MS Excel version 16.16.11 (Office 365) works. | AM2: Rental Housing Development loan | AN2: Yet to be formed LLC
A3: Orange shaded areas are documents that must be submitted to HCD and/or uploaded to FAAST. Click here for FAAST upload instructions and user manual. | AM3: Infrastructure Project grant | AN3: Limited Partnership
A4: Eligible Project §103 | AM4: Rental Housing Development loan & Infrastructure Project grant | AN4: Limited Liability Company
A5: Are you applying for Rental Housing Development (RHD) loan, Infrastructure Project (IP) grant or both? §103 | AN5: Non-profit Corporation
A6: Has Project previously applied for or received funding from the TOD program or any other HCD program? If other HCD funds have been received, provide the funding sources, HCD Contract Number, award date and award amount. If Project will apply for other HCD funding, provide all the other HCD funding sources. | AN6: Non-profit Public Benefit Corporation
AN7: For-profit Corporation
A8: Housing Development (HD) type (rental, homeowner, both) | AN8: Federally Recognized Indian Tribe
A9: HD Name | X9: County | AE9: Geographic Region | AJ9: =IF(AA9="","",VLOOKUP(Overview!AA9,Dropdowns!E1:F58,2)) ->  | AN9: Public Agency
A10: Address | X10: City | AG10: Zip | AN10: Joint Powers Authority
A11: Census Tract #1 | H11: APN #1 | N11: Census Tract #2 | U11: APN #2 | AA11: Census Tract 3 | AG11: APN #3 | AN11: Individual(s)
A12: Description of the HD | AN12: Other
A14: Explain any specific development issues (demolition, relocation, environmental, historical, topography, etc.) at the HD site.
A16: Total Land Area in Acres | T16: Commercial Square Feet
A17: Infrastructure Project §103(c)
A18: Name | X18: County | AE18: Geographic Region | AJ18: =IF(AA18="","",VLOOKUP(Overview!AA18,Dropdowns!E1:F58,2)) -> 
A19: Address | X19: City | AG19: Zip
A20: Census Tract #1 | H20: APN #1 | N20: Census Tract #2 | U20: APN #2 | AA20: Census Tract #3 | AG20: APN #3
A21: Summarize the scope of work for the IP. Describe the distinct infrastructure improvements relating to utilities, surface improvements, landscape and amenities, environmental mitigation and remediation, replacement transit, residential parking and/or transit, etc.
A23: Explain any specific development issues (demolition, relocation, environmental, historical, topography, etc.) at the IP site.
A25: Eligible Applicant §104
A26: Applicant #1
A27: Entity Name | W27: Applicant Type
A28: Address | V28: City | AE28: State | AH28: Zip
A29: Auth Rep | M29: Title | U29: Auth. Rep. Email | AG29: Phone
A30: Contact | M30: Title | U30: Email | AF30: Phone
A31: Address | V31: City | AE31: State | AH31: Zip
A32: File Name | F32: App1 Cert & Legal Disclosure | N32: Reference 'Certifications & Legal Status' Worksheet. | AE32: Uploaded to FAAST?
A33: File Name | F33: App1 Resolution | N33: Reference TOD webpage for Resolution Document. | AE33: Uploaded to FAAST?
A34: File Name | F34: App1 OrgDoc1, OrgDoc2, etc… | N34: Reference Sponsor Org Docs worksheet. | AE34: Uploaded to FAAST?
A35: File Name | F35: App1 OrgChart | N35: Sponsor Organization Chart. | AE35: Uploaded to FAAST?
A36: File Name | F36: App1 Signature Block | N36: Signature Block - upload in Microsoft Word Document. | AE36: Uploaded to FAAST?
A37: File Name | F37: App1 STD 204 Payee Data Record | N37: Reference Payee Data Record STD-204 and Taxpayer Identification Number (TIN) Documents on the TOD webpage. | AE37: Uploaded to FAAST?
A38: File Name | F38: App1 FISCAL TIN Form | N38: Taxpayer Identification Number (TIN) (public entities ONLY). | AE38: Uploaded to FAAST?
A39: File Name | F39: App1 Cert of Good Standing | N39: Certificate of Good Standing must be dated 30 days or less from the application due date. | AE39: Uploaded to FAAST?
A40: File Name | F40: App1 Tax-Exempt Status | N40: Evidence of tax-exempt status from IRS and evidence of tax-exempt status from FTB for Corporations. | AE40: Uploaded to FAAST?
A41: Applicant #2
A42: Entity Name | W42: Applicant Type
A43: Address | V43: City | AE43: State | AH43: Zip
A44: Auth Rep | M44: Title | U44: Auth. Rep. Email | AG44: Phone
A45: Contact | M45: Title | U45: Email | AF45: Phone
A46: Address | V46: City | AE46: State | AH46: Zip
A47: File Name | F47: App2 Cert & Legal Disclosure | N47: Reference 'Certifications & Legal Status' Worksheet. | AE47: Uploaded to FAAST?
A48: File Name | F48: App2 Resolution | N48: Reference TOD webpage for Resolution Document. | AE48: Uploaded to FAAST?
A49: File Name | F49: App2 OrgDoc1, OrgDoc2, etc… | N49: Reference Sponsor Org Docs worksheet. | AE49: Uploaded to FAAST?
A50: File Name | F50: App2 OrgChart | N50: Sponsor Organization Chart. | AE50: Uploaded to FAAST?
A51: File Name | F51: App2 Signature Block | N51: Signature Block - upload in Microsoft Word Document. | AE51: Uploaded to FAAST?
A52: File Name | F52: App2 STD 204 Payee Data Record | N52: Reference Payee Data Record STD-204 on the TOD webpage. | AE52: Uploaded to FAAST?
A53: File Name | F53: App2 FISCAL TIN Form | N53: Taxpayer Identification Number (TIN) (public entities only). TOD webpage. | AE53: Uploaded to FAAST?
A54: File Name | F54: App2 Cert of Good Standing | N54: Certificate of Good Standing must be dated 30 days or less from the application due date. | AE54: Uploaded to FAAST?
A55: File Name | F55: App2 Tax-Exempt Status | N55: Evidence of tax-exempt status from IRS and evidence of tax-exempt status from FTB for Corporations. | AE55: Uploaded to FAAST?
A56: Development Team Contacts
A57: Owner/Borrower Entity
A58: Legal Name | AA58: Org. Type
A59: Address | V59: City | AE59: State | AH59: Zip
A60: Auth. Rep | M60: Title | U60: Auth. Rep. Email | AG60: Phone
A61: Contact | M61: Title | U61: Email | AF61: Phone
A62: Address | V62: City | AE62: State | AH62: Zip
A63: File Name | F63: Bwr Cert & Legal Disclosure | N63: Reference 'Certifications & Legal Status' Worksheet. | AE63: Uploaded to FAAST?
A64: File Name | F64: Bwr Resolution | N64: Reference TOD webpage for Resolution Document. | AE64: Uploaded to FAAST?
A65: File Name | F65: Bwr OrgDoc1, OrgDoc2, etc… | N65: Reference Sponsor Org Docs worksheet. | AE65: Uploaded to FAAST?
A66: File Name | F66: Bwr OrgChart | N66: Must demonstrate Sponsor control of the Borrower consistent with UMR §8313.2 | AE66: Uploaded to FAAST?
A67: File Name | F67: Bwr Signature Block | N67: Signature Block - upload in Microsoft Word Document. | AE67: Uploaded to FAAST?
A68: File Name | F68: Bwr STD 204 Payee Data Record | N68: Reference Payee Data Record STD-204 on the TOD webpage. | AE68: Uploaded to FAAST?
A69: File Name | F69: Bwr FISCAL TIN Form | N69: Taxpayer Identification Number (TIN) (public entities only). TOD webpage. | AE69: Uploaded to FAAST?
A70: File Name | F70: Bwr Tax-Exempt Status | N70: Evidence of tax-exempt status from IRS and evidence of tax-exempt status from FTB for Corporations. | AE70: Uploaded to FAAST?
A71: Managing General Partner
A72: Legal Name | AA72: Org. Type
A73: Address | V73: City | AE73: State | AH73: Zip
A74: Auth. Rep | M74: Title | U74: Auth. Rep. Email | AG74: Phone
A75: Contact | M75: Title | U75: Email | AF75: Phone
A76: Address | V76: City | AE76: State | AH76: Zip
A77: File Name | F77: MGP Cert & Legal Disclosure | N77: Reference 'Certifications & Legal Status' Worksheet. | AE77: Uploaded to FAAST?
A78: File Name | F78: MGP Resolution | N78: Reference TOD webpage for Resolution Document. | AE78: Uploaded to FAAST?
A79: File Name | F79: MGP OrgDoc1, OrgDoc2, etc… | N79: Reference Sponsor Org Docs worksheet. | AE79: Uploaded to FAAST?
A80: File Name | F80: MGP OrgChart | N80: Must depict organizational structure of the entities in relation to Sponsor. | AE80: Uploaded to FAAST?
A81: File Name | F81: MGP Signature Block | N81: Signature Block - upload in Microsoft Word Document. | AE81: Uploaded to FAAST?
A82: File Name | F82: MGP STD 204 Payee Data Record | N82: Reference Payee Data Record STD-204 on the TOD webpage. | AE82: Uploaded to FAAST?
A83: File Name | F83: MGP Tax-Exempt Status | N83: Evidence of tax-exempt status from IRS and evidence of tax-exempt status from FTB for Corporations. | AE83: Uploaded to FAAST?
A84: Administrative General Partner #1
A85: Legal Name | AA85: Org. Type
A86: Address | V86: City | AE86: State | AH86: Zip
A87: Auth. Rep | M87: Title | U87: Auth. Rep. Email | AG87: Phone
A88: Contact | M88: Title | U88: Email | AF88: Phone
A89: Address | V89: City | AE89: State | AH89: Zip
A90: File Name | F90: AGP1 Cert & Legal Disclosure | N90: Reference 'Certifications & Legal Status' Worksheet. | AE90: Uploaded to FAAST?
A91: File Name | F91: AGP1 Resolution | N91: Reference TOD webpage for Resolution Document. | AE91: Uploaded to FAAST?
A92: File Name | F92: AGP1 OrgDoc1, OrgDoc2, etc… | N92: Reference Sponsor Org Docs worksheet. | AE92: Uploaded to FAAST?
A93: File Name | F93: AGP1 OrgChart | N93: Must depict organizational structure of the entities in relation to Sponsor. | AE93: Uploaded to FAAST?
A94: File Name | F94: AGP1 Signature Block | N94: Signature Block - upload in Microsoft Word Document. | AE94: Uploaded to FAAST?
A95: File Name | F95: AGP1 STD 204 Payee Data Record | N95: Reference Payee Data Record STD-204 on the TOD webpage. | AE95: Uploaded to FAAST?
A96: File Name | F96: AGP1 Tax-Exempt Status | N96: Evidence of tax-exempt status from IRS and evidence of tax-exempt status from FTB for Corporations. | AE96: Uploaded to FAAST?
A97: Administrative General Partner #2
A98: Legal Name | AA98: Org. Type
A99: Address | V99: City | AE99: State | AH99: Zip
A100: Auth. Rep | M100: Title | U100: Auth. Rep. Email | AG100: Phone
A101: Contact | M101: Title | U101: Email | AF101: Phone
A102: Address | V102: City | AE102: State | AH102: Zip
A103: File Name | F103: AGP2 Cert & Legal Disclosure | N103: Reference 'Certifications & Legal Status' Worksheet. | AE103: Uploaded to FAAST?
A104: File Name | F104: AGP2 Resolution | N104: Reference TOD webpage for Resolution Document. | AE104: Uploaded to FAAST?
A105: File Name | F105: AGP2 OrgDoc1, OrgDoc2, etc… | N105: Reference Sponsor Org Docs worksheet. | AE105: Uploaded to FAAST?
A106: File Name | F106: AGP2 OrgChart | N106: Must depict organizational structure of the entities in relation to Sponsor. | AE106: Uploaded to FAAST?
A107: File Name | F107: AGP2 Signature Block | N107: Signature Block - upload in Microsoft Word Document. | AE107: Uploaded to FAAST?
A108: File Name | F108: AGP2 STD 204 Payee Data Record | N108: Reference Payee Data Record STD-204 on the TOD webpage. | AE108: Uploaded to FAAST?
A109: File Name | F109: AGP2 Tax-Exempt Status | N109: Evidence of tax-exempt status from IRS and evidence of tax-exempt status from FTB for Corporations. | AE109: Uploaded to FAAST?
A110: Property Management Agent
A111: Legal Name | P111: Contact | AB111: Email
A112: Phone | H112: Address | V112: City | AE112: State | AH112: Zip
A113: Financial Consultant
A114: Legal Name | P114: Contact | AB114: Email
A115: Phone | H115: Address | V115: City | AE115: State | AH115: Zip
A116: Primary Service Provider
A117: Legal Name | P117: Contact | AB117: Email
A118: Phone | H118: Address | V118: City | AE118: State | AH118: Zip
A119: Borrower Legal Counsel
A120: Legal Name | P120: Contact | AB120: Email
A121: Phone | H121: Address | V121: City | AE121: State | AH121: Zip
A122: General Contractor
A123: Legal Name | P123: Contact | AB123: Email
A124: Phone | H124: Address | V124: City | AE124: State | AH124: Zip
A125: Architect
A126: Legal Name | P126: Contact | AB126: Email
A127: Phone | H127: Address | V127: City | AE127: State | AH127: Zip
A128: Development Funding Source
A129: Legal Name | P129: Contact | AB129: Email
A130: Phone | H130: Address | V130: City | AE130: State | AH130: Zip
A131: Development Funding Source
A132: Legal Name | P132: Contact | AB132: Email
A133: Phone | H133: Address | V133: City | AE133: State | AH133: Zip
A134: Development Funding Source
A135: Legal Name | P135: Contact | AB135: Email
A136: Phone | H136: Address | V136: City | AE136: State | AH136: Zip
A137: Development Funding Source
A138: Legal Name | P138: Contact | AB138: Email
A139: Phone | H139: Address | V139: City | AE139: State | AH139: Zip
A140: Development Funding Source
A141: Legal Name | P141: Contact | AB141: Email
A142: Phone | H142: Address | V142: City | AE142: State | AH142: Zip
A143: Rent/Operating Subsidy Source
A144: Legal Name | P144: Contact | AB144: Email
A145: Phone | H145: Address | V145: City | AE145: State | AH145: Zip
A146: Rent/Operating Subsidy Source
A147: Legal Name | P147: Contact | AB147: Email
A148: Phone | H148: Address | V148: City | AE148: State | AH148: Zip

Sheet Dropdowns (hidden)
A1: Non-profit Developer | B1: Local General Plan | C1: Opportunity Zone | D1: City | E1: Alameda | F1: Northern | G1: single story | H1: Interest Only | I1: no | J1: a contiguous area located within an Urbanized Area (i) that has been previously developed, or where at least 75% of the perimeter of the area adjoins parcels that are developed with Urban Uses, and (ii) in which at least one development application has been approved or is pending approval for a residential or mixed-use residential project that meets the definition and criteria in this section for a QIP. | K1: Fully amortized
A2: For-profit Developer | B2: Specific Plan | C2: Eligible New Markets Tax Credit (NMTC) census tract | D2: County | E2: Alpine | F2: Northern | G2: town-house | H2: Deferred | I2: (A) A general plan, or general plan amendment, adopted per Gov. Code §65300 | J2: a residential or mixed-use residential project located within an Urbanized Area on a site that has been previously developed, or on a vacant site where at least 75% of the perimeter of the site adjoins parcels that are developed with urban uses. | K2: Amortized with call
B3: Zoning Ordinance | C3: A Neighborhood Revitalization Strategy Area (NRSA) | D3: City/County | E3: Amador | F3: Northern | G3: mid-rise buildings | H3: None | I3: (B) A sustainable communities strategy adopted pursuant to Gov. Code §65080 | J3: a contiguous area located within an Urbanized Area that meets either of the following criteria (A) The area contains sites included on the inventory of land suitable and available for residential development in the housing element of the applicable city or county general plan pursuant to paragraph (3) of subdivision (a) of §65583 of the Gov. Code, and at least 50% of the perimeter of the area shall adjoin parcels that are developed with urban uses. (B) The CIP for which funding is requested is necessary, as documented by an environmental review or some other adopted planning document, to make the area suitable and available for residential development, or to allow the area to accommodate housing for additional income levels, and the area otherwise meets the requirements for inclusion on the inventory of land suitable and available for residential development in the housing element of the applicable city or county general plan pursuant to paragraph (3) of subdivision (a) of §65583 of the Gov. Code. At least 50 % of the perimeter of the area shall adjoin parcels that are developed with Urban Uses. | K3: Residual receipts
B4: Community Plan | C4: Authorized Business Improvement District per the 1994 Property and Business Improvement District Law (Streets & Highways Code §36600 et seq.) | D4: Community Service District | E4: Butte | F4: Northern | G4: high-rise buildings | H4: Other | I4: (C) A specific plan adopted pursuant to Gov. Code §65450 | J4: a residential or mixed-use residential project located within an Urbanized Area on a site that has been previously developed, or on a vacant site where at least 50% of the perimeter of the site adjoins parcels that are developed with urban uses. | K4: Deferred
B5: Redevelopment Plan | D5: State | E5: Calaveras | F5: Northern | I5: (D) A workforce housing opportunity zone established pursuant to Gov. Code § 65620 | K5: Not yet known
B6: Transit Village Plan | D6: National | E6: Colusa | F6: Northern | I6: (E) A housing sustainability district established pursuant to Gov. Code §66201 | K6: None
B7: In an area regulated by, or included in, land use policies, other regional plans, development regulations or programs which promote transit-supportive residential and nonresidential uses as contemplated by §103(a)(2), which are in effect by the application due date, and transit area overlay zones. | D7: Private (full public access) | E7: Contra Costa | F7: Northern | K7: Interest only
E8: Del Norte | F8: Northern | K8: Fixed to float
E9: El Dorado | F9: Northern | K9: HCD-partial int. only
E10: Fresno | F10: Northern | K10: Other
E11: Glenn | F11: Northern
E12: Humboldt | F12: Northern
E13: Imperial | F13: Southern
E14: Inyo | F14: Northern
E15: Kern | F15: Southern
E16: Kings | F16: Northern
E17: Lake | F17: Northern
E18: Lassen | F18: Northern
E19: Los Angeles | F19: Southern
E20: Madera | F20: Northern
E21: Marin | F21: Northern
E22: Mariposa | F22: Northern
E23: Mendocino | F23: Northern
E24: Merced | F24: Northern
E25: Modoc | F25: Northern
E26: Mono | F26: Northern
E27: Monterey | F27: Northern
E28: Napa | F28: Northern
E29: Nevada | F29: Northern
E30: Orange | F30: Southern
E31: Placer | F31: Northern
E32: Plumas | F32: Northern
E33: Riverside | F33: Southern
E34: Sacramento | F34: Northern
E35: San Benito | F35: Northern
E36: San Bernardino | F36: Southern
E37: San Diego | F37: Southern
E38: San Francisco | F38: Northern
E39: San Joaquin | F39: Northern
E40: San Luis Obispo | F40: Southern
E41: San Mateo | F41: Northern
E42: Santa Barbara | F42: Southern
E43: Santa Clara | F43: Northern
E44: Santa Cruz | F44: Northern
E45: Shasta | F45: Northern
E46: Sierra | F46: Northern
E47: Siskiyou | F47: Northern
E48: Solano | F48: Northern
E49: Sonoma | F49: Northern
E50: Stanislaus | F50: Northern
E51: Sutter | F51: Northern
E52: Tehama | F52: Northern
E53: Trinity | F53: Northern
E54: Tulare | F54: Northern
E55: Tuolumne | F55: Northern
E56: Ventura | F56: Southern
E57: Yolo | F57: Northern
E58: Yuba | F58: Northern

Sheet RHD Loan Limits (hidden)
B1: 2020 Restricted
A2: County | B2: 0 | C2: 1 | D2: 2 | E2: 3 | F2: 4+
A3: ALAMEDA60% | B3: 150000 | C3: 150000 | D3: 150000 | E3: 150000 | F3: 150000 | H3: =ROUND(B3,0) -> 150000 | I3: =ROUND(C3,0) -> 150000 | J3: 150000 | K3: 150000 | L3: 150000 | N3: 150000 | O3: 150000 | P3: 150000 | Q3: 150000 | R3: 150000
A4: ALAMEDA55% | B4: 166565 | C4: 167574 | D4: 171175 | E4: 174488 | F4: 177369 | H4: =ROUND(B4,0) -> 166565 | I4: =ROUND(C4,0) -> 167574 | J4: =ROUND(D4,0) -> 171175 | K4: =ROUND(E4,0) -> 174488 | L4: =ROUND(F4,0) -> 177369 | N4: 166565 | O4: 167574 | P4: 171175 | Q4: 174488 | R4: 177369
A5: ALAMEDA50% | B5: 182987 | C5: 185292 | D5: 192350 | E5: 198976 | F5: 204594 | H5: 182987 | I5: 185292 | J5: 192350 | K5: 198976 | L5: 204594 | N5: 182987 | O5: 185292 | P5: 192350 | Q5: 198976 | R5: 204594
A6: ALAMEDA45% | B6: 199408 | C6: 202865 | D6: 213525 | E6: 223320 | F6: 231819 | H6: 199408 | I6: 202865 | J6: 213525 | K6: 223320 | L6: 231819 | N6: 199408 | O6: 202865 | P6: 213525 | Q6: 223320 | R6: 231819
A7: ALAMEDA40% | B7: 215830 | C7: 220439 | D7: 234556 | E7: 247808 | F7: 259044 | H7: 215830 | I7: 220439 | J7: 234556 | K7: 247808 | L7: 259044 | N7: 215830 | O7: 220439 | P7: 234556 | Q7: 247808 | R7: 259044
A8: ALAMEDA35% | B8: 232395 | C8: 238157 | D8: 255731 | E8: 272296 | F8: 286413 | H8: 232395 | I8: 238157 | J8: 255731 | K8: 272296 | L8: 286413 | N8: 232395 | O8: 238157 | P8: 255731 | Q8: 272296 | R8: 286413
A9: ALAMEDA30% | B9: 248816 | C9: 255731 | D9: 276906 | E9: 296640 | F9: 313638 | H9: 248816 | I9: 255731 | J9: 276906 | K9: 296640 | L9: 313638 | N9: 248816 | O9: 255731 | P9: 276906 | Q9: 296640 | R9: 313638
A10: ALAMEDA25% | B10: 265238 | C10: 273449 | D10: 298081 | E10: 321128 | F10: 340863 | H10: 265238 | I10: 273449 | J10: 298081 | K10: 321128 | L10: 340863 | N10: 265238 | O10: 273449 | P10: 298081 | Q10: 321128 | R10: 340863
A11: ALAMEDA20% | B11: 281659 | C11: 291022 | D11: 319256 | E11: 345616 | F11: 368088 | H11: 281659 | I11: 291022 | J11: 319256 | K11: 345616 | L11: 368088 | N11: 281659 | O11: 291022 | P11: 319256 | Q11: 345616 | R11: 368088
A12: ALAMEDA15% | B12: 298225 | C12: 308596 | D12: 340431 | E12: 369960 | F12: 395457 | H12: 298225 | I12: 308596 | J12: 340431 | K12: 369960 | L12: 395457 | N12: 298225 | O12: 308596 | P12: 340431 | Q12: 369960 | R12: 395457
A13: ALPINE60% | B13: 150000 | C13: 150000 | D13: 150000 | E13: 150000 | F13: 150000 | H13: 150000 | I13: 150000 | J13: 150000 | K13: 150000 | L13: 150000 | N13: 150000 | O13: 150000 | P13: 150000 | Q13: 150000 | R13: 150000
A14: ALPINE55% | B14: 160515 | C14: 161236 | D14: 163540 | E14: 165557 | F14: 167430 | H14: 160515 | I14: 161236 | J14: 163540 | K14: 165557 | L14: 167430 | N14: 160515 | O14: 161236 | P14: 163540 | Q14: 165557 | R14: 167430
A15: ALPINE50% | B15: 171031 | C15: 172471 | D15: 176937 | E15: 181258 | F15: 184859 | H15: 171031 | I15: 172471 | J15: 176937 | K15: 181258 | L15: 184859 | N15: 171031 | O15: 172471 | P15: 176937 | Q15: 181258 | R15: 184859
A16: ALPINE45% | B16: 181546 | C16: 183707 | D16: 190477 | E16: 196815 | F16: 202289 | H16: 181546 | I16: 183707 | J16: 190477 | K16: 196815 | L16: 202289 | N16: 181546 | O16: 183707 | P16: 190477 | Q16: 196815 | R16: 202289
A17: ALPINE40% | B17: 191918 | C17: 194943 | D17: 203874 | E17: 212372 | F17: 219575 | H17: 191918 | I17: 194943 | J17: 203874 | K17: 212372 | L17: 219575 | N17: 191918 | O17: 194943 | P17: 203874 | Q17: 212372 | R17: 219575
A18: ALPINE35% | B18: 202433 | C18: 206178 | D18: 217414 | E18: 227930 | F18: 237005 | H18: 202433 | I18: 206178 | J18: 217414 | K18: 227930 | L18: 237005 | N18: 202433 | O18: 206178 | P18: 217414 | Q18: 227930 | R18: 237005
A19: ALPINE30% | B19: 212949 | C19: 217414 | D19: 230955 | E19: 243487 | F19: 254434 | H19: 212949 | I19: 217414 | J19: 230955 | K19: 243487 | L19: 254434 | N19: 212949 | O19: 217414 | P19: 230955 | Q19: 243487 | R19: 254434
A20: ALPINE25% | B20: 223464 | C20: 228650 | D20: 244351 | E20: 259188 | F20: 271864 | H20: 223464 | I20: 228650 | J20: 244351 | K20: 259188 | L20: 271864 | N20: 223464 | O20: 228650 | P20: 244351 | Q20: 259188 | R20: 271864
A21: ALPINE20% | B21: 233980 | C21: 239886 | D21: 257891 | E21: 274745 | F21: 289150 | H21: 233980 | I21: 239886 | J21: 257891 | K21: 274745 | L21: 289150 | N21: 233980 | O21: 239886 | P21: 257891 | Q21: 274745 | R21: 289150
A22: ALPINE15% | B22: 244495 | C22: 251121 | D22: 271432 | E22: 290302 | F22: 306579 | H22: 244495 | I22: 251121 | J22: 271432 | K22: 290302 | L22: 306579 | N22: 244495 | O22: 251121 | P22: 271432 | Q22: 290302 | R22: 306579
A23: AMADOR60% | B23: 150000 | C23: 150000 | D23: 150000 | E23: 150000 | F23: 150000 | H23: 150000 | I23: 150000 | J23: 150000 | K23: 150000 | L23: 150000 | N23: 150000 | O23: 150000 | P23: 150000 | Q23: 150000 | R23: 150000
A24: AMADOR55% | B24: 159939 | C24: 160660 | D24: 162820 | E24: 164693 | F24: 166421 | H24: 159939 | I24: 160660 | J24: 162820 | K24: 164693 | L24: 166421 | N24: 159939 | O24: 160660 | P24: 162820 | Q24: 164693 | R24: 166421
A25: AMADOR50% | B25: 169879 | C25: 171175 | D25: 175496 | E25: 179386 | F25: 182843 | H25: 169879 | I25: 171175 | J25: 175496 | K25: 179386 | L25: 182843 | N25: 169879 | O25: 171175 | P25: 175496 | Q25: 179386 | R25: 182843
A26: AMADOR45% | B26: 179818 | C26: 181834 | D26: 188317 | E26: 194223 | F26: 199264 | H26: 179818 | I26: 181834 | J26: 188317 | K26: 194223 | L26: 199264 | N26: 179818 | O26: 181834 | P26: 188317 | Q26: 194223 | R26: 199264
A27: AMADOR40% | B27: 189613 | C27: 192494 | D27: 200993 | E27: 208915 | F27: 215686 | H27: 189613 | I27: 192494 | J27: 200993 | K27: 208915 | L27: 215686 | N27: 189613 | O27: 192494 | P27: 200993 | Q27: 208915 | R27: 215686
A28: AMADOR35% | B28: 199552 | C28: 203153 | D28: 213813 | E28: 223608 | F28: 232251 | H28: 199552 | I28: 203153 | J28: 213813 | K28: 223608 | L28: 232251 | N28: 199552 | O28: 203153 | P28: 213813 | Q28: 223608 | R28: 232251
A29: AMADOR30% | B29: 209492 | C29: 213813 | D29: 226633 | E29: 238445 | F29: 248672 | H29: 209492 | I29: 213813 | J29: 226633 | K29: 238445 | L29: 248672 | N29: 209492 | O29: 213813 | P29: 226633 | Q29: 238445 | R29: 248672
A30: AMADOR25% | B30: 219431 | C30: 224328 | D30: 239309 | E30: 253138 | F30: 265094 | H30: 219431 | I30: 224328 | J30: 239309 | K30: 253138 | L30: 265094 | N30: 219431 | O30: 224328 | P30: 239309 | Q30: 253138 | R30: 265094
A31: AMADOR20% | B31: 229370 | C31: 234988 | D31: 252130 | E31: 267831 | F31: 281515 | H31: 229370 | I31: 234988 | J31: 252130 | K31: 267831 | L31: 281515 | N31: 229370 | O31: 234988 | P31: 252130 | Q31: 267831 | R31: 281515
A32: AMADOR15% | B32: 239309 | C32: 245647 | D32: 264950 | E32: 282668 | F32: 297937 | H32: 239309 | I32: 245647 | J32: 264950 | K32: 282668 | L32: 297937 | N32: 239309 | O32: 245647 | P32: 264950 | Q32: 282668 | R32: 297937
A33: BUTTE60% | B33: 150000 | C33: 150000 | D33: 150000 | E33: 150000 | F33: 150000 | H33: 150000 | I33: 150000 | J33: 150000 | K33: 150000 | L33: 150000 | N33: 150000 | O33: 150000 | P33: 150000 | Q33: 150000 | R33: 150000
A34: BUTTE55% | B34: 158931 | C34: 159507 | D34: 161524 | E34: 163252 | F34: 164837 | H34: 158931 | I34: 159507 | J34: 161524 | K34: 163252 | L34: 164837 | N34: 158931 | O34: 159507 | P34: 161524 | Q34: 163252 | R34: 164837
A35: BUTTE50% | B35: 167862 | C35: 169014 | D35: 172904 | E35: 176505 | F35: 179530 | H35: 167862 | I35: 169014 | J35: 172904 | K35: 176505 | L35: 179530 | N35: 167862 | O35: 169014 | P35: 172904 | Q35: 176505 | R35: 179530
A36: BUTTE45% | B36: 176793 | C36: 178665 | D36: 184427 | E36: 189757 | F36: 194367 | H36: 176793 | I36: 178665 | J36: 184427 | K36: 189757 | L36: 194367 | N36: 176793 | O36: 178665 | P36: 184427 | Q36: 189757 | R36: 194367
A37: BUTTE40% | B37: 185580 | C37: 188173 | D37: 195807 | E37: 203009 | F37: 209059 | H37: 185580 | I37: 188173 | J37: 195807 | K37: 203009 | L37: 209059 | N37: 185580 | O37: 188173 | P37: 195807 | Q37: 203009 | R37: 209059
A38: BUTTE35% | B38: 194511 | C38: 197680 | D38: 207331 | E38: 216262 | F38: 223896 | H38: 194511 | I38: 197680 | J38: 207331 | K38: 216262 | L38: 223896 | N38: 194511 | O38: 197680 | P38: 207331 | Q38: 216262 | R38: 223896
A39: BUTTE30% | B39: 203442 | C39: 207331 | D39: 218855 | E39: 229514 | F39: 238733 | H39: 203442 | I39: 207331 | J39: 218855 | K39: 229514 | L39: 238733 | N39: 203442 | O39: 207331 | P39: 218855 | Q39: 229514 | R39: 238733
A40: BUTTE25% | B40: 212372 | C40: 216838 | D40: 230234 | E40: 242766 | F40: 253426 | H40: 212372 | I40: 216838 | J40: 230234 | K40: 242766 | L40: 253426 | N40: 212372 | O40: 216838 | P40: 230234 | Q40: 242766 | R40: 253426
A41: BUTTE20% | B41: 221303 | C41: 226345 | D41: 241758 | E41: 256019 | F41: 268263 | H41: 221303 | I41: 226345 | J41: 241758 | K41: 256019 | L41: 268263 | N41: 221303 | O41: 226345 | P41: 241758 | Q41: 256019 | R41: 268263
A42: BUTTE15% | B42: 230234 | C42: 235996 | D42: 253282 | E42: 269271 | F42: 283100 | H42: 230234 | I42: 235996 | J42: 253282 | K42: 269271 | L42: 283100 | N42: 230234 | O42: 235996 | P42: 253282 | Q42: 269271 | R42: 283100
A43: CALAVERAS60% | B43: 150000 | C43: 150000 | D43: 150000 | E43: 150000 | F43: 150000 | H43: 150000 | I43: 150000 | J43: 150000 | K43: 150000 | L43: 150000 | N43: 150000 | O43: 150000 | P43: 150000 | Q43: 150000 | R43: 150000
A44: CALAVERAS55% | B44: 160083 | C44: 160948 | D44: 163108 | E44: 164981 | F44: 166854 | H44: 160083 | I44: 160948 | J44: 163108 | K44: 164981 | L44: 166854 | N44: 160083 | O44: 160948 | P44: 163108 | Q44: 164981 | R44: 166854
A45: CALAVERAS50% | B45: 170311 | C45: 171751 | D45: 176073 | E45: 180106 | F45: 183563 | H45: 170311 | I45: 171751 | J45: 176073 | K45: 180106 | L45: 183563 | N45: 170311 | O45: 171751 | P45: 176073 | Q45: 180106 | R45: 183563
A46: CALAVERAS45% | B46: 180394 | C46: 182699 | D46: 189181 | E46: 195087 | F46: 200417 | H46: 180394 | I46: 182699 | J46: 189181 | K46: 195087 | L46: 200417 | N46: 180394 | O46: 182699 | P46: 189181 | Q46: 195087 | R46: 200417
A47: CALAVERAS40% | B47: 190477 | C47: 193502 | D47: 202145 | E47: 210212 | F47: 217126 | H47: 190477 | I47: 193502 | J47: 202145 | K47: 210212 | L47: 217126 | N47: 190477 | O47: 193502 | P47: 202145 | Q47: 210212 | R47: 217126
A48: CALAVERAS35% | B48: 200705 | C48: 204306 | D48: 215253 | E48: 225337 | F48: 233980 | H48: 200705 | I48: 204306 | J48: 215253 | K48: 225337 | L48: 233980 | N48: 200705 | O48: 204306 | P48: 215253 | Q48: 225337 | R48: 233980
A49: CALAVERAS30% | B49: 210788 | C49: 215253 | D49: 228218 | E49: 240318 | F49: 250833 | H49: 210788 | I49: 215253 | J49: 228218 | K49: 240318 | L49: 250833 | N49: 210788 | O49: 215253 | P49: 228218 | Q49: 240318 | R49: 250833
A50: CALAVERAS25% | B50: 221015 | C50: 226057 | D50: 241326 | E50: 255443 | F50: 267543 | H50: 221015 | I50: 226057 | J50: 241326 | K50: 255443 | L50: 267543 | N50: 221015 | O50: 226057 | P50: 241326 | Q50: 255443 | R50: 267543
A51: CALAVERAS20% | B51: 231099 | C51: 237005 | D51: 254290 | E51: 270424 | F51: 284396 | H51: 231099 | I51: 237005 | J51: 254290 | K51: 270424 | L51: 284396 | N51: 231099 | O51: 237005 | P51: 254290 | Q51: 270424 | R51: 284396
A52: CALAVERAS15% | B52: 241182 | C52: 247808 | D52: 267399 | E52: 285549 | F52: 301250 | H52: 241182 | I52: 247808 | J52: 267399 | K52: 285549 | L52: 301250 | N52: 241182 | O52: 247808 | P52: 267399 | Q52: 285549 | R52: 301250
A53: COLUSA60% | B53: 150000 | C53: 150000 | D53: 150000 | E53: 150000 | F53: 150000 | H53: 150000 | I53: 150000 | J53: 150000 | K53: 150000 | L53: 150000 | N53: 150000 | O53: 150000 | P53: 150000 | Q53: 150000 | R53: 150000
A54: COLUSA55% | B54: 158931 | C54: 159507 | D54: 161380 | E54: 163108 | F54: 164549 | H54: 158931 | I54: 159507 | J54: 161380 | K54: 163108 | L54: 164549 | N54: 158931 | O54: 159507 | P54: 161380 | Q54: 163108 | R54: 164549
A55: COLUSA50% | B55: 167718 | C55: 168870 | D55: 172759 | E55: 176217 | F55: 179242 | H55: 167718 | I55: 168870 | J55: 172759 | K55: 176217 | L55: 179242 | N55: 167718 | O55: 168870 | P55: 172759 | Q55: 176217 | R55: 179242
A56: COLUSA45% | B56: 176505 | C56: 178377 | D56: 184139 | E56: 189325 | F56: 193790 | H56: 176505 | I56: 178377 | J56: 184139 | K56: 189325 | L56: 193790 | N56: 176505 | O56: 178377 | P56: 184139 | Q56: 189325 | R56: 193790
A57: COLUSA40% | B57: 185292 | C57: 187740 | D57: 195375 | E57: 202289 | F57: 208339 | H57: 185292 | I57: 187740 | J57: 195375 | K57: 202289 | L57: 208339 | N57: 185292 | O57: 187740 | P57: 195375 | Q57: 202289 | R57: 208339
A58: COLUSA35% | B58: 194223 | C58: 197248 | D58: 206755 | E58: 215397 | F58: 223032 | H58: 194223 | I58: 197248 | J58: 206755 | K58: 215397 | L58: 223032 | N58: 194223 | O58: 197248 | P58: 206755 | Q58: 215397 | R58: 223032
A59: COLUSA30% | B59: 203009 | C59: 206755 | D59: 218134 | E59: 228506 | F59: 237581 | H59: 203009 | I59: 206755 | J59: 218134 | K59: 228506 | L59: 237581 | N59: 203009 | O59: 206755 | P59: 218134 | Q59: 228506 | R59: 237581
A60: COLUSA25% | B60: 211796 | C60: 216118 | D60: 229514 | E60: 241614 | F60: 252274 | H60: 211796 | I60: 216118 | J60: 229514 | K60: 241614 | L60: 252274 | N60: 211796 | O60: 216118 | P60: 229514 | Q60: 241614 | R60: 252274
A61: COLUSA20% | B61: 220583 | C61: 225625 | D61: 240750 | E61: 254722 | F61: 266822 | H61: 220583 | I61: 225625 | J61: 240750 | K61: 254722 | L61: 266822 | N61: 220583 | O61: 225625 | P61: 240750 | Q61: 254722 | R61: 266822
A62: COLUSA15% | B62: 229514 | C62: 235132 | D62: 252130 | E62: 267831 | F62: 281371 | H62: 229514 | I62: 235132 | J62: 252130 | K62: 267831 | L62: 281371 | N62: 229514 | O62: 235132 | P62: 252130 | Q62: 267831 | R62: 281371
A63: CONTRA COSTA60% | B63: 150000 | C63: 150000 | D63: 150000 | E63: 150000 | F63: 150000 | H63: 150000 | I63: 150000 | J63: 150000 | K63: 150000 | L63: 150000 | N63: 150000 | O63: 150000 | P63: 150000 | Q63: 150000 | R63: 150000
A64: CONTRA COSTA55% | B64: 166565 | C64: 167574 | D64: 171175 | E64: 174488 | F64: 177369 | H64: 166565 | I64: 167574 | J64: 171175 | K64: 174488 | L64: 177369 | N64: 166565 | O64: 167574 | P64: 171175 | Q64: 174488 | R64: 177369
A65: CONTRA COSTA50% | B65: 182987 | C65: 185292 | D65: 192350 | E65: 198976 | F65: 204594 | H65: 182987 | I65: 185292 | J65: 192350 | K65: 198976 | L65: 204594 | N65: 182987 | O65: 185292 | P65: 192350 | Q65: 198976 | R65: 204594
A66: CONTRA COSTA45% | B66: 199408 | C66: 202865 | D66: 213525 | E66: 223320 | F66: 231819 | H66: 199408 | I66: 202865 | J66: 213525 | K66: 223320 | L66: 231819 | N66: 199408 | O66: 202865 | P66: 213525 | Q66: 223320 | R66: 231819
A67: CONTRA COSTA40% | B67: 215830 | C67: 220439 | D67: 234556 | E67: 247808 | F67: 259044 | H67: 215830 | I67: 220439 | J67: 234556 | K67: 247808 | L67: 259044 | N67: 215830 | O67: 220439 | P67: 234556 | Q67: 247808 | R67: 259044
A68: CONTRA COSTA35% | B68: 232395 | C68: 238157 | D68: 255731 | E68: 272296 | F68: 286413 | H68: =ROUND(B68,0) -> 232395 | I68: =ROUND(C68,0) -> 238157 | J68: =ROUND(D68,0) -> 255731 | K68: =ROUND(E68,0) -> 272296 | L68: =ROUND(F68,0) -> 286413 | N68: 232395 | O68: 238157 | P68: 255731 | Q68: 272296 | R68: 286413
A69: CONTRA COSTA30% | B69: 248816 | C69: 255731 | D69: 276906 | E69: 296640 | F69: 313638 | H69: 248816 | I69: 255731 | J69: 276906 | K69: 296640 | L69: 313638 | N69: 248816 | O69: 255731 | P69: 276906 | Q69: 296640 | R69: 313638
A70: CONTRA COSTA25% | B70: 265238 | C70: 273449 | D70: 298081 | E70: 321128 | F70: 340863 | H70: 265238 | I70: 273449 | J70: 298081 | K70: 321128 | L70: 340863 | N70: 265238 | O70: 273449 | P70: 298081 | Q70: 321128 | R70: 340863
A71: CONTRA COSTA20% | B71: 281659 | C71: 291022 | D71: 319256 | E71: 345616 | F71: 368088 | H71: 281659 | I71: 291022 | J71: 319256 | K71: 345616 | L71: 368088 | N71: 281659 | O71: 291022 | P71: 319256 | Q71: 345616 | R71: 368088
A72: CONTRA COSTA15% | B72: 298225 | C72: 308596 | D72: 340431 | E72: 369960 | F72: 395457 | H72: 298225 | I72: 308596 | J72: 340431 | K72: 369960 | L72: 395457 | N72: 298225 | O72: 308596 | P72: 340431 | Q72: 369960 | R72: 395457
A73: DEL NORTE60% | B73: 150000 | C73: 150000 | D73: 150000 | E73: 150000 | F73: 150000 | H73: 150000 | I73: 150000 | J73: 150000 | K73: 150000 | L73: 150000 | N73: 150000 | O73: 150000 | P73: 150000 | Q73: 150000 | R73: 150000
A74: DEL NORTE55% | B74: 158931 | C74: 159507 | D74: 161380 | E74: 163108 | F74: 164549 | H74: 158931 | I74: 159507 | J74: 161380 | K74: 163108 | L74: 164549 | N74: 158931 | O74: 159507 | P74: 161380 | Q74: 163108 | R74: 164549
A75: DEL NORTE50% | B75: 167718 | C75: 168870 | D75: 172759 | E75: 176217 | F75: 179242 | H75: 167718 | I75: 168870 | J75: 172759 | K75: 176217 | L75: 179242 | N75: 167718 | O75: 168870 | P75: 172759 | Q75: 176217 | R75: 179242
A76: DEL NORTE45% | B76: 176505 | C76: 178377 | D76: 184139 | E76: 189325 | F76: 193790 | H76: 176505 | I76: 178377 | J76: 184139 | K76: 189325 | L76: 193790 | N76: 176505 | O76: 178377 | P76: 184139 | Q76: 189325 | R76: 193790
A77: DEL NORTE40% | B77: 185292 | C77: 187740 | D77: 195375 | E77: 202289 | F77: 208339 | H77: 185292 | I77: 187740 | J77: 195375 | K77: 202289 | L77: 208339 | N77: 185292 | O77: 187740 | P77: 195375 | Q77: 202289 | R77: 208339
A78: DEL NORTE35% | B78: 194223 | C78: 197248 | D78: 206755 | E78: 215397 | F78: 223032 | H78: 194223 | I78: 197248 | J78: 206755 | K78: 215397 | L78: 223032 | N78: 194223 | O78: 197248 | P78: 206755 | Q78: 215397 | R78: 223032
A79: DEL NORTE30% | B79: 203009 | C79: 206755 | D79: 218134 | E79: 228506 | F79: 237581 | H79: 203009 | I79: 206755 | J79: 218134 | K79: 228506 | L79: 237581 | N79: 203009 | O79: 206755 | P79: 218134 | Q79: 228506 | R79: 237581
A80: DEL NORTE25% | B80: 211796 | C80: 216118 | D80: 229514 | E80: 241614 | F80: 252274 | H80: 211796 | I80: 216118 | J80: 229514 | K80: 241614 | L80: 252274 | N80: 211796 | O80: 216118 | P80: 229514 | Q80: 241614 | R80: 252274
A81: DEL NORTE20% | B81: 220583 | C81: 225625 | D81: 240750 | E81: 254722 | F81: 266822 | H81: 220583 | I81: 225625 | J81: 240750 | K81: 254722 | L81: 266822 | N81: 220583 | O81: 225625 | P81: 240750 | Q81: 254722 | R81: 266822
A82: DEL NORTE15% | B82: 229514 | C82: 235132 | D82: 252130 | E82: 267831 | F82: 281371 | H82: 229514 | I82: 235132 | J82: 252130 | K82: 267831 | L82: 281371 | N82: 229514 | O82: 235132 | P82: 252130 | Q82: 267831 | R82: 281371
A83: EL DORADO60% | B83: 150000 | C83: 150000 | D83: 150000 | E83: 150000 | F83: 150000 | H83: 150000 | I83: 150000 | J83: 150000 | K83: 150000 | L83: 150000 | N83: 150000 | O83: 150000 | P83: 150000 | Q83: 150000 | R83: 150000
A84: EL DORADO55% | B84: 160948 | C84: 161668 | D84: 163973 | E84: 166277 | F84: 168150 | H84: 160948 | I84: 161668 | J84: 163973 | K84: 166277 | L84: 168150 | N84: 160948 | O84: 161668 | P84: 163973 | Q84: 166277 | R84: 168150
A85: EL DORADO50% | B85: 171751 | C85: 173336 | D85: 177945 | E85: 182411 | F85: 186156 | H85: 171751 | I85: 173336 | J85: 177945 | K85: 182411 | L85: 186156 | N85: 171751 | O85: 173336 | P85: 177945 | Q85: 182411 | R85: 186156
A86: EL DORADO45% | B86: 182699 | C86: 185003 | D86: 191918 | E86: 198544 | F86: 204162 | H86: 182699 | I86: 185003 | J86: 191918 | K86: 198544 | L86: 204162 | N86: 182699 | O86: 185003 | P86: 191918 | Q86: 198544 | R86: 204162
A87: EL DORADO40% | B87: 193502 | C87: 196671 | D87: 205890 | E87: 214677 | F87: 222168 | H87: 193502 | I87: 196671 | J87: 205890 | K87: 214677 | L87: 222168 | N87: 193502 | O87: 196671 | P87: 205890 | Q87: 214677 | R87: 222168
A88: EL DORADO35% | B88: 204450 | C88: 208339 | D88: 220007 | E88: 230955 | F88: 240318 | H88: 204450 | I88: 208339 | J88: 220007 | K88: 230955 | L88: 240318 | N88: 204450 | O88: 208339 | P88: 220007 | Q88: 230955 | R88: 240318
A89: EL DORADO30% | B89: 215397 | C89: 220007 | D89: 233980 | E89: 247088 | F89: 258324 | H89: 215397 | I89: 220007 | J89: 233980 | K89: 247088 | L89: 258324 | N89: 215397 | O89: 220007 | P89: 233980 | Q89: 247088 | R89: 258324
A90: EL DORADO25% | B90: 226201 | C90: 231675 | D90: 247952 | E90: 263221 | F90: 276329 | H90: 226201 | I90: 231675 | J90: 247952 | K90: 263221 | L90: 276329 | N90: 226201 | O90: 231675 | P90: 247952 | Q90: 263221 | R90: 276329
A91: EL DORADO20% | B91: 237149 | C91: 243343 | D91: 261925 | E91: 279354 | F91: 294335 | H91: 237149 | I91: 243343 | J91: 261925 | K91: 279354 | L91: 294335 | N91: 237149 | O91: 243343 | P91: 261925 | Q91: 279354 | R91: 294335
A92: EL DORADO15% | B92: 248096 | C92: 255010 | D92: 275897 | E92: 295632 | F92: 312485 | H92: 248096 | I92: 255010 | J92: 275897 | K92: 295632 | L92: 312485 | N92: 248096 | O92: 255010 | P92: 275897 | Q92: 295632 | R92: 312485
A93: FRESNO60% | B93: 150000 | C93: 150000 | D93: 150000 | E93: 150000 | F93: 150000 | H93: 150000 | I93: 150000 | J93: 150000 | K93: 150000 | L93: 150000 | N93: 150000 | O93: 150000 | P93: 150000 | Q93: 150000 | R93: 150000
A94: FRESNO55% | B94: 158931 | C94: 159507 | D94: 161380 | E94: 163108 | F94: 164549 | H94: 158931 | I94: 159507 | J94: 161380 | K94: 163108 | L94: 164549 | N94: 158931 | O94: 159507 | P94: 161380 | Q94: 163108 | R94: 164549
A95: FRESNO50% | B95: 167718 | C95: 168870 | D95: 172759 | E95: 176217 | F95: 179242 | H95: 167718 | I95: 168870 | J95: 172759 | K95: 176217 | L95: 179242 | N95: 167718 | O95: 168870 | P95: 172759 | Q95: 176217 | R95: 179242
A96: FRESNO45% | B96: 176505 | C96: 178377 | D96: 184139 | E96: 189325 | F96: 193790 | H96: 176505 | I96: 178377 | J96: 184139 | K96: 189325 | L96: 193790 | N96: 176505 | O96: 178377 | P96: 184139 | Q96: 189325 | R96: 193790
A97: FRESNO40% | B97: 185292 | C97: 187740 | D97: 195375 | E97: 202289 | F97: 208339 | H97: 185292 | I97: 187740 | J97: 195375 | K97: 202289 | L97: 208339 | N97: 185292 | O97: 187740 | P97: 195375 | Q97: 202289 | R97: 208339
A98: FRESNO35% | B98: 194223 | C98: 197248 | D98: 206755 | E98: 215397 | F98: 223032 | H98: 194223 | I98: 197248 | J98: 206755 | K98: 215397 | L98: 223032 | N98: 194223 | O98: 197248 | P98: 206755 | Q98: 215397 | R98: 223032
A99: FRESNO30% | B99: 203009 | C99: 206755 | D99: 218134 | E99: 228506 | F99: 237581 | H99: 203009 | I99: 206755 | J99: 218134 | K99: 228506 | L99: 237581 | N99: 203009 | O99: 206755 | P99: 218134 | Q99: 228506 | R99: 237581
A100: FRESNO25% | B100: 211796 | C100: 216118 | D100: 229514 | E100: 241614 | F100: 252274 | H100: 211796 | I100: 216118 | J100: 229514 | K100: 241614 | L100: 252274 | N100: 211796 | O100: 216118 | P100: 229514 | Q100: 241614 | R100: 252274
A101: FRESNO20% | B101: 220583 | C101: 225625 | D101: 240750 | E101: 254722 | F101: 266822 | H101: 220583 | I101: 225625 | J101: 240750 | K101: 254722 | L101: 266822 | N101: 220583 | O101: 225625 | P101: 240750 | Q101: 254722 | R101: 266822
A102: FRESNO15% | B102: 229514 | C102: 235132 | D102: 252130 | E102: 267831 | F102: 281371 | H102: 229514 | I102: 235132 | J102: 252130 | K102: 267831 | L102: 281371 | N102: 229514 | O102: 235132 | P102: 252130 | Q102: 267831 | R102: 281371
A103: GLENN60% | B103: 150000 | C103: 150000 | D103: 150000 | E103: 150000 | F103: 150000 | H103: 150000 | I103: 150000 | J103: 150000 | K103: 150000 | L103: 150000 | N103: 150000 | O103: 150000 | P103: 150000 | Q103: 150000 | R103: 150000
A104: GLENN55% | B104: 158931 | C104: 159507 | D104: 161380 | E104: 163108 | F104: 164549 | H104: 158931 | I104: 159507 | J104: 161380 | K104: 163108 | L104: 164549 | N104: 158931 | O104: 159507 | P104: 161380 | Q104: 163108 | R104: 164549
A105: GLENN50% | B105: 167718 | C105: 168870 | D105: 172759 | E105: 176217 | F105: 179242 | H105: 167718 | I105: 168870 | J105: 172759 | K105: 176217 | L105: 179242 | N105: 167718 | O105: 168870 | P105: 172759 | Q105: 176217 | R105: 179242
A106: GLENN45% | B106: 176505 | C106: 178377 | D106: 184139 | E106: 189325 | F106: 193790 | H106: 176505 | I106: 178377 | J106: 184139 | K106: 189325 | L106: 193790 | N106: 176505 | O106: 178377 | P106: 184139 | Q106: 189325 | R106: 193790
A107: GLENN40% | B107: 185292 | C107: 187740 | D107: 195375 | E107: 202289 | F107: 208339 | H107: 185292 | I107: 187740 | J107: 195375 | K107: 202289 | L107: 208339 | N107: 185292 | O107: 187740 | P107: 195375 | Q107: 202289 | R107: 208339
A108: GLENN35% | B108: 194223 | C108: 197248 | D108: 206755 | E108: 215397 | F108: 223032 | H108: 194223 | I108: 197248 | J108: 206755 | K108: 215397 | L108: 223032 | N108: 194223 | O108: 197248 | P108: 206755 | Q108: 215397 | R108: 223032
A109: GLENN30% | B109: 203009 | C109: 206755 | D109: 218134 | E109: 228506 | F109: 237581 | H109: 203009 | I109: 206755 | J109: 218134 | K109: 228506 | L109: 237581 | N109: 203009 | O109: 206755 | P109: 218134 | Q109: 228506 | R109: 237581
A110: GLENN25% | B110: 211796 | C110: 216118 | D110: 229514 | E110: 241614 | F110: 252274 | H110: 211796 | I110: 216118 | J110: 229514 | K110: 241614 | L110: 252274 | N110: 211796 | O110: 216118 | P110: 229514 | Q110: 241614 | R110: 252274
A111: GLENN20% | B111: 220583 | C111: 225625 | D111: 240750 | E111: 254722 | F111: 266822 | H111: 220583 | I111: 225625 | J111: 240750 | K111: 254722 | L111: 266822 | N111: 220583 | O111: 225625 | P111: 240750 | Q111: 254722 | R111: 266822
A112: GLENN15% | B112: 229514 | C112: 235132 | D112: 252130 | E112: 267831 | F112: 281371 | H112: 229514 | I112: 235132 | J112: 252130 | K112: 267831 | L112: 281371 | N112: 229514 | O112: 235132 | P112: 252130 | Q112: 267831 | R112: 281371
A113: HUMBOLDT60% | B113: 150000 | C113: 150000 | D113: 150000 | E113: 150000 | F113: 150000 | H113: 150000 | I113: 150000 | J113: 150000 | K113: 150000 | L113: 150000 | N113: 150000 | O113: 150000 | P113: 150000 | Q113: 150000 | R113: 150000
A114: HUMBOLDT55% | B114: 158931 | C114: 159507 | D114: 161380 | E114: 163108 | F114: 164549 | H114: 158931 | I114: 159507 | J114: 161380 | K114: 163108 | L114: 164549 | N114: 158931 | O114: 159507 | P114: 161380 | Q114: 163108 | R114: 164549
A115: HUMBOLDT50% | B115: 167718 | C115: 168870 | D115: 172759 | E115: 176217 | F115: 179242 | H115: 167718 | I115: 168870 | J115: 172759 | K115: 176217 | L115: 179242 | N115: 167718 | O115: 168870 | P115: 172759 | Q115: 176217 | R115: 179242
A116: HUMBOLDT45% | B116: 176505 | C116: 178377 | D116: 184139 | E116: 189325 | F116: 193790 | H116: 176505 | I116: 178377 | J116: 184139 | K116: 189325 | L116: 193790 | N116: 176505 | O116: 178377 | P116: 184139 | Q116: 189325 | R116: 193790
A117: HUMBOLDT40% | B117: 185292 | C117: 187740 | D117: 195375 | E117: 202289 | F117: 208339 | H117: 185292 | I117: 187740 | J117: 195375 | K117: 202289 | L117: 208339 | N117: 185292 | O117: 187740 | P117: 195375 | Q117: 202289 | R117: 208339
A118: HUMBOLDT35% | B118: 194223 | C118: 197248 | D118: 206755 | E118: 215397 | F118: 223032 | H118: 194223 | I118: 197248 | J118: 206755 | K118: 215397 | L118: 223032 | N118: 194223 | O118: 197248 | P118: 206755 | Q118: 215397 | R118: 223032
A119: HUMBOLDT30% | B119: 203009 | C119: 206755 | D119: 218134 | E119: 228506 | F119: 237581 | H119: 203009 | I119: 206755 | J119: 218134 | K119: 228506 | L119: 237581 | N119: 203009 | O119: 206755 | P119: 218134 | Q119: 228506 | R119: 237581
A120: HUMBOLDT25% | B120: 211796 | C120: 216118 | D120: 229514 | E120: 241614 | F120: 252274 | H120: 211796 | I120: 216118 | J120: 229514 | K120: 241614 | L120: 252274 | N120: 211796 | O120: 216118 | P120: 229514 | Q120: 241614 | R120: 252274
A121: HUMBOLDT20% | B121: 220583 | C121: 225625 | D121: 240750 | E121: 254722 | F121: 266822 | H121: 220583 | I121: 225625 | J121: 240750 | K121: 254722 | L121: 266822 | N121: 220583 | O121: 225625 | P121: 240750 | Q121: 254722 | R121: 266822
A122: HUMBOLDT15% | B122: 229514 | C122: 235132 | D122: 252130 | E122: 267831 | F122: 281371 | H122: 229514 | I122: 235132 | J122: 252130 | K122: 267831 | L122: 281371 | N122: 229514 | O122: 235132 | P122: 252130 | Q122: 267831 | R122: 281371
A123: IMPERIAL60% | B123: 150000 | C123: 150000 | D123: 150000 | E123: 150000 | F123: 150000 | H123: 150000 | I123: 150000 | J123: 150000 | K123: 150000 | L123: 150000 | N123: 150000 | O123: 150000 | P123: 150000 | Q123: 150000 | R123: 150000
A124: IMPERIAL55% | B124: 158931 | C124: 159507 | D124: 161380 | E124: 163108 | F124: 164549 | H124: 158931 | I124: 159507 | J124: 161380 | K124: 163108 | L124: 164549 | N124: 158931 | O124: 159507 | P124: 161380 | Q124: 163108 | R124: 164549
A125: IMPERIAL50% | B125: 167718 | C125: 168870 | D125: 172759 | E125: 176217 | F125: 179242 | H125: 167718 | I125: 168870 | J125: 172759 | K125: 176217 | L125: 179242 | N125: 167718 | O125: 168870 | P125: 172759 | Q125: 176217 | R125: 179242
A126: IMPERIAL45% | B126: 176505 | C126: 178377 | D126: 184139 | E126: 189325 | F126: 193790 | H126: 176505 | I126: 178377 | J126: 184139 | K126: 189325 | L126: 193790 | N126: 176505 | O126: 178377 | P126: 184139 | Q126: 189325 | R126: 193790
A127: IMPERIAL40% | B127: 185292 | C127: 187740 | D127: 195375 | E127: 202289 | F127: 208339 | H127: 185292 | I127: 187740 | J127: 195375 | K127: 202289 | L127: 208339 | N127: 185292 | O127: 187740 | P127: 195375 | Q127: 202289 | R127: 208339
A128: IMPERIAL35% | B128: 194223 | C128: 197248 | D128: 206755 | E128: 215397 | F128: 223032 | H128: 194223 | I128: 197248 | J128: 206755 | K128: 215397 | L128: 223032 | N128: 194223 | O128: 197248 | P128: 206755 | Q128: 215397 | R128: 223032
A129: IMPERIAL30% | B129: 203009 | C129: 206755 | D129: 218134 | E129: 228506 | F129: 237581 | H129: 203009 | I129: 206755 | J129: 218134 | K129: 228506 | L129: 237581 | N129: 203009 | O129: 206755 | P129: 218134 | Q129: 228506 | R129: 237581
A130: IMPERIAL25% | B130: 211796 | C130: 216118 | D130: 229514 | E130: 241614 | F130: 252274 | H130: 211796 | I130: 216118 | J130: 229514 | K130: 241614 | L130: 252274 | N130: 211796 | O130: 216118 | P130: 229514 | Q130: 241614 | R130: 252274
A131: IMPERIAL20% | B131: 220583 | C131: 225625 | D131: 240750 | E131: 254722 | F131: 266822 | H131: 220583 | I131: 225625 | J131: 240750 | K131: 254722 | L131: 266822 | N131: 220583 | O131: 225625 | P131: 240750 | Q131: 254722 | R131: 266822
A132: IMPERIAL15% | B132: 229514 | C132: 235132 | D132: 252130 | E132: 267831 | F132: 281371 | H132: =ROUND(B132,0) -> 229514 | I132: =ROUND(C132,0) -> 235132 | J132: =ROUND(D132,0) -> 252130 | K132: =ROUND(E132,0) -> 267831 | L132: =ROUND(F132,0) -> 281371 | N132: 229514 | O132: 235132 | P132: 252130 | Q132: 267831 | R132: 281371
A133: INYO60% | B133: 150000 | C133: 150000 | D133: 150000 | E133: 150000 | F133: 150000 | H133: 150000 | I133: 150000 | J133: 150000 | K133: 150000 | L133: 150000 | N133: 150000 | O133: 150000 | P133: 150000 | Q133: 150000 | R133: 150000
A134: INYO55% | B134: 159507 | C134: 160227 | D134: 162244 | E134: 164117 | F134: 165701 | H134: 159507 | I134: 160227 | J134: 162244 | K134: 164117 | L134: 165701 | N134: 159507 | O134: 160227 | P134: 162244 | Q134: 164117 | R134: 165701
A135: INYO50% | B135: 169014 | C135: 170311 | D135: 174344 | E135: 178233 | F135: 181402 | H135: 169014 | I135: 170311 | J135: 174344 | K135: 178233 | L135: 181402 | N135: 169014 | O135: 170311 | P135: 174344 | Q135: 178233 | R135: 181402
A136: INYO45% | B136: 178521 | C136: 180538 | D136: 186588 | E136: 192206 | F136: 197103 | H136: 178521 | I136: 180538 | J136: 186588 | K136: 192206 | L136: 197103 | N136: 178521 | O136: 180538 | P136: 186588 | Q136: 192206 | R136: 197103
A137: INYO40% | B137: 187884 | C137: 190621 | D137: 198688 | E137: 206322 | F137: 212805 | H137: 187884 | I137: 190621 | J137: 198688 | K137: 206322 | L137: 212805 | N137: 187884 | O137: 190621 | P137: 198688 | Q137: 206322 | R137: 212805
A138: INYO35% | B138: 197392 | C138: 200705 | D138: 210932 | E138: 220439 | F138: 228506 | H138: 197392 | I138: 200705 | J138: 210932 | K138: 220439 | L138: 228506 | N138: 197392 | O138: 200705 | P138: 210932 | Q138: 220439 | R138: 228506
A139: INYO30% | B139: 206899 | C139: 210932 | D139: 223032 | E139: 234412 | F139: 244207 | H139: 206899 | I139: 210932 | J139: 223032 | K139: 234412 | L139: 244207 | N139: 206899 | O139: 210932 | P139: 223032 | Q139: 234412 | R139: 244207
A140: INYO25% | B140: 216406 | C140: 221015 | D140: 235276 | E140: 248528 | F140: 259908 | H140: 216406 | I140: 221015 | J140: 235276 | K140: 248528 | L140: 259908 | N140: 216406 | O140: 221015 | P140: 235276 | Q140: 248528 | R140: 259908
A141: INYO20% | B141: 225769 | C141: 231243 | D141: 247376 | E141: 262645 | F141: 275609 | H141: 225769 | I141: 231243 | J141: 247376 | K141: 262645 | L141: 275609 | N141: 225769 | O141: 231243 | P141: 247376 | Q141: 262645 | R141: 275609
A142: INYO15% | B142: 235276 | C142: 241326 | D142: 259620 | E142: 276618 | F142: 291310 | H142: 235276 | I142: 241326 | J142: 259620 | K142: 276618 | L142: 291310 | N142: 235276 | O142: 241326 | P142: 259620 | Q142: 276618 | R142: 291310
A143: KERN60% | B143: 150000 | C143: 150000 | D143: 150000 | E143: 150000 | F143: 150000 | H143: 150000 | I143: 150000 | J143: 150000 | K143: 150000 | L143: 150000 | N143: 150000 | O143: 150000 | P143: 150000 | Q143: 150000 | R143: 150000
A144: KERN55% | B144: 158931 | C144: 159507 | D144: 161380 | E144: 163108 | F144: 164549 | H144: 158931 | I144: 159507 | J144: 161380 | K144: 163108 | L144: 164549 | N144: 158931 | O144: 159507 | P144: 161380 | Q144: 163108 | R144: 164549
A145: KERN50% | B145: 167718 | C145: 168870 | D145: 172759 | E145: 176217 | F145: 179242 | H145: 167718 | I145: 168870 | J145: 172759 | K145: 176217 | L145: 179242 | N145: 167718 | O145: 168870 | P145: 172759 | Q145: 176217 | R145: 179242
A146: KERN45% | B146: 176505 | C146: 178377 | D146: 184139 | E146: 189325 | F146: 193790 | H146: 176505 | I146: 178377 | J146: 184139 | K146: 189325 | L146: 193790 | N146: 176505 | O146: 178377 | P146: 184139 | Q146: 189325 | R146: 193790
A147: KERN40% | B147: 185292 | C147: 187740 | D147: 195375 | E147: 202289 | F147: 208339 | H147: 185292 | I147: 187740 | J147: 195375 | K147: 202289 | L147: 208339 | N147: 185292 | O147: 187740 | P147: 195375 | Q147: 202289 | R147: 208339
A148: KERN35% | B148: 194223 | C148: 197248 | D148: 206755 | E148: 215397 | F148: 223032 | H148: 194223 | I148: 197248 | J148: 206755 | K148: 215397 | L148: 223032 | N148: 194223 | O148: 197248 | P148: 206755 | Q148: 215397 | R148: 223032
A149: KERN30% | B149: 203009 | C149: 206755 | D149: 218134 | E149: 228506 | F149: 237581 | H149: 203009 | I149: 206755 | J149: 218134 | K149: 228506 | L149: 237581 | N149: 203009 | O149: 206755 | P149: 218134 | Q149: 228506 | R149: 237581
A150: KERN25% | B150: 211796 | C150: 216118 | D150: 229514 | E150: 241614 | F150: 252274 | H150: 211796 | I150: 216118 | J150: 229514 | K150: 241614 | L150: 252274 | N150: 211796 | O150: 216118 | P150: 229514 | Q150: 241614 | R150: 252274
A151: KERN20% | B151: 220583 | C151: 225625 | D151: 240750 | E151: 254722 | F151: 266822 | H151: 220583 | I151: 225625 | J151: 240750 | K151: 254722 | L151: 266822 | N151: 220583 | O151: 225625 | P151: 240750 | Q151: 254722 | R151: 266822
A152: KERN15% | B152: 229514 | C152: 235132 | D152: 252130 | E152: 267831 | F152: 281371 | H152: 229514 | I152: 235132 | J152: 252130 | K152: 267831 | L152: 281371 | N152: 229514 | O152: 235132 | P152: 252130 | Q152: 267831 | R152: 281371
A153: KINGS60% | B153: 150000 | C153: 150000 | D153: 150000 | E153: 150000 | F153: 150000 | H153: 150000 | I153: 150000 | J153: 150000 | K153: 150000 | L153: 150000 | N153: 150000 | O153: 150000 | P153: 150000 | Q153: 150000 | R153: 150000
A154: KINGS55% | B154: 158931 | C154: 159507 | D154: 161380 | E154: 163108 | F154: 164549 | H154: 158931 | I154: 159507 | J154: 161380 | K154: 163108 | L154: 164549 | N154: 158931 | O154: 159507 | P154: 161380 | Q154: 163108 | R154: 164549
A155: KINGS50% | B155: 167718 | C155: 168870 | D155: 172759 | E155: 176217 | F155: 179242 | H155: 167718 | I155: 168870 | J155: 172759 | K155: 176217 | L155: 179242 | N155: 167718 | O155: 168870 | P155: 172759 | Q155: 176217 | R155: 179242
A156: KINGS45% | B156: 176505 | C156: 178377 | D156: 184139 | E156: 189325 | F156: 193790 | H156: 176505 | I156: 178377 | J156: 184139 | K156: 189325 | L156: 193790 | N156: 176505 | O156: 178377 | P156: 184139 | Q156: 189325 | R156: 193790
A157: KINGS40% | B157: 185292 | C157: 187740 | D157: 195375 | E157: 202289 | F157: 208339 | H157: 185292 | I157: 187740 | J157: 195375 | K157: 202289 | L157: 208339 | N157: 185292 | O157: 187740 | P157: 195375 | Q157: 202289 | R157: 208339
A158: KINGS35% | B158: 194223 | C158: 197248 | D158: 206755 | E158: 215397 | F158: 223032 | H158: 194223 | I158: 197248 | J158: 206755 | K158: 215397 | L158: 223032 | N158: 194223 | O158: 197248 | P158: 206755 | Q158: 215397 | R158: 223032
A159: KINGS30% | B159: 203009 | C159: 206755 | D159: 218134 | E159: 228506 | F159: 237581 | H159: 203009 | I159: 206755 | J159: 218134 | K159: 228506 | L159: 237581 | N159: 203009 | O159: 206755 | P159: 218134 | Q159: 228506 | R159: 237581
A160: KINGS25% | B160: 211796 | C160: 216118 | D160: 229514 | E160: 241614 | F160: 252274 | H160: 211796 | I160: 216118 | J160: 229514 | K160: 241614 | L160: 252274 | N160: 211796 | O160: 216118 | P160: 229514 | Q160: 241614 | R160: 252274
A161: KINGS20% | B161: 220583 | C161: 225625 | D161: 240750 | E161: 254722 | F161: 266822 | H161: 220583 | I161: 225625 | J161: 240750 | K161: 254722 | L161: 266822 | N161: 220583 | O161: 225625 | P161: 240750 | Q161: 254722 | R161: 266822
A162: KINGS15% | B162: 229514 | C162: 235132 | D162: 252130 | E162: 267831 | F162: 281371 | H162: 229514 | I162: 235132 | J162: 252130 | K162: 267831 | L162: 281371 | N162: 229514 | O162: 235132 | P162: 252130 | Q162: 267831 | R162: 281371
A163: LAKE60% | B163: 150000 | C163: 150000 | D163: 150000 | E163: 150000 | F163: 150000 | H163: 150000 | I163: 150000 | J163: 150000 | K163: 150000 | L163: 150000 | N163: 150000 | O163: 150000 | P163: 150000 | Q163: 150000 | R163: 150000
A164: LAKE55% | B164: 158931 | C164: 159507 | D164: 161380 | E164: 163108 | F164: 164549 | H164: 158931 | I164: 159507 | J164: 161380 | K164: 163108 | L164: 164549 | N164: 158931 | O164: 159507 | P164: 161380 | Q164: 163108 | R164: 164549
A165: LAKE50% | B165: 167718 | C165: 168870 | D165: 172759 | E165: 176217 | F165: 179242 | H165: 167718 | I165: 168870 | J165: 172759 | K165: 176217 | L165: 179242 | N165: 167718 | O165: 168870 | P165: 172759 | Q165: 176217 | R165: 179242
A166: LAKE45% | B166: 176505 | C166: 178377 | D166: 184139 | E166: 189325 | F166: 193790 | H166: 176505 | I166: 178377 | J166: 184139 | K166: 189325 | L166: 193790 | N166: 176505 | O166: 178377 | P166: 184139 | Q166: 189325 | R166: 193790
A167: LAKE40% | B167: 185292 | C167: 187740 | D167: 195375 | E167: 202289 | F167: 208339 | H167: 185292 | I167: 187740 | J167: 195375 | K167: 202289 | L167: 208339 | N167: 185292 | O167: 187740 | P167: 195375 | Q167: 202289 | R167: 208339
A168: LAKE35% | B168: 194223 | C168: 197248 | D168: 206755 | E168: 215397 | F168: 223032 | H168: 194223 | I168: 197248 | J168: 206755 | K168: 215397 | L168: 223032 | N168: 194223 | O168: 197248 | P168: 206755 | Q168: 215397 | R168: 223032
A169: LAKE30% | B169: 203009 | C169: 206755 | D169: 218134 | E169: 228506 | F169: 237581 | H169: 203009 | I169: 206755 | J169: 218134 | K169: 228506 | L169: 237581 | N169: 203009 | O169: 206755 | P169: 218134 | Q169: 228506 | R169: 237581
A170: LAKE25% | B170: 211796 | C170: 216118 | D170: 229514 | E170: 241614 | F170: 252274 | H170: 211796 | I170: 216118 | J170: 229514 | K170: 241614 | L170: 252274 | N170: 211796 | O170: 216118 | P170: 229514 | Q170: 241614 | R170: 252274
A171: LAKE20% | B171: 220583 | C171: 225625 | D171: 240750 | E171: 254722 | F171: 266822 | H171: 220583 | I171: 225625 | J171: 240750 | K171: 254722 | L171: 266822 | N171: 220583 | O171: 225625 | P171: 240750 | Q171: 254722 | R171: 266822
A172: LAKE15% | B172: 229514 | C172: 235132 | D172: 252130 | E172: 267831 | F172: 281371 | H172: 229514 | I172: 235132 | J172: 252130 | K172: 267831 | L172: 281371 | N172: 229514 | O172: 235132 | P172: 252130 | Q172: 267831 | R172: 281371
A173: LASSEN60% | B173: 150000 | C173: 150000 | D173: 150000 | E173: 150000 | F173: 150000 | H173: 150000 | I173: 150000 | J173: 150000 | K173: 150000 | L173: 150000 | N173: 150000 | O173: 150000 | P173: 150000 | Q173: 150000 | R173: 150000
A174: LASSEN55% | B174: 158931 | C174: 159507 | D174: 161524 | E174: 163252 | F174: 164837 | H174: 158931 | I174: 159507 | J174: 161524 | K174: 163252 | L174: 164837 | N174: 158931 | O174: 159507 | P174: 161524 | Q174: 163252 | R174: 164837
A175: LASSEN50% | B175: 167862 | C175: 169014 | D175: 172904 | E175: 176505 | F175: 179530 | H175: 167862 | I175: 169014 | J175: 172904 | K175: 176505 | L175: 179530 | N175: 167862 | O175: 169014 | P175: 172904 | Q175: 176505 | R175: 179530
A176: LASSEN45% | B176: 176793 | C176: 178665 | D176: 184427 | E176: 189757 | F176: 194367 | H176: 176793 | I176: 178665 | J176: 184427 | K176: 189757 | L176: 194367 | N176: 176793 | O176: 178665 | P176: 184427 | Q176: 189757 | R176: 194367
A177: LASSEN40% | B177: 185580 | C177: 188173 | D177: 195807 | E177: 203009 | F177: 209059 | H177: 185580 | I177: 188173 | J177: 195807 | K177: 203009 | L177: 209059 | N177: 185580 | O177: 188173 | P177: 195807 | Q177: 203009 | R177: 209059
A178: LASSEN35% | B178: 194511 | C178: 197680 | D178: 207331 | E178: 216262 | F178: 223896 | H178: 194511 | I178: 197680 | J178: 207331 | K178: 216262 | L178: 223896 | N178: 194511 | O178: 197680 | P178: 207331 | Q178: 216262 | R178: 223896
A179: LASSEN30% | B179: 203442 | C179: 207331 | D179: 218855 | E179: 229514 | F179: 238733 | H179: 203442 | I179: 207331 | J179: 218855 | K179: 229514 | L179: 238733 | N179: 203442 | O179: 207331 | P179: 218855 | Q179: 229514 | R179: 238733
A180: LASSEN25% | B180: 212372 | C180: 216838 | D180: 230234 | E180: 242766 | F180: 253426 | H180: 212372 | I180: 216838 | J180: 230234 | K180: 242766 | L180: 253426 | N180: 212372 | O180: 216838 | P180: 230234 | Q180: 242766 | R180: 253426
A181: LASSEN20% | B181: 221303 | C181: 226345 | D181: 241758 | E181: 256019 | F181: 268263 | H181: 221303 | I181: 226345 | J181: 241758 | K181: 256019 | L181: 268263 | N181: 221303 | O181: 226345 | P181: 241758 | Q181: 256019 | R181: 268263
A182: LASSEN15% | B182: 230234 | C182: 235996 | D182: 253282 | E182: 269271 | F182: 283100 | H182: 230234 | I182: 235996 | J182: 253282 | K182: 269271 | L182: 283100 | N182: 230234 | O182: 235996 | P182: 253282 | Q182: 269271 | R182: 283100
A183: LOS ANGELES60% | B183: 150000 | C183: 150000 | D183: 150000 | E183: 150000 | F183: 150000 | H183: 150000 | I183: 150000 | J183: 150000 | K183: 150000 | L183: 150000 | N183: 150000 | O183: 150000 | P183: 150000 | Q183: 150000 | R183: 150000
A184: LOS ANGELES55% | B184: 164261 | C184: 165269 | D184: 168294 | E184: 171175 | F184: 173480 | H184: 164261 | I184: 165269 | J184: 168294 | K184: 171175 | L184: 173480 | N184: 164261 | O184: 165269 | P184: 168294 | Q184: 171175 | R184: 173480
A185: LOS ANGELES50% | B185: 178377 | C185: 180394 | D185: 186588 | E185: 192206 | F185: 197103 | H185: 178377 | I185: 180394 | J185: 186588 | K185: 192206 | L185: 197103 | N185: 178377 | O185: 180394 | P185: 186588 | Q185: 192206 | R185: 197103
A186: LOS ANGELES45% | B186: 192638 | C186: 195663 | D186: 204882 | E186: 213381 | F186: 220583 | H186: 192638 | I186: 195663 | J186: 204882 | K186: 213381 | L186: 220583 | N186: 192638 | O186: 195663 | P186: 204882 | Q186: 213381 | R186: 220583
A187: LOS ANGELES40% | B187: 206755 | C187: 210788 | D187: 223032 | E187: 234412 | F187: 244063 | H187: 206755 | I187: 210788 | J187: 223032 | K187: 234412 | L187: 244063 | N187: 206755 | O187: 210788 | P187: 223032 | Q187: 234412 | R187: 244063
A188: LOS ANGELES35% | B188: 221015 | C188: 226057 | D188: 241326 | E188: 255443 | F188: 267687 | H188: 221015 | I188: 226057 | J188: 241326 | K188: 255443 | L188: 267687 | N188: 221015 | O188: 226057 | P188: 241326 | Q188: 255443 | R188: 267687
A189: LOS ANGELES30% | B189: 235276 | C189: 241326 | D189: 259620 | E189: 276618 | F189: 291166 | H189: 235276 | I189: 241326 | J189: 259620 | K189: 276618 | L189: 291166 | N189: 235276 | O189: 241326 | P189: 259620 | Q189: 276618 | R189: 291166
A190: LOS ANGELES25% | B190: 249393 | C190: 256451 | D190: 277914 | E190: 297648 | F190: 314790 | H190: 249393 | I190: 256451 | J190: 277914 | K190: 297648 | L190: 314790 | N190: 249393 | O190: 256451 | P190: 277914 | Q190: 297648 | R190: 314790
A191: LOS ANGELES20% | B191: 263653 | C191: 271720 | D191: 296064 | E191: 318823 | F191: 338270 | H191: 263653 | I191: 271720 | J191: 296064 | K191: 318823 | L191: 338270 | N191: 263653 | O191: 271720 | P191: 296064 | Q191: 318823 | R191: 338270
A192: LOS ANGELES15% | B192: 277914 | C192: 286989 | D192: 314358 | E192: 339854 | F192: 361750 | H192: 277914 | I192: 286989 | J192: 314358 | K192: 339854 | L192: 361750 | N192: 277914 | O192: 286989 | P192: 314358 | Q192: 339854 | R192: 361750
A193: MADERA60% | B193: 150000 | C193: 150000 | D193: 150000 | E193: 150000 | F193: 150000 | H193: 150000 | I193: 150000 | J193: 150000 | K193: 150000 | L193: 150000 | N193: 150000 | O193: 150000 | P193: 150000 | Q193: 150000 | R193: 150000
A194: MADERA55% | B194: 158931 | C194: 159507 | D194: 161380 | E194: 163108 | F194: 164549 | H194: 158931 | I194: 159507 | J194: 161380 | K194: 163108 | L194: 164549 | N194: 158931 | O194: 159507 | P194: 161380 | Q194: 163108 | R194: 164549
A195: MADERA50% | B195: 167718 | C195: 168870 | D195: 172759 | E195: 176217 | F195: 179242 | H195: 167718 | I195: 168870 | J195: 172759 | K195: 176217 | L195: 179242 | N195: 167718 | O195: 168870 | P195: 172759 | Q195: 176217 | R195: 179242
A196: MADERA45% | B196: 176505 | C196: 178377 | D196: 184139 | E196: 189325 | F196: 193790 | H196: =ROUND(B196,0) -> 176505 | I196: =ROUND(C196,0) -> 178377 | J196: =ROUND(D196,0) -> 184139 | K196: =ROUND(E196,0) -> 189325 | L196: =ROUND(F196,0) -> 193790 | N196: 176505 | O196: 178377 | P196: 184139 | Q196: 189325 | R196: 193790
A197: MADERA40% | B197: 185292 | C197: 187740 | D197: 195375 | E197: 202289 | F197: 208339 | H197: 185292 | I197: 187740 | J197: 195375 | K197: 202289 | L197: 208339 | N197: 185292 | O197: 187740 | P197: 195375 | Q197: 202289 | R197: 208339
A198: MADERA35% | B198: 194223 | C198: 197248 | D198: 206755 | E198: 215397 | F198: 223032 | H198: 194223 | I198: 197248 | J198: 206755 | K198: 215397 | L198: 223032 | N198: 194223 | O198: 197248 | P198: 206755 | Q198: 215397 | R198: 223032
A199: MADERA30% | B199: 203009 | C199: 206755 | D199: 218134 | E199: 228506 | F199: 237581 | H199: 203009 | I199: 206755 | J199: 218134 | K199: 228506 | L199: 237581 | N199: 203009 | O199: 206755 | P199: 218134 | Q199: 228506 | R199: 237581
A200: MADERA25% | B200: 211796 | C200: 216118 | D200: 229514 | E200: 241614 | F200: 252274 | H200: 211796 | I200: 216118 | J200: 229514 | K200: 241614 | L200: 252274 | N200: 211796 | O200: 216118 | P200: 229514 | Q200: 241614 | R200: 252274
... 382 more rows

Sheet HD Eligibility and Threshold
A1: Eligibility and Threshold - Housing Developments (HD) §103, §105, §106 and §109 | AK1: =#REF! -> 
A2: §103(a)(1) Is the HD new construction, Substantial Rehabilitation of residential dwelling units, or conversion of one or more nonresidential structures to residential dwelling units, with a total of not fewer than 20 such units? | AC2: If yes, select Project type
A3: For Acquisition/Rehabilitation and Rehabilitation projects only: Provide a description of the current condition of the structure(s) and a general description of the overall scope of work. Include a discussion of any proposed modification to the unit configurations, unit mix, need for seismic retrofit, or modifications in use (e.g., commercial/tourist hotel to SRO or studio apartments). All projects must submit a Physical Needs Assessment (PNA) or Capital Needs Assessment (CNA) by a qualified independent third party contractor, which supports the proposed scope of work. Both the contractor and the PNA are subject to HCD approval. Include in the CNA upload, the current rent roll and tenant income and household size information, submit by unit.
A4: File Name: | D4: Rehab or Conversion Description | L4: Narrative of current condition of structure(s) and description of overall scope of work. Include a discussion of any proposed modification to unit configurations, unit mix, need for seismic retrofit, or modifications in use (e.g., commercial/tourist hotel to SRO). | AF4: Uploaded to FAAST?
A5: File Name: | D5: CNA | L5: PNA or CNA by qualified independent third party contractor. | AF5: Uploaded to FAAST?
A6: §103(a)(2)(A) Is the HD located within 1/4 mile from a Qualifying Transit Station, measured in a straight line from the nearest boundary of the HD parcel to the outer boundary of the Transit Station site?
A7: §103(a)(2)(B) Is the HD located within 1/2 mile from a Qualifying Transit Station, measured from the nearest boarding point of the Qualifying Transit Station to the entrance of the residential structure in the HD farthest from the Transit Station along a walkable route. (The walkable route must be free of negative environmental conditions that deter pedestrian circulation, such as barriers; stretches without sidewalks or walking paths; noisy vehicular tunnels; streets, arterials or highways without regulated crossings that facilitate pedestrian movement; stretches without shade or cover; or stretches without lighted streets)?
A8: §103(a)(3) Will the HD include at least 15% of the total residential units as affordable units (60% of AMI or less)? | AM8: Location | AN8: Residential | AO8: Mixed-Use
A9: §103(a)(4) HD's Location Designation | R9: Is HD Residential or Mixed-Use? | AE9: Total HD Units | AM9: Large City Downtown | AN9: 60 | AO9: 3
A10: Site square feet | H10: Streets | L10: Sidewalks | Q10: Open Space | V10: Drainage Facility | AB10: Net sq. ft. | AE10: =E10-J10-O10-T10-Z10 -> 0 | AH10: Units/Acre | AK10: =IFERROR(AK9/(AE10/43560),0) -> 0 | AM10: Urban Center | AN10: 40 | AO10: 2
A11: Bldgs. square ft. | H11: Mechanical | M11: Cellar | Q11: Balconies | V11: Elevator | Z11: Bulkheads | AE11: Net | AF11: =E11-K11-O11-T11-X11-AC11 -> 0 | AI11: FAR | AK11: =IFERROR(AE10/AF11,0) -> 0 | AM11: All Other Areas | AN11: 25 | AO11: 1.5
A12: §103(a)(4) Will the HD achieve the minimum required Net Density §102(bb)? Floor Area Ratio (FAR) see §102(q) | AB12: Units/Acre | AE12: =IFERROR(VLOOKUP(L9,AM8:AO11,2,FALSE),0) -> 0 | AG12: FAR | AI12: =IF(AA9="Mixed-Use",VLOOKUP(L9,AM8:AO11,3,FALSE),"") ->  | AK12: =IF(AA9="","",IF(AA9="Mixed-Use",IF(OR(AK10>=AE12,AK11>=AI12),"Yes"),IF(AK10>=AE12,"Yes","No"))) -> 
A13: §109(a)(2) Does the HD Development Budget request funds for eligible costs pursuant to §105 and §106?
A14: §109(a)(3) Is this application complete to assess Project feasibility and compliance with Program requirements?
A15: Does market study demonstrate HD is financially feasible? - Must submit a market study that meets the requirements specified in TCAC Regs §10322(h)(10)
A16: File Name: | D16: Market Study | L16: Completed market study prepared within one year of the application due date. | AF16: Uploaded to FAAST?
A17: Is the Project free from severe adverse environmental conditions that are economically infeasible to remove and cannot be mitigated?
A18: Attach all available Phase I and Phase II Environmental Site Assessments (ESA). Include any follow-up analysis, (e.g., asbestos or lead-based paint analysis), or information on mitigation completed. It is NOT necessary to include a copy of the Database Records Search section of the ESA. If no Phase I or Phase II has been done for new construction projects, HCD highly recommends submission of a Phase I and Phase II, if recommended by the Phase I, and any follow-up reports with your Application so that environmental remediation costs can be properly assessed and budgeted for. For acquisition/rehabilitation projects, submission of lead-based paint, mold, and asbestos reports is required. Failure to submit the necessary environmental reports with your Application may delay evaluation of your Application. Evidence of completion of all necessary environmental remediation will be required prior to award of funds.
A19: File Name | D19: Env Report 1 | AF19: Uploaded to FAAST?
A20: File Name | D20: Env Report 2 | AF20: Uploaded to FAAST?
A21: File Name | D21: Env Report 3 | AF21: Uploaded to FAAST?
A22: File Name | D22: Env Report 4 | AF22: Uploaded to FAAST?
A23: File Name | D23: Env Report 5 | AF23: Uploaded to FAAST?
A24: §109(a)(4) You certify construction of the HD has not commenced as of the application due date? If No (construction has commenced), explain below.
AM25: (1) Fee Title
A26: §109(a)(5) On the application due date, will the housing element for the jurisdiction in which the HD is located be in substantial compliance with the requirements of California's Housing Element Law (Gov. Code §65580, Ch. 3 of Div. I of Title VII)? | AM26: (2) Leasehold Interest
A27: §109(a)(6) Is HD in a Locality that has submitted its housing element annual progress reports (Gov. Code §65400) for the current or prior reporting year? | AM27: (3) Enforceable Option to Lease or Purchase
A28: §109(a)(7) You certify the HD is infeasible without Program funds and Program funds will not supplant other available funds? | AM28: (4) Disposition and Development Agreement
A29: §109(a)(8) Will the HD be proposed on an Infill Site as defined in §102(s) "where at least three of four sides, or 75 percent of the perimeter of the site, adjoin(s) parcels that are Currently Developed qualified Urban Uses. This calculation shall not include perimeters bordering navigable bodies of water and improved Parks. In order to qualify as an Infill Site, the site must also be located in an Urbanized Area."? | AM29: (5) A Right of Way or Easement
A30: §109(a)(9) Does the HD meet the underwriting standards in the UMRs? | AM30: (6) Encroachment Permit
A31: §109(a)(10) Does Applicant (Developer) have Site Control for the HD Project? If yes, enter form of Site Control and the most recent Site Control document execution date below. Site Control §102(ss). | AM31: (7) Exclusive Right to Negotiate with the public agency
A32: Form of Site Control §102(ss)? | Z32: Most recent document execution date? | AM32: (8) Land Sales Contract or enforceable agreement
A33: File Name: | D33: HD Site Control | L33: Documentation to demonstrate the form of Site Control indicated above. | AF33: Uploaded to FAAST? | AM33: (9) Other - must give HCD assurance Applicant will be able to complete the Project timely and in accordance with all Program requirements
A34: §109(a)(11) Applicants must demonstrate prior experience by providing evidence of two prior HD projects similar to the proposed HD in scope and size, which have been completed by the Applicant during the five years preceding the application due date.
E35: HD Past Project #1 | V35: HD Past Project #2
A36: Project Name
A37: Development Entity
A38: Completion Date
A39: Project Tenure
A40: # of units
A41: Units per Acre
A42: Commercial (sq. ft.)
A43: Brief Description (e.g. number of units, population served, etc.)
A44: File Name: | D44: Exp HD1, Exp HD2 | L44: Certificates of Occupancy for two recently completed HDs | AF44: Uploaded to FAAST?
A45: §109(a)(12) Can Applicant demonstrate capacity to develop and own the proposed HD in accordance with the Program requirements?
A46: Name of Applicant/Person who has experience | I46: HD Name | R46: HD Address and City | AD46: Owner of Project | AG46: Developer of Project | AJ46: Date completed
A53: §109(a)(13) If your HD requires demolition of existing residential units, are the number of bedrooms in the proposed HD at least equal to the total number of bedrooms in the demolished structures? The new units may exist on separate parcels provided all parcels are part of the same HD per UMR §8303(b). Explain below how this requirement is satisfied including how many bedrooms in the units to be demolished and how many replacement units.
A55: Article XXXIV §111(a)(1)(N)
A56: Article XXXIV legal opinion submitted to HCD demonstrates that the Sponsor has considered both the legal requirements of Article XXXIV and the relevant facts of the project. Any conclusion that the Project is exempt from Article XXXIV is supported by specific facts and a specific legal theory for exemption that itself is supported by the Constitution, statue, and/or case law. Documentation provided shall be subject to Department review and approval.
A57: File Name: | D57: Article XXXIV Legal Opinion | L57: If the Sponsor includes an Article XXXIV legal opinion, provide a copy of legal opinion. | AF57: Uploaded to FAAST?
A58: File Name: | D58: Article XXXIV Authority | L58: If the Locality has sufficient Article XXXIV authority, provide documentation per NOFA. | AF58: Uploaded to FAAST?
A59: Tenant Selection UMR §8305
A60: Sponsor certifies the Project will comply with the requirements of UMR §8305 as applicable.
A61: Fair Housing Act
A62: Does your Project propose to restrict occupancy based on gender or age? If yes, include in legal opinion how your Project satisfies fair housing laws (include supporting materials). Attach a Project-specific legal opinion labeled "Fair Housing" with supporting materials describing how the Project complies with fair housing laws. For senior Projects, attach evidence that units are lawfully restricted to senior households in compliance with state and federal fair housing laws.
A63: File Name: | D63: Fair Housing Legal Opinion | L63: Project-specific legal opinion with supporting materials describing how Project complies. | AF63: Uploaded to FAAST?
A64: Americans with Disabilities Act
A65: Sponsor certifies Project will comply with Americans with Disabilities Act and its implementing regulations.
A66: Violence Against Women Act
A67: Sponsor certifies Project will comply with Violence Against Women Act.
A68: Pet Friendly Housing Act
A69: Sponsor certifies that residents of the housing development will be authorized to own or otherwise maintain one or more common household pets pursuant to the Pet Friendly Housing Act of 2017 (California Health & Safety Code, Section 50466)
A70: Davis-Bacon Wage & State Prevailing Wage Requirements
A71: Sponsor certifies the Project will comply with Davis-Bacon wage requirements and State prevailing wage law, as set forth in Labor Code Section 1720 et seq., which requires the payment of prevailing wages unless the Project meets one of the exceptions of Labor Code 1720(c) as determined by the Department of Industrial Relations (DIR). Sponsors are urged to seek professional advice as to how to comply with State prevailing wage law.
A72: Tax Credits (TC)
A73: Select appropriate entry for each item
A74: Type (Select One) | H74: Federal | L74: Proposed Equity Investor Contribution ($) | Z74: Anticipated TC Factor | AH74: App. Rate
H75: State | L75: Proposed Equity Investor Contribution ($) | Z75: Anticipated TC Factor | AH75: App. Rate
A76: Timeframe for Applying for 4% TC | J76: Proposed Month | S76: Proposed Year
A77: Timeframe for Applying for 9% TC | J77: Proposed Round | S77: Proposed Year
A78: If already awarded, enter date of TCAC Reservation
A79: File Name: | D79: Tax Credit Reservation | L79: If HD has already received a tax credit reservation, attach documentation. | AF79: Uploaded to FAAST?
A80: What covenants or regulatory agreements are already on title?
A81: What covenants or regulatory agreements are anticipated?
A82: Required HD Milestones
AF83: Milestone Date
A84: Executed binding agreement between Applicant and Developer of the HD detailing the terms and conditions of the development.
A85: Submission of Final Construction Drawings and Specifications to the appropriate local building department or permitting authority.
A86: Commencement of construction.
A87: Construction complete and the filing of the Notice of Completion.
A88: Program funds fully disbursed.

Sheet IP Eligibility and Threshold
A1: Eligibility and Threshold (IPs) §103, §105, §106 and §109 | AK1: =#REF! -> 
A2: §103(c) Explain how the IP is necessary for the development of the HD and how it will facilitate connections between the HD and the Qualifying Transit Station.
A4: §103(c)(1) Will the IP include capital improvements required by a local governmental entity, Transit Agency, or special district as a condition for the development of the HD? If yes, describe the qualifying capital improvements and identify the entity requiring the improvements.
A6: §103(c)(2) Will the IP capital improvements enhance public pedestrian or bicycle access from HDs to the Qualifying Transit Station? If yes, describe the qualifying improvements, the Qualifying Transit Station and how the improvements will enhance public pedestrian or bicycle access.
A8: §105(c) Will the IP only include eligible costs and will required replacement of Transit Station parking spaces be $50,000 per space or less? If no, explain below.
A10: §105(d) We certify the IP funded costs do not include any of the following ineligible costs (1) Parking spaces and structures except those in (c)(4) and (5) above. (2) Costs of site acquisition for housing and mixed use structural improvements. (3) Costs of housing or mixed use structures. (4) Soft costs related to ineligible costs. (5) In lieu fees for local inclusionary programs. (6) Purchasing transit-related vehicles or vehicles used for supportive services. (7) Costs related to capital improvements to public or private schools.
A11: §106(b)(3) We certify the IP Grant will not result in us realizing a profit that exceeds the commercially reasonable range for other developments of similar size and level of risk and that Program funds are reasonably necessary for Project feasibility and no other source of compatible funding is reasonably available.
A12: §109(b)(5) You certify construction of the IP has not commenced as of the application due date? If No (construction has commenced), explain below.
A14: §109(b)(6) You certify the IP is infeasible without Program funds and Program funds will not supplant other available funds?
A15: §109(b)(7) Does Applicant have Site Control for the IP Project? If yes, enter form of Site Control and the most recent Site Control document execution date below. Site Control §102(ss).
A16: Form of Site Control §102(ss) | Z16: Most recent document execution date
A17: File Name: | D17: IP Site Control | L17: Documentation to demonstrate the form of Site Control indicated above. | AF17: Uploaded to FAAST?
A18: §109(b)(8) On the application due date, will the housing element for the jurisdiction in which the IP is located be in substantial compliance with the requirements of California's Housing Element Law (Gov. Code §65580, Ch. 3 of Div. I of Title VII)?
A19: §109(b)(9) Is IP in a Locality that has submitted its housing element annual progress reports (Gov. Code §65400) for the current or prior reporting year?
A20: §109(b)(10) and (11) Is this application and supporting documentation complete to assess Project feasibility and compliance with Program requirements?
A21: §109(b)(12) Is approval by a local public works department, or its equivalent, required for the IP? If yes, submit statement from department requiring approval.
A22: File Name: | D22: IP Local Govt Letter | L22: Statement indicating IP is consistent with all applicable local rules, regulations, codes, policies and plans enforced or implemented by the approving department. | AF22: Uploaded to FAAST?

Sheet Unit Mix and Loan Amount
A1: Unit Mix and Maximum RHD Loan - Maximum IP Grant §106 | AK1: =#REF! -> 
A2: Total HD Units enter units with unique characteristics on separate rows. Indicate in column L if units received funding from another HCD Program. These units are prohibited from receiving TOD RHD Loan funds.
A3: A | C3: B | E3: C | I3: D | K3: E | M3: F | O3: G | Q3: H | S3: I | U3: J | W3: K | Y3: L | AA3: M | AD3: N | AG3: O | AJ3: P
A4: # of Bedrms | C4: Unit Type | E4: Select AMI %, Manager or Market for all units in HD | I4: Total Units | K4: Rental Units | M4: HO Units | O4: Restricted Units | Q4: Unrestricted Units | S4: Assisted Units | U4: Affordable Rental Units | W4: Affordable HO Units | Y4: Other HCD Source 106(a)(3) | AA4: RHD Per Unit Loan Amount | AD4: IP Per Unit Grant Amount | AG4: Maximum RHD Loan Amount | AJ4: Maximum IP Grant Amount | AM4: Affordability | AN4: Rental Restricted | AO4: Bedrooms
K5: =IF(AND(C5="Rental",I5<>0),I5,"") ->  | M5: =IF(AND(C5="HO",I5<>0),I5,"") ->  | O5: =IF(OR(E5="",I5="",E5="Market",E5="HO 60% AMI",E5="HO 120% AMI",E5="Manager"),"",I5) ->  | Q5: =IF(I5<>O5,I5,"") ->  | U5: =IF(OR(C5="HO",I5=0),"",IF(OR(E5="none",E5="",E5="HO 60% AMI",E5="HO 120% AMI",E5="Manager",E5="Market"),"",I5)) ->  | W5: =IF(OR(C5="Rental",I5=0),"",IF(OR(E5="none",E5=""),"",IF(OR(E5="HO 60% AMI",E5="HO 120% AMI"),I5,""))) ->  | AA5: =IF(OR(Overview!$W$5="Infrastructure Project grant",Overview!$W$5=""),"",IF(OR(C5="HO",E5="Market",E5="HO 60% AMI",E5="HO 120% AMI",Y5<>""),"",IF(AND(E5<>0,E5<>"HO 60% AMI",E5<>"HO 120%"),INDEX('RHD Loan Limits'!$B$3:$F$582,MATCH(AQ5,'RHD Loan Limits'!$A$3:$A$582,0),MATCH(AO5,'RHD Loan Limits'!$B$2:$F$2,0)),""))) ->  | AD5: =IF(I5="","",IF(O5<>"",50000,35000)) ->  | AG5: =IF(AA5="","",K5*AA5) ->  | AJ5: =IF(I5="","",I5*AD5) ->  | AM5: =IF(AND(C5="Rental",E5<>"HO 60% AMI",E5<>"HO 120% AMI",E5<>"Manager",E5<>"Market"),O5*LEFT(E5,3),0) -> 0 | AN5: =IF(AND(C5="Rental",E5<>"HO 60% AMI",E5<>"HO 120% AMI",E5<>"Manager",E5<>"Market"),O5,0) -> 0 | AO5: =IF(A5>=4,"4+",A5) -> 0 | AP5: =IF(E5="Manager","60%",LEFT(E5,3)) ->  | AQ5: =IF(AP5="Man",CONCATENATE(Overview!$AA$9,"60%"),CONCATENATE(Overview!$AA$9,AP5)) -> 
K6: =IF(AND(C6="Rental",I6<>0),I6,"") ->  | M6: =IF(AND(C6="HO",I6<>0),I6,"") ->  | O6: =IF(OR(E6="",I6="",E6="Market",E6="HO 60% AMI",E6="HO 120% AMI",E6="Manager"),"",I6) ->  | U6: =IF(OR(C6="HO",I6=0),"",IF(OR(E6="none",E6="",E6="HO 60% AMI",E6="HO 120% AMI",E6="Manager",E6="Market"),"",I6)) ->  | W6: =IF(OR(C6="Rental",I6=0),"",IF(OR(E6="none",E6=""),"",IF(OR(E6="HO 60% AMI",E6="HO 120% AMI"),I6,""))) ->  | AA6: =IF(OR(Overview!$W$5="Infrastructure Project grant",Overview!$W$5=""),"",IF(OR(C6="HO",E6="Market",E6="HO 60% AMI",E6="HO 120% AMI",Y6<>""),"",IF(AND(E6<>0,E6<>"HO 60% AMI",E6<>"HO 120%"),INDEX('RHD Loan Limits'!$B$3:$F$582,MATCH(AQ6,'RHD Loan Limits'!$A$3:$A$582,0),MATCH(AO6,'RHD Loan Limits'!$B$2:$F$2,0)),""))) ->  | AG6: =IF(AA6="","",K6*AA6) ->  | AM6: =IF(AND(C6="Rental",E6<>"HO 60% AMI",E6<>"HO 120% AMI",E6<>"Manager",E6<>"Market"),O6*LEFT(E6,3),0) -> 0 | AN6: =IF(AND(C6="Rental",E6<>"HO 60% AMI",E6<>"HO 120% AMI",E6<>"Manager",E6<>"Market"),O6,0) -> 0 | AO6: 0 | AP6: =IF(C6="Manager","60%",LEFT(E6,3)) ->  | AQ6: =IF(AP6="Man",CONCATENATE(Overview!$AA$9,"60%"),CONCATENATE(Overview!$AA$9,AP6)) -> 
AA7: =IF(OR(Overview!$W$5="Infrastructure Project grant",Overview!$W$5=""),"",IF(OR(C7="HO",E7="Market",E7="HO 60% AMI",E7="HO 120% AMI",Y7<>""),"",IF(AND(E7<>0,E7<>"HO 60% AMI",E7<>"HO 120%"),INDEX('RHD Loan Limits'!$B$3:$F$582,MATCH(AQ7,'RHD Loan Limits'!$A$3:$A$582,0),MATCH(AO7,'RHD Loan Limits'!$B$2:$F$2,0)),""))) ->  | AM7: 0 | AN7: 0 | AO7: 0 | AQ7: =IF(AP7="Man",CONCATENATE(Overview!$AA$9,"60%"),CONCATENATE(Overview!$AA$9,AP7)) -> 
AA8: =IF(OR(Overview!$W$5="Infrastructure Project grant",Overview!$W$5=""),"",IF(OR(C8="HO",E8="Market",E8="HO 60% AMI",E8="HO 120% AMI",Y8<>""),"",IF(AND(E8<>0,E8<>"HO 60% AMI",E8<>"HO 120%"),INDEX('RHD Loan Limits'!$B$3:$F$582,MATCH(AQ8,'RHD Loan Limits'!$A$3:$A$582,0),MATCH(AO8,'RHD Loan Limits'!$B$2:$F$2,0)),""))) ->  | AM8: 0 | AN8: 0 | AO8: 0 | AQ8: =IF(AP8="Man",CONCATENATE(Overview!$AA$9,"60%"),CONCATENATE(Overview!$AA$9,AP8)) -> 
AA9: =IF(OR(Overview!$W$5="Infrastructure Project grant",Overview!$W$5=""),"",IF(OR(C9="HO",E9="Market",E9="HO 60% AMI",E9="HO 120% AMI",Y9<>""),"",IF(AND(E9<>0,E9<>"HO 60% AMI",E9<>"HO 120%"),INDEX('RHD Loan Limits'!$B$3:$F$582,MATCH(AQ9,'RHD Loan Limits'!$A$3:$A$582,0),MATCH(AO9,'RHD Loan Limits'!$B$2:$F$2,0)),""))) ->  | AM9: 0 | AN9: 0 | AO9: 0 | AQ9: =IF(AP9="Man",CONCATENATE(Overview!$AA$9,"60%"),CONCATENATE(Overview!$AA$9,AP9)) -> 
K10: =IF(AND(C10="Rental",I10<>0),I10,"") ->  | M10: =IF(AND(C10="HO",I10<>0),I10,"") ->  | AA10: =IF(OR(Overview!$W$5="Infrastructure Project grant",Overview!$W$5=""),"",IF(OR(C10="HO",E10="Market",E10="HO 60% AMI",E10="HO 120% AMI",Y10<>""),"",IF(AND(E10<>0,E10<>"HO 60% AMI",E10<>"HO 120%"),INDEX('RHD Loan Limits'!$B$3:$F$582,MATCH(AQ10,'RHD Loan Limits'!$A$3:$A$582,0),MATCH(AO10,'RHD Loan Limits'!$B$2:$F$2,0)),""))) ->  | AM10: 0 | AN10: 0 | AO10: 0 | AQ10: =IF(AP10="Man",CONCATENATE(Overview!$AA$9,"60%"),CONCATENATE(Overview!$AA$9,AP10)) -> 
M11: =IF(AND(C11="HO",I11<>0),I11,"") ->  | AA11: =IF(OR(Overview!$W$5="Infrastructure Project grant",Overview!$W$5=""),"",IF(OR(C11="HO",E11="Market",E11="HO 60% AMI",E11="HO 120% AMI",Y11<>""),"",IF(AND(E11<>0,E11<>"HO 60% AMI",E11<>"HO 120%"),INDEX('RHD Loan Limits'!$B$3:$F$582,MATCH(AQ11,'RHD Loan Limits'!$A$3:$A$582,0),MATCH(AO11,'RHD Loan Limits'!$B$2:$F$2,0)),""))) ->  | AM11: 0 | AN11: 0 | AO11: 0 | AQ11: =IF(AP11="Man",CONCATENATE(Overview!$AA$9,"60%"),CONCATENATE(Overview!$AA$9,AP11)) -> 
AA12: =IF(OR(Overview!$W$5="Infrastructure Project grant",Overview!$W$5=""),"",IF(OR(C12="HO",E12="Market",E12="HO 60% AMI",E12="HO 120% AMI",Y12<>""),"",IF(AND(E12<>0,E12<>"HO 60% AMI",E12<>"HO 120%"),INDEX('RHD Loan Limits'!$B$3:$F$582,MATCH(AQ12,'RHD Loan Limits'!$A$3:$A$582,0),MATCH(AO12,'RHD Loan Limits'!$B$2:$F$2,0)),""))) ->  | AM12: 0 | AN12: 0 | AO12: 0 | AQ12: =IF(AP12="Man",CONCATENATE(Overview!$AA$9,"60%"),CONCATENATE(Overview!$AA$9,AP12)) -> 
AA13: =IF(OR(Overview!$W$5="Infrastructure Project grant",Overview!$W$5=""),"",IF(OR(C13="HO",E13="Market",E13="HO 60% AMI",E13="HO 120% AMI",Y13<>""),"",IF(AND(E13<>0,E13<>"HO 60% AMI",E13<>"HO 120%"),INDEX('RHD Loan Limits'!$B$3:$F$582,MATCH(AQ13,'RHD Loan Limits'!$A$3:$A$582,0),MATCH(AO13,'RHD Loan Limits'!$B$2:$F$2,0)),""))) ->  | AM13: 0 | AN13: 0 | AO13: 0 | AQ13: =IF(AP13="Man",CONCATENATE(Overview!$AA$9,"60%"),CONCATENATE(Overview!$AA$9,AP13)) -> 
AA14: =IF(OR(Overview!$W$5="Infrastructure Project grant",Overview!$W$5=""),"",IF(OR(C14="HO",E14="Market",E14="HO 60% AMI",E14="HO 120% AMI",Y14<>""),"",IF(AND(E14<>0,E14<>"HO 60% AMI",E14<>"HO 120%"),INDEX('RHD Loan Limits'!$B$3:$F$582,MATCH(AQ14,'RHD Loan Limits'!$A$3:$A$582,0),MATCH(AO14,'RHD Loan Limits'!$B$2:$F$2,0)),""))) ->  | AM14: 0 | AN14: 0 | AO14: 0 | AQ14: =IF(AP14="Man",CONCATENATE(Overview!$AA$9,"60%"),CONCATENATE(Overview!$AA$9,AP14)) -> 
AA15: =IF(OR(Overview!$W$5="Infrastructure Project grant",Overview!$W$5=""),"",IF(OR(C15="HO",E15="Market",E15="HO 60% AMI",E15="HO 120% AMI",Y15<>""),"",IF(AND(E15<>0,E15<>"HO 60% AMI",E15<>"HO 120%"),INDEX('RHD Loan Limits'!$B$3:$F$582,MATCH(AQ15,'RHD Loan Limits'!$A$3:$A$582,0),MATCH(AO15,'RHD Loan Limits'!$B$2:$F$2,0)),""))) ->  | AM15: 0 | AN15: 0 | AO15: 0 | AQ15: =IF(AP15="Man",CONCATENATE(Overview!$AA$9,"60%"),CONCATENATE(Overview!$AA$9,AP15)) -> 
AA16: =IF(OR(Overview!$W$5="Infrastructure Project grant",Overview!$W$5=""),"",IF(OR(C16="HO",E16="Market",E16="HO 60% AMI",E16="HO 120% AMI",Y16<>""),"",IF(AND(E16<>0,E16<>"HO 60% AMI",E16<>"HO 120%"),INDEX('RHD Loan Limits'!$B$3:$F$582,MATCH(AQ16,'RHD Loan Limits'!$A$3:$A$582,0),MATCH(AO16,'RHD Loan Limits'!$B$2:$F$2,0)),""))) ->  | AM16: 0 | AN16: 0 | AO16: 0 | AQ16: =IF(AP16="Man",CONCATENATE(Overview!$AA$9,"60%"),CONCATENATE(Overview!$AA$9,AP16)) -> 
AA17: =IF(OR(Overview!$W$5="Infrastructure Project grant",Overview!$W$5=""),"",IF(OR(C17="HO",E17="Market",E17="HO 60% AMI",E17="HO 120% AMI",Y17<>""),"",IF(AND(E17<>0,E17<>"HO 60% AMI",E17<>"HO 120%"),INDEX('RHD Loan Limits'!$B$3:$F$582,MATCH(AQ17,'RHD Loan Limits'!$A$3:$A$582,0),MATCH(AO17,'RHD Loan Limits'!$B$2:$F$2,0)),""))) ->  | AM17: 0 | AN17: 0 | AO17: 0 | AQ17: =IF(AP17="Man",CONCATENATE(Overview!$AA$9,"60%"),CONCATENATE(Overview!$AA$9,AP17)) -> 
AA18: =IF(OR(Overview!$W$5="Infrastructure Project grant",Overview!$W$5=""),"",IF(OR(C18="HO",E18="Market",E18="HO 60% AMI",E18="HO 120% AMI",Y18<>""),"",IF(AND(E18<>0,E18<>"HO 60% AMI",E18<>"HO 120%"),INDEX('RHD Loan Limits'!$B$3:$F$582,MATCH(AQ18,'RHD Loan Limits'!$A$3:$A$582,0),MATCH(AO18,'RHD Loan Limits'!$B$2:$F$2,0)),""))) ->  | AM18: 0 | AN18: 0 | AO18: 0 | AQ18: =IF(AP18="Man",CONCATENATE(Overview!$AA$9,"60%"),CONCATENATE(Overview!$AA$9,AP18)) -> 
AA19: =IF(OR(Overview!$W$5="Infrastructure Project grant",Overview!$W$5=""),"",IF(OR(C19="HO",E19="Market",E19="HO 60% AMI",E19="HO 120% AMI",Y19<>""),"",IF(AND(E19<>0,E19<>"HO 60% AMI",E19<>"HO 120%"),INDEX('RHD Loan Limits'!$B$3:$F$582,MATCH(AQ19,'RHD Loan Limits'!$A$3:$A$582,0),MATCH(AO19,'RHD Loan Limits'!$B$2:$F$2,0)),""))) ->  | AM19: 0 | AN19: 0 | AO19: 0 | AQ19: =IF(AP19="Man",CONCATENATE(Overview!$AA$9,"60%"),CONCATENATE(Overview!$AA$9,AP19)) -> 
AA20: =IF(OR(Overview!$W$5="Infrastructure Project grant",Overview!$W$5=""),"",IF(OR(C20="HO",E20="Market",E20="HO 60% AMI",E20="HO 120% AMI",Y20<>""),"",IF(AND(E20<>0,E20<>"HO 60% AMI",E20<>"HO 120%"),INDEX('RHD Loan Limits'!$B$3:$F$582,MATCH(AQ20,'RHD Loan Limits'!$A$3:$A$582,0),MATCH(AO20,'RHD Loan Limits'!$B$2:$F$2,0)),""))) ->  | AM20: 0 | AN20: 0 | AO20: 0 | AQ20: =IF(AP20="Man",CONCATENATE(Overview!$AA$9,"60%"),CONCATENATE(Overview!$AA$9,AP20)) -> 
AA21: =IF(OR(Overview!$W$5="Infrastructure Project grant",Overview!$W$5=""),"",IF(OR(C21="HO",E21="Market",E21="HO 60% AMI",E21="HO 120% AMI",Y21<>""),"",IF(AND(E21<>0,E21<>"HO 60% AMI",E21<>"HO 120%"),INDEX('RHD Loan Limits'!$B$3:$F$582,MATCH(AQ21,'RHD Loan Limits'!$A$3:$A$582,0),MATCH(AO21,'RHD Loan Limits'!$B$2:$F$2,0)),""))) ->  | AM21: 0 | AN21: 0 | AO21: 0 | AQ21: =IF(AP21="Man",CONCATENATE(Overview!$AA$9,"60%"),CONCATENATE(Overview!$AA$9,AP21)) -> 
AA22: =IF(OR(Overview!$W$5="Infrastructure Project grant",Overview!$W$5=""),"",IF(OR(C22="HO",E22="Market",E22="HO 60% AMI",E22="HO 120% AMI",Y22<>""),"",IF(AND(E22<>0,E22<>"HO 60% AMI",E22<>"HO 120%"),INDEX('RHD Loan Limits'!$B$3:$F$582,MATCH(AQ22,'RHD Loan Limits'!$A$3:$A$582,0),MATCH(AO22,'RHD Loan Limits'!$B$2:$F$2,0)),""))) ->  | AM22: 0 | AN22: 0 | AO22: 0 | AQ22: =IF(AP22="Man",CONCATENATE(Overview!$AA$9,"60%"),CONCATENATE(Overview!$AA$9,AP22)) -> 
AA23: =IF(OR(Overview!$W$5="Infrastructure Project grant",Overview!$W$5=""),"",IF(OR(C23="HO",E23="Market",E23="HO 60% AMI",E23="HO 120% AMI",Y23<>""),"",IF(AND(E23<>0,E23<>"HO 60% AMI",E23<>"HO 120%"),INDEX('RHD Loan Limits'!$B$3:$F$582,MATCH(AQ23,'RHD Loan Limits'!$A$3:$A$582,0),MATCH(AO23,'RHD Loan Limits'!$B$2:$F$2,0)),""))) ->  | AM23: 0 | AN23: 0 | AO23: 0 | AQ23: =IF(AP23="Man",CONCATENATE(Overview!$AA$9,"60%"),CONCATENATE(Overview!$AA$9,AP23)) -> 
AA24: =IF(OR(Overview!$W$5="Infrastructure Project grant",Overview!$W$5=""),"",IF(OR(C24="HO",E24="Market",E24="HO 60% AMI",E24="HO 120% AMI",Y24<>""),"",IF(AND(E24<>0,E24<>"HO 60% AMI",E24<>"HO 120%"),INDEX('RHD Loan Limits'!$B$3:$F$582,MATCH(AQ24,'RHD Loan Limits'!$A$3:$A$582,0),MATCH(AO24,'RHD Loan Limits'!$B$2:$F$2,0)),""))) ->  | AM24: 0 | AN24: 0 | AO24: 0 | AQ24: =IF(AP24="Man",CONCATENATE(Overview!$AA$9,"60%"),CONCATENATE(Overview!$AA$9,AP24)) -> 
AA25: =IF(OR(Overview!$W$5="Infrastructure Project grant",Overview!$W$5=""),"",IF(OR(C25="HO",E25="Market",E25="HO 60% AMI",E25="HO 120% AMI",Y25<>""),"",IF(AND(E25<>0,E25<>"HO 60% AMI",E25<>"HO 120%"),INDEX('RHD Loan Limits'!$B$3:$F$582,MATCH(AQ25,'RHD Loan Limits'!$A$3:$A$582,0),MATCH(AO25,'RHD Loan Limits'!$B$2:$F$2,0)),""))) ->  | AM25: 0 | AN25: 0 | AO25: 0 | AQ25: =IF(AP25="Man",CONCATENATE(Overview!$AA$9,"60%"),CONCATENATE(Overview!$AA$9,AP25)) -> 
AA26: =IF(OR(Overview!$W$5="Infrastructure Project grant",Overview!$W$5=""),"",IF(OR(C26="HO",E26="Market",E26="HO 60% AMI",E26="HO 120% AMI",Y26<>""),"",IF(AND(E26<>0,E26<>"HO 60% AMI",E26<>"HO 120%"),INDEX('RHD Loan Limits'!$B$3:$F$582,MATCH(AQ26,'RHD Loan Limits'!$A$3:$A$582,0),MATCH(AO26,'RHD Loan Limits'!$B$2:$F$2,0)),""))) ->  | AM26: 0 | AN26: 0 | AO26: 0 | AQ26: =IF(AP26="Man",CONCATENATE(Overview!$AA$9,"60%"),CONCATENATE(Overview!$AA$9,AP26)) -> 
AA27: =IF(OR(Overview!$W$5="Infrastructure Project grant",Overview!$W$5=""),"",IF(OR(C27="HO",E27="Market",E27="HO 60% AMI",E27="HO 120% AMI",Y27<>""),"",IF(AND(E27<>0,E27<>"HO 60% AMI",E27<>"HO 120%"),INDEX('RHD Loan Limits'!$B$3:$F$582,MATCH(AQ27,'RHD Loan Limits'!$A$3:$A$582,0),MATCH(AO27,'RHD Loan Limits'!$B$2:$F$2,0)),""))) ->  | AM27: 0 | AN27: 0 | AO27: 0 | AQ27: =IF(AP27="Man",CONCATENATE(Overview!$AA$9,"60%"),CONCATENATE(Overview!$AA$9,AP27)) -> 
AA28: =IF(OR(Overview!$W$5="Infrastructure Project grant",Overview!$W$5=""),"",IF(OR(C28="HO",E28="Market",E28="HO 60% AMI",E28="HO 120% AMI",Y28<>""),"",IF(AND(E28<>0,E28<>"HO 60% AMI",E28<>"HO 120%"),INDEX('RHD Loan Limits'!$B$3:$F$582,MATCH(AQ28,'RHD Loan Limits'!$A$3:$A$582,0),MATCH(AO28,'RHD Loan Limits'!$B$2:$F$2,0)),""))) ->  | AM28: 0 | AN28: 0 | AO28: 0 | AQ28: =IF(AP28="Man",CONCATENATE(Overview!$AA$9,"60%"),CONCATENATE(Overview!$AA$9,AP28)) -> 
AA29: =IF(OR(Overview!$W$5="Infrastructure Project grant",Overview!$W$5=""),"",IF(OR(C29="HO",E29="Market",E29="HO 60% AMI",E29="HO 120% AMI",Y29<>""),"",IF(AND(E29<>0,E29<>"HO 60% AMI",E29<>"HO 120%"),INDEX('RHD Loan Limits'!$B$3:$F$582,MATCH(AQ29,'RHD Loan Limits'!$A$3:$A$582,0),MATCH(AO29,'RHD Loan Limits'!$B$2:$F$2,0)),""))) ->  | AM29: 0 | AN29: 0 | AO29: 0 | AQ29: =IF(AP29="Man",CONCATENATE(Overview!$AA$9,"60%"),CONCATENATE(Overview!$AA$9,AP29)) -> 
AA30: =IF(OR(Overview!$W$5="Infrastructure Project grant",Overview!$W$5=""),"",IF(OR(C30="HO",E30="Market",E30="HO 60% AMI",E30="HO 120% AMI",Y30<>""),"",IF(AND(E30<>0,E30<>"HO 60% AMI",E30<>"HO 120%"),INDEX('RHD Loan Limits'!$B$3:$F$582,MATCH(AQ30,'RHD Loan Limits'!$A$3:$A$582,0),MATCH(AO30,'RHD Loan Limits'!$B$2:$F$2,0)),""))) ->  | AM30: 0 | AN30: 0 | AO30: 0 | AQ30: =IF(AP30="Man",CONCATENATE(Overview!$AA$9,"60%"),CONCATENATE(Overview!$AA$9,AP30)) -> 
I31: =SUM(I5:J30) -> 0 | K31: =SUM(K5:L30) -> 0 | M31: 0 | O31: 0 | Q31: 0 | S31: 0 | U31: 0 | W31: 0 | AG31: =IF(SUM(AG5:AI30)>10000000,10000000,SUM(AG5:AI30)) -> 0 | AJ31: =IF(SUM(AJ5:AL30)>5000000,5000000,SUM(AJ5:AL30)) -> 0 | AM31: =SUM(AM5:AM30) -> 0 | AN31: =SUM(AN5:AN30) -> 0

Sheet Dev Sources
A1: HD and IP Sources of Funds | S1: ='TOD Coverpage'!B43 -> 2020-05-29
A2: See §102(p) for an explanation/definition of Enforceable Funding Commitments (EFCs)
A3: HD and IP Construction Period Sources of Funds
B4: Committed by Application Due Date? | C4: Rental vs Owner | D4: HD or IP Source | E4: Source Name (listed in order of lien priority) | H4: Source Type | I4: Local Support | J4: Lien No. | K4: Residential Amount | L4: Commercial Amount | M4: Total Amount | N4: Interest Rate | O4: Required Payment | P4: Loan Term (months) | Q4: Def. Cost Amount | R4: Deferred Cost Description
A6: 1 | B6: Yes | C6: Rental | D6: HD | E6: TOD RHD Loan | H6: State-HCD | I6: No | M6: =K6+L6 -> 0
A7: 2 | B7: Yes | D7: IP | E7: TOD IP Grant | H7: State-HCD | I7: No | M7: =K7+L7 -> 0
A8: 3 | M8: 0
A9: 4 | M9: 0
A10: 5 | M10: 0
A11: 6 | M11: 0
A12: 7 | M12: 0
A13: 8 | M13: 0
A14: 9 | M14: 0
A15: 10 | M15: 0
A16: 11 | M16: 0
A17: 12 | M17: 0
A18: 13 | M18: 0
A19: 14 | M19: 0
A20: 15 | M20: 0
A21: 16 | M21: 0
A22: 17 | M22: 0
A23: 18 | M23: 0
A24: 19 | M24: 0
A25: 20 | E25: Deferred Costs (detail at right) | K25: =Q27 -> 0 | M25: 0
A26: 21 | B26: Yes | E26: Equity Investor | M26: 0
A27: ='Unit Mix and Loan Amount'!K30 ->  | C27: =SUMPRODUCT(($B$6:$B$26="Yes")*($M$6:$M$26)) -> 0 | D27: <Total funds committed | F27: =IF($M$27=0,0,C27/($M$27-$K$25)) -> 0 | G27: <% Funds committed | J27: TOTALS | K27: =SUM(K6:K26) -> 0 | L27: =SUM(L6:L25) -> 0 | M27: =SUM(M6:M26) -> 0 | Q27: =SUM(Q6:Q25) -> 0
A28: ='Unit Mix and Loan Amount'!M31 -> 0 | B28: HO Units | C28: =SUMPRODUCT(($B$8:$B$26="Yes")*($M$8:$M$26)) -> 0 | D28: <Total non-TOD committed | F28: =IF($M$27=0,0,C28/($M$27-$K$25)) -> 0 | G28: <% of non-HCD funds committed
A29: ='Unit Mix and Loan Amount'!K31 -> 0 | B29: Rental Units | C29: =SUMPRODUCT(($B$6:$B$26="Yes")*($D$6:$D$26="RHD")*($M$6:$M$26)) -> 0 | D29: <Total HD committed | F29: =IF($M$27=0,0,C29/($M$27-$K$25)) -> 0
C30: =SUMPRODUCT(($B$6:$B$26="Yes")*($D$6:$D$26="IP")*($M$6:$M$26)) -> 0 | D30: <Total IP committed | F30: =IF($M$27=0,0,C30/'Dev Budget'!R218) -> 0 | G30: <% Funds committed
A31: HD and IP Permanent Sources of Funds
B32: Committed by Application Due Date? | C32: HD or IP Source | D32: Source Name (listed in order of lien priority) | G32: Source Type | H32: Local Support | I32: Lien No. | J32: Residential Amount | K32: Commercial Amount | L32: Total Amount | M32: Interest Rate Type | N32: Interest Rate | O32: Repayment Terms Type | P32: Repayment Due in (yrs) | Q32: Amortization Period (yrs.) | R32: Required Residential Debt Service | S32: Required Commercial Debt Service | T32: Balloon?
A34: 1 | B34: Yes | C34: HD | D34: TOD RHD Loan | G34: State-HCD | H34: No | L34: =J34+K34 -> 0 | T34: No
A35: 2 | B35: Yes | C35: IP | D35: TOD IP Grant | G35: State-HCD | H35: No | L35: =J35+K35 -> 0
A36: 3 | L36: 0
A37: 4 | L37: 0
A38: 5 | L38: 0
A39: 6 | L39: 0
A40: 7 | L40: 0
A41: 8 | L41: 0
A42: 9 | L42: 0
A43: 10 | L43: 0
A44: 11 | L44: 0
A45: 12 | L45: 0
A46: 13 | L46: 0
A47: 14 | L47: 0
A48: 15 | D48: Deferred Costs | L48: 0
A49: 16 | B49: Yes | D49: Equity Investor | L49: 0 | T49: =COUNTIF(B36:B48,"Yes") -> 0
C50: =SUMPRODUCT(($B$36:$B$49="Yes")*($J$36:$J$49)) -> 0 | D50: <Total HD and IP non-TOD funds committed | G50: TOTALS | J50: =SUM(J34:J49) -> 0 | K50: =SUM(K34:K49) -> 0 | L50: =SUM(L34:L49) -> 0 | M50: TOTALS | R50: =SUM(R34:R49) -> 0 | S50: =SUM(S34:S49) -> 0 | T50: =COUNTIF(B36:B48,"Yes") -> 0
A51: FAAST File: | E51: EFC HD1; EFC HD2; EFC HD3; etc. | J51: HD Enforceable Funding Commitments. | O51: Files Uploaded?
A52: FAAST File: | E52: EFC IP1; EFC IP2; EFC IP3; etc. | J52: IP Enforceable Funding Commitments. | O52: Files Uploaded?
A53: Applicant Comments: Include a description of unusual or extraordinary circumstances that have resulted in higher than expected project costs and provide a justification as to why these costs are reasonable.

Sheet Dev Budget
A1: HD and IP Permanent Sources of Funds | U1: Commercial Sources
A2: USES OF FUNDS | B2: ='Dev Sources'!$D$35 -> TOD IP Grant | C2: ='Dev Sources'!$D$34 -> TOD RHD Loan | D2: ='Dev Sources'!$D$36 -> 0 | E2: ='Dev Sources'!$D$37 -> 0 | F2: ='Dev Sources'!$D$38 -> 0 | G2: ='Dev Sources'!$D$39 -> 0 | H2: ='Dev Sources'!$D$40 -> 0 | I2: ='Dev Sources'!$D$41 -> 0 | J2: ='Dev Sources'!$D$42 -> 0 | K2: ='Dev Sources'!$D$43 -> 0 | L2: ='Dev Sources'!$D$44 -> 0 | M2: ='Dev Sources'!$D$45 -> 0 | N2: ='Dev Sources'!$D$46 -> 0 | O2: ='Dev Sources'!$D$47 -> 0 | P2: ='Dev Sources'!$D$48 -> Deferred Costs | Q2: ='Dev Sources'!$D$49 -> Equity Investor | R2: Total Residential Sources/Costs | S2: =IF('HD Eligibility and Threshold'!F74="","30% PVC for New Const/Rehab",IF('HD Eligibility and Threshold'!F74=0.09,"70% PVC for New Const/Rehab",IF('HD Eligibility and Threshold'!F74=0.04,"30% PVC for New Const/Rehab","N/A - No tax credits per Dev Sources"))) -> 30% PVC for New Const/Rehab | T2: =IF('HD Eligibility and Threshold'!F74="","30% PVC for Acquisition",IF('HD Eligibility and Threshold'!F74=0.09,"30% PVC for Acquisition",IF('HD Eligibility and Threshold'!F74=0.04,"30% PVC for Acquisition","N/A - No tax credits per Dev Sources"))) -> 30% PVC for Acquisition | U2: Total Commercial Sources/Costs | V2: Source Name: | W2: Source Name:
A4: Housing Development (HD)
A5: LAND COST/ACQUISITION
A6: Land Cost or Value | R6: =SUM(C6:Q6) -> 0 | U6: =V6+W6 -> 0
A7: Demolition | R7: =SUM(C7:Q7) -> 0 | U7: =V7+W7 -> 0
A8: Legal | R8: =SUM(C8:Q8) -> 0 | U8: 0
A9: Land Lease Rent Prepayment | R9: =SUM(C9:Q9) -> 0 | U9: 0
A10: Total Land Cost or Value | C10: =SUM(C6:C9) -> 0 | D10: 0 | E10: 0 | F10: 0 | G10: 0 | H10: 0 | I10: 0 | J10: 0 | K10: 0 | L10: 0 | M10: 0 | N10: 0 | O10: 0 | P10: 0 | Q10: 0 | R10: 0 | U10: 0 | V10: =SUM(V6:V9) -> 0 | W10: =SUM(W6:W9) -> 0
A11: Existing Improvements Cost or Value | R11: =SUM(C11:Q11) -> 0 | U11: 0
A12: Off-Site Improvements | R12: =SUM(C12:Q12) -> 0 | U12: 0
A13: Total Acquisition Cost | C13: =SUM(C11:C12) -> 0 | D13: 0 | E13: 0 | F13: 0 | G13: 0 | H13: 0 | I13: 0 | J13: 0 | K13: 0 | L13: 0 | M13: 0 | N13: 0 | O13: 0 | P13: 0 | Q13: 0 | R13: 0 | T13: =SUM(T11:T12) -> 0 | U13: 0 | V13: =SUM(V11:V12) -> 0 | W13: =SUM(W11:W12) -> 0
A14: Total Land Cost / Acquisition Cost | C14: =SUM(C10+C13) -> 0 | D14: 0 | E14: 0 | F14: 0 | G14: 0 | H14: 0 | I14: 0 | J14: 0 | K14: 0 | L14: 0 | M14: 0 | N14: 0 | O14: 0 | P14: 0 | Q14: 0 | R14: 0 | U14: 0 | V14: =SUM(V10+V13) -> 0 | W14: =SUM(W10+W13) -> 0
A15: Predevelopment Interest/Holding Cost | R15: =SUM(C15:Q15) -> 0 | U15: 0
A16: Assumed, Accrued Interest on Existing Debt (Rehab/Acq) | R16: =SUM(C16:Q16) -> 0 | U16: 0
A17: Excess Purchase Price Over Appraisal | R17: =SUM(C17:Q17) -> 0 | U17: 0
A18: REHABILITATION
A19: Site Work | R19: =SUM(C19:Q19) -> 0 | U19: =V19+W19 -> 0
A20: Structures | R20: 0 | U20: 0
A21: General Requirements | R21: 0 | U21: 0
A22: Contractor Overhead | R22: 0 | U22: 0
A23: Contractor Profit | R23: 0 | U23: 0
A24: Prevailing Wages | R24: 0 | U24: 0
A25: General Liability Insurance | R25: 0 | U25: 0
A26: Urban Greening | R26: 0 | U26: 0
A27: Other Rehabilitation: (Specify) | R27: 0 | U27: 0
A28: Other Rehabilitation: (Specify) | R28: 0 | U28: 0
A29: Other Rehabilitation: (Specify) | R29: 0 | U29: 0
A30: Total Rehabilitation Costs | C30: =SUM(C19:C29) -> 0 | D30: 0 | E30: 0 | F30: 0 | G30: 0 | H30: 0 | I30: 0 | J30: 0 | K30: 0 | L30: 0 | M30: 0 | N30: 0 | O30: 0 | P30: 0 | Q30: 0 | R30: 0 | S30: 0 | T30: 0 | U30: 0 | V30: =SUM(V19:V29) -> 0 | W30: =SUM(W19:W29) -> 0
A31: Total Relocation Expenses | R31: =SUM(C31:Q31) -> 0 | U31: =V31+W31 -> 0
A32: NEW CONSTRUCTION
A33: Site Work | R33: =SUM(C33:Q33) -> 0 | U33: =V33+W33 -> 0
A34: Structures | R34: 0 | U34: 0
A35: General Requirements | R35: 0 | U35: 0
A36: Contractor Overhead | R36: 0 | U36: 0
A37: Contractor Profit | R37: 0 | U37: 0
A38: Prevailing Wages | R38: 0 | U38: 0
A39: General Liability Insurance | R39: 0 | U39: 0
A40: Urban Greening | R40: 0 | U40: 0
A41: Other New Construction: (Specify) | R41: 0 | U41: 0
A42: Other New Construction: (Specify) | R42: 0 | U42: 0
A43: Other New Construction: (Specify) | R43: 0 | U43: 0
A44: Total New Construction Costs | C44: =SUM(C33:C43) -> 0 | D44: 0 | E44: 0 | F44: 0 | G44: 0 | H44: 0 | I44: 0 | J44: 0 | K44: 0 | L44: 0 | M44: 0 | N44: 0 | O44: 0 | P44: 0 | Q44: 0 | R44: 0 | S44: 0 | T44: 0 | U44: 0 | V44: =SUM(V33:V43) -> 0 | W44: =SUM(W33:W43) -> 0
A45: ARCHITECTURAL FEES
A46: Design | R46: =SUM(C46:Q46) -> 0 | U46: =V46+W46 -> 0
A47: Supervision | R47: =SUM(C47:Q47) -> 0 | U47: 0
A48: Total Architectural Costs | C48: =SUM(C45:C47) -> 0 | D48: 0 | E48: 0 | F48: 0 | G48: 0 | H48: 0 | I48: 0 | J48: 0 | K48: 0 | L48: 0 | M48: 0 | N48: 0 | O48: 0 | P48: 0 | Q48: 0 | R48: 0 | S48: =SUM(S46:S47) -> 0 | T48: =SUM(T46:T47) -> 0 | U48: 0 | V48: =SUM(V45:V47) -> 0 | W48: =SUM(W45:W47) -> 0
A49: Total Survey & Engineering | R49: =SUM(C49:Q49) -> 0 | U49: 0
A50: CONSTRUCTION INTEREST & FEES
A51: Construction Loan Interest | R51: =SUM(C51:Q51) -> 0 | U51: =V51+W51 -> 0
A52: Origination Fee | R52: 0 | U52: 0
A53: Credit Enhancement/Application Fee | R53: 0 | U53: 0
A54: Bond Premium | R54: 0 | U54: 0
A55: Cost of Issuance | R55: 0 | U55: 0
A56: Title & Recording | R56: 0 | U56: 0
A57: Taxes | R57: 0 | U57: 0
A58: Insurance | R58: 0 | U58: 0
A59: Employment Reporting | R59: 0 | U59: 0
A60: Other Construction Int. & Fees: (Specify) | R60: 0 | U60: 0
A61: Other Construction Int. & Fees: (Specify) | R61: 0 | U61: =V61+W61 -> 0
A62: Other Construction Int. & Fees: (Specify) | R62: 0 | U62: 0
A63: Other Construction Int. & Fees: (Specify) | R63: 0 | U63: 0
A64: Total Construction Interest & Fees | C64: =SUM(C51:C63) -> 0 | D64: 0 | E64: 0 | F64: 0 | G64: 0 | H64: 0 | I64: 0 | J64: 0 | K64: 0 | L64: 0 | M64: 0 | N64: 0 | O64: 0 | P64: 0 | Q64: 0 | R64: 0 | S64: 0 | T64: 0 | U64: 0 | V64: =SUM(V51:V63) -> 0 | W64: =SUM(W51:W63) -> 0
A65: PERMANENT FINANCING
A66: Loan Origination Fee | R66: =SUM(C66:Q66) -> 0 | U66: =V66+W66 -> 0
A67: Credit Enhancement/Application Fee | R67: 0 | U67: 0
A68: Title & Recording | R68: 0 | U68: 0
A69: Taxes | R69: 0 | U69: 0
A70: Insurance | R70: 0 | U70: 0
A71: Other Perm. Financing Costs: (Specify) | R71: 0 | U71: 0
A72: Other Perm. Financing Costs: (Specify) | R72: 0 | U72: =V72+W72 -> 0
A73: Other Perm. Financing Costs: (Specify) | R73: 0 | U73: 0
A74: Other Perm. Financing Costs: (Specify) | R74: 0 | U74: 0
A75: Total Permanent Financing Costs | C75: =SUM(C66:C74) -> 0 | D75: 0 | E75: 0 | F75: 0 | G75: 0 | H75: 0 | I75: 0 | J75: 0 | K75: 0 | L75: 0 | M75: 0 | N75: 0 | O75: 0 | P75: 0 | Q75: 0 | R75: 0 | U75: 0 | V75: =SUM(V66:V74) -> 0 | W75: =SUM(W66:W74) -> 0
A76: Subtotals Forward | C76: =SUM(C10+C13+C15+C16+C17+C31+C44+C48+C49+C64+C75) -> 0 | D76: 0 | E76: 0 | F76: 0 | G76: 0 | H76: 0 | I76: 0 | J76: 0 | K76: 0 | L76: 0 | M76: 0 | N76: 0 | O76: 0 | P76: 0 | Q76: 0 | R76: 0 | S76: =SUM(S12+S15+S16+S17+S30+S31+S44+S48+S49+S64) -> 0 | T76: =SUM(T13+T15+T16+T17+T30+T31+T44+T48+T49+T64) -> 0 | U76: =SUM(U10+U13+U15+U16+U17+U31+U44+U48+U49+U64+U75) -> 0 | V76: =SUM(V10+V13+V15+V16+V17+V31+V44+V48+V49+V64+V75) -> 0 | W76: =SUM(W10+W13+W15+W16+W17+W31+W44+W48+W49+W64+W75) -> 0
A77: LEGAL FEES
A78: Legal Paid by Applicant | R78: =SUM(C78:Q78) -> 0 | U78: 0
A79: Other Attorney Costs: (Specify) | R79: =SUM(C79:Q79) -> 0 | U79: 0
A80: Other Attorney Costs: (Specify) | R80: =SUM(C80:Q80) -> 0 | U80: 0
A81: Other Attorney Costs: (Specify) | R81: =SUM(C81:Q81) -> 0 | U81: 0
A82: Total Attorney Costs | C82: =SUM(C77:C81) -> 0 | D82: 0 | E82: 0 | F82: 0 | G82: 0 | H82: 0 | I82: 0 | J82: 0 | K82: 0 | L82: 0 | M82: 0 | N82: 0 | O82: 0 | P82: 0 | Q82: 0 | R82: 0 | S82: =SUM(S78:S81) -> 0 | T82: =SUM(T78:T81) -> 0 | U82: =SUM(U77:U81) -> 0 | V82: =SUM(V77:V81) -> 0 | W82: =SUM(W77:W81) -> 0
A83: RESERVES
A84: Operating Reserve | R84: =SUM(C84:Q84) -> 0 | U84: =V84+W84 -> 0
A85: Replacement Reserve | R85: 0 | U85: 0
A86: Transition Reserve | R86: 0 | U86: 0
A87: Rent Reserve | R87: 0 | U87: 0
A88: Other Reserve Costs: (Specify) | R88: 0 | U88: 0
A89: Other Reserve Costs: (Specify) | R89: 0 | U89: 0
A90: Other Reserve Costs: (Specify) | R90: 0 | U90: 0
A91: Total Reserve Costs | C91: =SUM(C84:C90) -> 0 | D91: 0 | E91: 0 | F91: 0 | G91: 0 | H91: 0 | I91: 0 | J91: 0 | K91: 0 | L91: 0 | M91: 0 | N91: 0 | O91: 0 | P91: 0 | Q91: 0 | R91: 0 | U91: 0 | V91: =SUM(V84:V90) -> 0 | W91: =SUM(W84:W90) -> 0
A92: CONTINGENCY COSTS
A93: Construction Hard Cost Contingency | R93: =SUM(C93:Q93) -> 0 | U93: =V93+W93 -> 0
A94: Soft Cost Contingency | R94: =SUM(C94:Q94) -> 0 | U94: 0
A95: Total Contingency Costs | C95: =SUM(C93:C94) -> 0 | D95: 0 | E95: 0 | F95: 0 | G95: 0 | H95: 0 | I95: 0 | J95: 0 | K95: 0 | L95: 0 | M95: 0 | N95: 0 | O95: 0 | P95: 0 | Q95: 0 | R95: 0 | S95: 0 | T95: 0 | U95: 0 | V95: =SUM(V93:V94) -> 0 | W95: =SUM(W93:W94) -> 0
A96: OTHER PROJECT COSTS
A97: TCAC App/Allocation/Monitoring Fees | R97: =SUM(C97:Q97) -> 0 | U97: =V97+W97 -> 0
A98: Environmental Audit | R98: 0 | U98: 0
A99: Local Development Impact Fees | R99: 0 | U99: 0
A100: Permit Processing Fees | R100: 0 | U100: 0
A101: Capital Fees | R101: 0 | U101: 0
A102: Marketing | R102: 0 | U102: 0
A103: Furnishings | R103: 0 | U103: 0
A104: Market Study | R104: 0 | U104: 0
A105: Accounting/Reimbursable | R105: 0 | U105: 0
A106: Appraisal Costs | R106: 0 | U106: 0
A107: Other Costs: (Specify) | R107: 0 | U107: 0
A108: Other Costs: (Specify) | R108: 0 | U108: 0
A109: Other Costs: (Specify) | R109: 0 | U109: 0
A110: Other Costs: (Specify) | R110: 0 | U110: 0
A111: Other Costs: (Specify) | R111: 0 | U111: 0
A112: Other Costs: (Specify) | R112: 0 | U112: 0
A113: Total Other Costs | C113: =SUM(C97:C112) -> 0 | D113: 0 | E113: 0 | F113: 0 | G113: 0 | H113: 0 | I113: 0 | J113: 0 | K113: 0 | L113: 0 | M113: 0 | N113: 0 | O113: 0 | P113: 0 | Q113: 0 | R113: 0 | S113: =SUM(S98:S101,S103:S112) -> 0 | T113: =SUM(T98:T101,T103:T112) -> 0 | U113: 0 | V113: =SUM(V97:V112) -> 0 | W113: =SUM(W97:W112) -> 0
A114: SUBTOTAL PROJECT COST | C114: =SUM(C76+C82+C91+C95+C113) -> 0 | D114: 0 | E114: 0 | F114: 0 | G114: 0 | H114: 0 | I114: 0 | J114: 0 | K114: 0 | L114: 0 | M114: 0 | N114: 0 | O114: 0 | P114: 0 | Q114: 0 | R114: 0 | S114: =SUM(+S76+S82+S95+S113) -> 0 | T114: =SUM(T76+T82+T95+T113) -> 0 | U114: 0 | V114: =SUM(V76+V82+V91+V95+V113) -> 0 | W114: =SUM(W76+W82+W91+W95+W113) -> 0
A115: DEVELOPER COSTS
A116: Developer Overhead/Profit | R116: =SUM(C116:Q116) -> 0 | U116: =V116+W116 -> 0
A117: Consultant/Processing Agent | R117: 0 | U117: 0
A118: Project Administration | R118: 0 | U118: 0
A119: Broker Fees Paid to a Related Party | R119: 0 | U119: 0
A120: Construction Oversight by Developer | R120: 0 | U120: 0
A121: Other Developer Costs: (Specify) | R121: 0 | U121: 0
A122: Total Developer Costs | B122: =SUM(B116:B121) -> 0 | C122: 0 | D122: 0 | E122: 0 | F122: 0 | G122: 0 | H122: 0 | I122: 0 | J122: 0 | K122: 0 | L122: 0 | M122: 0 | N122: 0 | O122: 0 | P122: 0 | Q122: 0 | R122: 0 | S122: 0 | T122: 0 | U122: 0 | V122: =SUM(V116:V121) -> 0 | W122: =SUM(W116:W121) -> 0
A123: TOTAL PROJECT COST | B123: =SUM(B114+B122) -> 0 | C123: 0 | D123: 0 | E123: 0 | F123: 0 | G123: 0 | H123: 0 | I123: 0 | J123: 0 | K123: 0 | L123: 0 | M123: 0 | N123: 0 | O123: 0 | P123: 0 | Q123: 0 | R123: 0 | S123: =S114+S122 -> 0 | T123: =T114+T122 -> 0 | U123: 0 | V123: =SUM(V114+V122) -> 0 | W123: =SUM(W114+W122) -> 0
S124: Total Eligible Basis: | T124: =SUM(S123:T123) -> 0
S125: DF 2017
S126: ='Dev Fee 2017 UMR'!H5 -> 0 | T126: Total Developer Fee (equals Total Developer Costs above)
S127: ='Dev Fee 2017 UMR'!H6 -> 0 | T127: Total Developer Fee paid from development funding sources
S128: ='Dev Fee 2017 UMR'!H7 -> 0 | T128: Def. Dev. Fee payable on a priority basis from available Cash Flow
S129: ='Dev Fee 2017 UMR'!H8 -> 0 | T129: Deferred Developer Fee payable from allowable 50% Distribution
S130: ='Dev Fee 2017 UMR'!I11 -> 0 | T130: Developer Fee Contributed as Capital
A131: Infrastructure Project (IP)
A132: Site acquisition of IP including easements and right of ways | R132: =SUM(B132:Q132) -> 0
A133: Other: | R133: =SUM(B133:Q133) -> 0
A134: Total Site Acquisition (not parking) | B134: =SUM(B132:B133) -> 0 | C134: 0 | D134: 0 | E134: 0 | F134: 0 | G134: 0 | H134: 0 | I134: 0 | J134: 0 | K134: 0 | L134: 0 | M134: 0 | N134: 0 | O134: 0 | P134: 0 | Q134: 0 | R134: 0
A135: Clearing and Grubbing | R135: =SUM(B135:Q135) -> 0
A136: Demolition | R136: 0
A137: Excavation | R137: 0
A138: Grading | R138: 0
A139: Soil Stabilization (Lime, etc.) | R139: 0
A140: Erosion/Weed Control | R140: 0
A141: Dewatering | R141: 0
A142: Other: | R142: 0
A143: Other: | R143: 0
A144: Total Site Preparation Costs | B144: =SUM(B135:B143) -> 0 | C144: 0 | D144: 0 | E144: 0 | F144: 0 | G144: 0 | H144: 0 | I144: 0 | J144: 0 | K144: 0 | L144: 0 | M144: 0 | N144: 0 | O144: 0 | P144: 0 | Q144: 0 | R144: 0
A145: Sanitary Sewer | R145: =SUM(B145:Q145) -> 0
A146: Potable Water | R146: 0
A147: Non-Potable Water | R147: 0
A148: Storm Drain | R148: 0
A149: Detention Basin/Culverts | R149: 0
A150: Joint Trench | R150: 0
A151: Other: | R151: 0
A152: Total Site Utilities Costs | B152: =SUM(B145:B151) -> 0 | C152: 0 | D152: 0 | E152: 0 | F152: 0 | G152: 0 | H152: 0 | I152: 0 | J152: 0 | K152: 0 | L152: 0 | M152: 0 | N152: 0 | O152: 0 | P152: 0 | Q152: 0 | R152: 0
A153: Aggregate Base | R153: =SUM(B153:Q153) -> 0
A154: Asphalt Pavement | R154: 0
A155: Curb, Gutter, Sidewalk | R155: 0
A156: Street Lights | R156: 0
A157: Striping/Signage/Barricades | R157: 0
A158: Traffic Mitigation | R158: 0
A159: Other: | R159: 0
A160: Total Surface Improvements Costs | B160: =SUM(B153:B159) -> 0 | C160: 0 | D160: 0 | E160: 0 | F160: 0 | G160: 0 | H160: 0 | I160: 0 | J160: 0 | K160: 0 | L160: 0 | M160: 0 | N160: 0 | O160: 0 | P160: 0 | Q160: 0 | R160: 0
A161: Irrigation | R161: =SUM(B161:Q161) -> 0
A162: Concrete Work | R162: 0
A163: Landscaping | R163: 0
A164: Urban Greening | R164: 0
A165: Playground Facilities and Tot Lots | R165: 0
A166: Walking/Bike Path | R166: 0
A167: Drinking Fountains | R167: 0
A168: Structures | R168: 0
A169: Lighting | R169: 0
A170: Open Space | R170: 0
A171: Other: | R171: 0
A172: Total Parks-Landscape and Amenities | B172: =SUM(B161:B171) -> 0 | C172: 0 | D172: 0 | E172: 0 | F172: 0 | G172: 0 | H172: 0 | I172: 0 | J172: 0 | K172: 0 | L172: 0 | M172: 0 | N172: 0 | O172: 0 | P172: 0 | Q172: 0 | R172: 0
A173: Wetland Mitigation | R173: =SUM(B173:Q173) -> 0
A174: Endangered Species | R174: =SUM(B174:Q174) -> 0
A175: Tree Mitigation | R175: =SUM(B175:Q175) -> 0
A176: Environmental Remediation | R176: =SUM(B176:Q176) -> 0
A177: Other: | R177: =SUM(B177:Q177) -> 0
A178: Total Env. Mitigation/Remediation | B178: =SUM(B173:B177) -> 0 | C178: 0 | D178: 0 | E178: 0 | F178: 0 | G178: 0 | H178: 0 | I178: 0 | J178: 0 | K178: 0 | L178: 0 | M178: 0 | N178: 0 | O178: 0 | P178: 0 | Q178: 0 | R178: 0
A179: Replacement Parking | R179: =SUM(B179:Q179) -> 0
A180: Grading | R180: 0
A181: Foundation Work | R181: 0
A182: Site Work | R182: 0
A183: Other: | R183: 0
A184: Other: | R184: 0
A185: Total Transit Station Replacement Parking | B185: =SUM(B179:B184) -> 0 | C185: 0 | D185: 0 | E185: 0 | F185: 0 | G185: 0 | H185: 0 | I185: 0 | J185: 0 | K185: 0 | L185: 0 | M185: 0 | N185: 0 | O185: 0 | P185: 0 | Q185: 0 | R185: 0
A186: Residential Parking Structures | R186: =SUM(B186:Q186) -> 0
A187: Grading | R187: 0
A188: Foundation Work | R188: 0
A189: Site Work | R189: 0
A190: Other: | R190: 0
A191: Other: | R191: 0
A192: Total Residential Parking Costs | B192: =SUM(B186:B191) -> 0 | C192: 0 | D192: 0 | E192: 0 | F192: 0 | G192: 0 | H192: 0 | I192: 0 | J192: 0 | K192: 0 | L192: 0 | M192: 0 | N192: 0 | O192: 0 | P192: 0 | Q192: 0 | R192: 0
A193: Access Plazas | R193: =SUM(B193:Q193) -> 0
A194: Pathways | R194: 0
A195: Bus Shelters | R195: 0
A196: Transit Shelters | R196: 0
A197: Pedestrian Facilities | R197: 0
A198: Bicycle Facilities | R198: 0
A199: Other: | R199: 0
A200: Total Transit Costs | B200: =SUM(B193:B199) -> 0 | C200: 0 | D200: 0 | E200: 0 | F200: 0 | G200: 0 | H200: 0 | I200: 0 | J200: 0 | K200: 0 | L200: 0 | M200: 0 | N200: 0 | O200: 0 | P200: 0 | Q200: 0 | R200: 0
A201: Drainage | R201: =SUM(B201:Q201) -> 0
... 19 more rows

Sheet TBL and High Cost Test
A1: TCAC Threshold Basis Limit for HCD Developer Fee 2017 UMR §8312(c) & (b) and High Cost Test for HCD Limits on Development Costs 2017 UMR §8311(a) & (b) Complete all yellow shaded cells; see cell comments for tips | BA1: 12/27/19 | BB1: SRO & STUDIO 4% | BC1: 1 BEDROOM | BD1: 2 BEDROOMS | BE1: 3 BEDROOMS | BF1: 4+ BEDROOMS | BG1: SRO & STUDIO 9% | BH1: 1 BEDROOM | BI1: 2 BEDROOMS | BJ1: 3 BEDROOMS | BK1: 4+ BEDROOMS
A2: Project Name: | F2: =IF(Overview!D9="","",Overview!D9) ->  | Z2: County: | AC2: =IF(Overview!AA9="","",Overview!AA9) ->  | AI2: Project's Proposed Tax Credits: | BA2: Alameda | BB2: 353748 | BC2: 407868 | BD2: 492000 | BE2: 629760 | BF2: 701592 | BG2: 307732 | BH2: 354812 | BI2: 428000 | BJ2: 547840 | BK2: 610328
A3: Rep Name: | AK3: HCD Phase: | AO3: Origination | BA3: Alpine | BB3: 261141 | BC3: 301093 | BD3: 363200 | BE3: 464896 | BF3: 517923 | BG3: 230655 | BH3: 265943 | BI3: 320800 | BJ3: 410624 | BK3: 457461
A4: Unit Size | I4: =CONCATENATE(BA1," TCAC Threshold Basis Limits (TBL) ") -> 12/27/19 TCAC Threshold Basis Limits (TBL) | Y4: Number of Units | AO4: Basis x Number of Units | BA4: Amador | BB4: 261141 | BC4: 301093 | BD4: 363200 | BE4: 464896 | BF4: 517923 | BG4: 230655 | BH4: 265943 | BI4: 320800 | BJ4: 410624 | BK4: 457461
A5: SRO/Studio | I5: =IF(AC2="","",IF(AT2="9%",VLOOKUP(AC2,BA1:BK59,AY5),VLOOKUP(AC2,BA1:BK59,AX5))) ->  | Y5: =SUMIF('Unit Mix and Loan Amount'!$A$5:$B$31,0,'Unit Mix and Loan Amount'!$I$5:$J$30) -> 0 | AO5: =IF(ISERROR((I5*Y5)),0,(I5*Y5)) -> 0 | AX5: 2 | AY5: 7 | BA5: Butte | BB5: 281848 | BC5: 324968 | BD5: 392000 | BE5: 501760 | BF5: 558992 | BG5: 238708 | BH5: 275228 | BI5: 332000 | BJ5: 424960 | BK5: 473432
A6: 1 Bedroom | I6: =IF(AC2="","",IF(AT2="9%",VLOOKUP(AC2,BA1:BK59,AY6),VLOOKUP(AC2,BA1:BK59,AX6))) ->  | Y6: =SUMIF('Unit Mix and Loan Amount'!$A$5:$B$31,1,'Unit Mix and Loan Amount'!$I$5:$J$30) -> 0 | AO6: =IF(ISERROR((I6*Y6)),0,(I6*Y6)) -> 0 | AX6: =AX5+1 -> 3 | AY6: =AY5+1 -> 8 | BA6: Calaveras | BB6: 261141 | BC6: 301093 | BD6: 363200 | BE6: 464896 | BF6: 517923 | BG6: 230655 | BH6: 265943 | BI6: 320800 | BJ6: 410624 | BK6: 457461
A7: 2 Bedrooms | I7: =IF(AC2="","",IF(AT2="9%",VLOOKUP(AC2,BA1:BK59,AY7),VLOOKUP(AC2,BA1:BK59,AX7))) ->  | Y7: =SUMIF('Unit Mix and Loan Amount'!$A$5:$B$31,2,'Unit Mix and Loan Amount'!$I$5:$J$30) -> 0 | AO7: =IF(ISERROR((I7*Y7)),0,(I7*Y7)) -> 0 | AX7: =AX6+1 -> 4 | AY7: =AY6+1 -> 9 | BA7: Colusa | BB7: 261141 | BC7: 301093 | BD7: 363200 | BE7: 464896 | BF7: 517923 | BG7: 230655 | BH7: 265943 | BI7: 320800 | BJ7: 410624 | BK7: 457461
A8: 3 Bedrooms | I8: =IF(AC2="","",IF(AT2="9%",VLOOKUP(AC2,BA1:BK59,AY8),VLOOKUP(AC2,BA1:BK59,AX8))) ->  | Y8: =SUMIF('Unit Mix and Loan Amount'!$A$5:$B$31,3,'Unit Mix and Loan Amount'!$I$5:$J$30) -> 0 | AO8: =IF(ISERROR((I8*Y8)),0,(I8*Y8)) -> 0 | AX8: 5 | AY8: =AY7+1 -> 10 | BA8: Contra Costa | BB8: 337642 | BC8: 389298 | BD8: 469600 | BE8: 601088 | BF8: 669650 | BG8: 292202 | BH8: 336906 | BI8: 406400 | BJ8: 520192 | BK8: 579526
A9: 4+ Bedrooms | I9: =IF(AC2="","",IF(AT2="9%",VLOOKUP(AC2,BA1:BK59,AY9),VLOOKUP(AC2,BA1:BK59,AX9))) ->  | Y9: =SUMIF('Unit Mix and Loan Amount'!$A$5:$B$31,4,'Unit Mix and Loan Amount'!$I$5:$J$30)+SUMIF('Unit Mix and Loan Amount'!$A$5:$B$31,5,'Unit Mix and Loan Amount'!$I$5:$J$30)+SUMIF('Unit Mix and Loan Amount'!$A$5:$B$31,6,'Unit Mix and Loan Amount'!$I$5:$J$30) -> 0 | AO9: =IF(ISERROR((I9*Y9)),0,(I9*Y9)) -> 0 | AX9: 6 | AY9: =AY8+1 -> 11 | BA9: Del Norte | BB9: 261141 | BC9: 301093 | BD9: 363200 | BE9: 464896 | BF9: 517923 | BG9: 230655 | BH9: 265943 | BI9: 320800 | BJ9: 410624 | BK9: 457461
A10: Number of Manager Units in Project: | T10: TOTAL UNITS: | Y10: =SUM(Y5:Y9) -> 0 | BA10: El Dorado | BB10: 261141 | BC10: 301093 | BD10: 363200 | BE10: 464896 | BF10: 517923 | BG10: 230655 | BH10: 265943 | BI10: 320800 | BJ10: 410624 | BK10: 457461
A11: TOTAL UNADJUSTED THRESHOLD BASIS LIMIT (TBL): | AO11: =SUM(AO5:AO9) -> 0 | BA11: Fresno | BB11: 261141 | BC11: 301093 | BD11: 363200 | BE11: 464896 | BF11: 517923 | BG11: 230655 | BH11: 265943 | BI11: 320800 | BJ11: 410624 | BK11: 457461
A12: TBL ADJUSTMENTS §10327(c)(5)(A-F): | AL12: Yes/No | BA12: Glenn | BB12: 261141 | BC12: 301093 | BD12: 363200 | BE12: 464896 | BF12: 517923 | BG12: 230655 | BH12: 265943 | BI12: 320800 | BJ12: 410624 | BK12: 457461
A13: (a) | B13: Project paid in whole or part out of public funds subject to a legal requirement for the payment of state or federal prevailing wages or financed in part by a labor-affiliated organization requiring the employment of construction workers who are paid at least state or federal prevailing wages. (20%) | AO13: =ROUND(IF(AL13="yes",AO11*0.2,0),0) -> 0 | BA13: Humboldt | BB13: 261141 | BC13: 301093 | BD13: 363200 | BE13: 464896 | BF13: 517923 | BG13: 230655 | BH13: 265943 | BI13: 320800 | BJ13: 410624 | BK13: 457461
BA14: Imperial | BB14: 261141 | BC14: 301093 | BD14: 363200 | BE14: 464896 | BF14: 517923 | BG14: 230655 | BH14: 265943 | BI14: 320800 | BJ14: 410624 | BK14: 457461
B15: Project certifies that (1) they are subject to a Project labor agreement within the meaning of §2500(b)(1) of the Public Contract Code, or (2) they will use a skilled and trained workforce as defined by §25536.7 of the Health and Safety Code to perform all onsite work within an apprenticeable occupation in the building and construction trades. (5%) | AO15: =ROUND(IF(AL15="yes",AO11*0.05,0),0) -> 0 | BA15: Inyo | BB15: 261141 | BC15: 301093 | BD15: 363200 | BE15: 464896 | BF15: 517923 | BG15: 230655 | BH15: 265943 | BI15: 320800 | BJ15: 410624 | BK15: 457461
BA16: Kern | BB16: 261141 | BC16: 301093 | BD16: 363200 | BE16: 464896 | BF16: 517923 | BG16: 230655 | BH16: 265943 | BI16: 320800 | BJ16: 410624 | BK16: 457461
A17: (b) | B17: New construction Project required to provide parking beneath residential units (not "tuck under" parking) or through construction of an on-site parking structure of two or more levels. (7%) | AO17: =ROUND(IF(AL17="yes",AO11*0.07,0),0) -> 0 | BA17: Kings | BB17: 261141 | BC17: 301093 | BD17: 363200 | BE17: 464896 | BF17: 517923 | BG17: 230655 | BH17: 265943 | BI17: 320800 | BJ17: 410624 | BK17: 457461
BA18: Lake | BB18: 261141 | BC18: 301093 | BD18: 363200 | BE18: 464896 | BF18: 517923 | BG18: 230655 | BH18: 265943 | BI18: 320800 | BJ18: 410624 | BK18: 457461
A19: (c) | B19: Project where a day care center is part of the development. (2%) | AO19: =ROUND(IF(AL19="yes",AO11*0.02,0),0) -> 0 | BA19: Lassen | BB19: 261141 | BC19: 301093 | BD19: 363200 | BE19: 464896 | BF19: 517923 | BG19: 230655 | BH19: 265943 | BI19: 320800 | BJ19: 410624 | BK19: 457461
A20: (d) | B20: Project where 100 percent of the units are for Special Needs populations. (2%) | AO20: =ROUND(IF(AL20="yes",AO11*0.02,0),0) -> 0 | BA20: Los Angeles | BB20: 293352 | BC20: 338232 | BD20: 408000 | BE20: 522240 | BF20: 581808 | BG20: 254238 | BH20: 293134 | BI20: 353600 | BJ20: 452608 | BK20: 504234
A21: (e) | B21: Project where at least 95% of the Project's upper floor units are serviced by an elevator. (10%) | AO21: =ROUND(IF(AL21="yes",(AO11*0.1),0),0) -> 0 | BA21: Madera | BB21: 261141 | BC21: 301093 | BD21: 363200 | BE21: 464896 | BF21: 517923 | BG21: 230655 | BH21: 265943 | BI21: 320800 | BJ21: 410624 | BK21: 457461
BA22: Marin | BB22: 293352 | BC22: 338232 | BD22: 408000 | BE22: 522240 | BF22: 581808 | BG22: 253663 | BH22: 292471 | BI22: 352800 | BJ22: 451584 | BK22: 503093
A23: (f) | B23: Project applying under §10325 or §10326 of these regulations that include one or more of the features below. (up to 10%) | AO23: =IF(SUM(AL25:AL42)>0.005,MIN(0.1,SUM(AL25:AL42))*AO11,0) -> 0 | BA23: Mariposa | BB23: 261141 | BC23: 301093 | BD23: 363200 | BE23: 464896 | BF23: 517923 | BG23: 230655 | BH23: 265943 | BI23: 320800 | BJ23: 410624 | BK23: 457461
BA24: Mendocino | BB24: 261141 | BC24: 301093 | BD24: 363200 | BE24: 464896 | BF24: 517923 | BG24: 230655 | BH24: 265943 | BI24: 320800 | BJ24: 410624 | BK24: 457461
A25: Proposed energy efficiency/resource conservation/indoor air quality items | B25: (1) Project shall have onsite renewable generation estimated to produce 50% or more of annual tenant electricity use. If the combined available roof area of the Project structures, including carports, is insufficient for provision of 50% of annual electricity use, then the Project shall have onsite renewable generation based on at least 90% of the available solar accessible roof area. Available solar accessible area is defined as roof area less north facing roof area for sloped roofs, equipment, solar thermal hot water and required local or state fire department set-backs and access routes. A Project not availing itself of the 90% roof area exception may also receive an increase under paragraph (2) only if the renewable generation used to calculate each basis increase does not overlap. (5%) | BA25: Merced | BB25: 261141 | BC25: 301093 | BD25: 363200 | BE25: 464896 | BF25: 517923 | BG25: 230655 | BH25: 265943 | BI25: 320800 | BJ25: 410624 | BK25: 457461
AL26: =IF(AL25="Yes",0.05,0) -> 0 | BA26: Modoc | BB26: 261141 | BC26: 301093 | BD26: 363200 | BE26: 464896 | BF26: 517923 | BG26: 230655 | BH26: 265943 | BI26: 320800 | BJ26: 410624 | BK26: 457461
B27: (2) Project shall have onsite renewable generation estimated to produce 75% or more of annual common area electricity use. If the combined available roof area of the Project structures, including carports, is insufficient for provision of 75% of annual electricity use, then the Project shall have onsite renewable generation based on at least 90% of the available solar accessible roof area. Available solar accessible area is defined as roof area less north facing roof area for sloped roofs, equipment, solar thermal hot water and required local or state fire department set-backs and access routes. A Project not availing itself of the 90% roof area exception may also receive an increase under paragraph (1) only if the renewable generation used to calculate each basis increase does not overlap. (2%) | BA27: Mono | BB27: 261141 | BC27: 301093 | BD27: 363200 | BE27: 464896 | BF27: 517923 | BG27: 230655 | BH27: 265943 | BI27: 320800 | BJ27: 410624 | BK27: 457461
AL28: =IF(AL27="Yes",0.02,0) -> 0 | BA28: Monterey | BB28: 285299 | BC28: 328947 | BD28: 396800 | BE28: 507904 | BF28: 565837 | BG28: 255964 | BH28: 295124 | BI28: 356000 | BJ28: 455680 | BK28: 507656
B29: (3) Newly constructed Project buildings shall be 15% or more energy efficient than the 2016 Energy Efficiency Standards (California Code of Regulations, Part 6 of Title 24), except that if the local building department has determined that building permit applications submitted on or before December 31, 2016 are complete, then newly constructed Project buildings shall be fifteen percent (15%) or more energy efficient than the 2013 Energy Efficiency Standards (California Code of Regulations, Part 6 of Title 24). (4%) | BA29: Napa | BB29: 293352 | BC29: 338232 | BD29: 408000 | BE29: 522240 | BF29: 581808 | BG29: 253663 | BH29: 292471 | BI29: 352800 | BJ29: 451584 | BK29: 503093
AL30: =IF(AL29="Yes",0.04,0) -> 0 | BA30: Nevada | BB30: 261141 | BC30: 301093 | BD30: 363200 | BE30: 464896 | BF30: 517923 | BG30: 230655 | BH30: 265943 | BI30: 320800 | BJ30: 410624 | BK30: 457461
B31: (4) Rehab Project buildings shall have 80% decrease in estimated TDV energy use (or improvement in energy efficiency) post rehab as demonstrated using the appropriate performance module of CEC approved software. (4%) | BA31: Orange | BB31: 261141 | BC31: 301093 | BD31: 363200 | BE31: 464896 | BF31: 517923 | BG31: 230655 | BH31: 265943 | BI31: 320800 | BJ31: 410624 | BK31: 457461
AL32: =IF(AL31="Yes",0.04,0) -> 0 | BA32: Placer | BB32: 261141 | BC32: 301093 | BD32: 363200 | BE32: 464896 | BF32: 517923 | BG32: 230655 | BH32: 265943 | BI32: 320800 | BJ32: 410624 | BK32: 457461
B33: (5) Irrigate only with reclaimed water, greywater, or rainwater (excepting water used for Community Gardens) or irrigate with reclaimed water, grey water, or rainwater in an amount that annually equals or exceeds 20,000 gallons or 300 gallons per unit, whichever is less. (1%) | BA33: Plumas | BB33: 261141 | BC33: 301093 | BD33: 363200 | BE33: 464896 | BF33: 517923 | BG33: 230655 | BH33: 265943 | BI33: 320800 | BJ33: 410624 | BK33: 457461
AL34: =IF(AL33="Yes",0.02,0) -> 0 | BA34: Riverside | BB34: 261141 | BC34: 301093 | BD34: 363200 | BE34: 464896 | BF34: 517923 | BG34: 230655 | BH34: 265943 | BI34: 320800 | BJ34: 410624 | BK34: 457461
B35: (6) Community Gardens of at least 60 square feet per unit. Permanent site improvements that provide a viable growing space within the Project including solar access, fencing, watering systems, secure storage space for tools, and pedestrian access. (1%) | BA35: Sacramento | BB35: 261141 | BC35: 301093 | BD35: 363200 | BE35: 464896 | BF35: 517923 | BG35: 230655 | BH35: 265943 | BI35: 320800 | BJ35: 410624 | BK35: 457461
AL36: =IF(AL35="Yes",0.01,0) -> 0 | BA36: San Benito | BB36: 261141 | BC36: 301093 | BD36: 363200 | BE36: 464896 | BF36: 517923 | BG36: 230655 | BH36: 265943 | BI36: 320800 | BJ36: 410624 | BK36: 457461
B37: (7) Install bamboo, cork, salvaged or FSC-Certified wood, natural linoleum, natural rubber, or ceramic tile in all kitchens, living rooms, and bathrooms (where no VOC adhesives or backing is also used). (1%) | BA37: San Bernardino | BB37: 261141 | BC37: 301093 | BD37: 363200 | BE37: 464896 | BF37: 517923 | BG37: 230655 | BH37: 265943 | BI37: 320800 | BJ37: 410624 | BK37: 457461
AL38: =IF(AL37="Yes",0.01,0) -> 0 | BA38: San Diego | BB38: 255964 | BC38: 295124 | BD38: 356000 | BE38: 455680 | BF38: 507656 | BG38: 230655 | BH38: 265943 | BI38: 320800 | BJ38: 410624 | BK38: 457461
B39: (8) Install bamboo, stained concrete, cork, salvaged or FSC-Certified wood, ceramic tile, or natural linoleum in all common areas. (2%) | BA39: San Francisco | BB39: 440603 | BC39: 508011 | BD39: 612800 | BE39: 784384 | BF39: 873853 | BG39: 390561 | BH39: 450313 | BI39: 543200 | BJ39: 695296 | BK39: 774603
AL40: =IF(AL39="Yes",0.02,0) -> 0 | BA40: San Joaquin | BB40: 261141 | BC40: 301093 | BD40: 363200 | BE40: 464896 | BF40: 517923 | BG40: 230655 | BH40: 265943 | BI40: 320800 | BJ40: 410624 | BK40: 457461
B41: (9) Meet all requirements of the U.S. Environmental Protection Agency Indoor Air Plus Program. (2%) | BA41: San Luis Obispo | BB41: 261141 | BC41: 301093 | BD41: 363200 | BE41: 464896 | BF41: 517923 | BG41: 230655 | BH41: 265943 | BI41: 320800 | BJ41: 410624 | BK41: 457461
AL42: =IF(AL41="Yes",0.02,0) -> 0 | BA42: San Mateo | BB42: 341669 | BC42: 393941 | BD42: 475200 | BE42: 608256 | BF42: 677635 | BG42: 289326 | BH42: 333590 | BI42: 402400 | BJ42: 515072 | BK42: 573822
A43: (g) | B43: Project requires seismic upgrading of existing structures, and/or requires toxic or other environmental mitigation as certified by the Project architect/ engineer. (lesser of costs or 15% basis adjustment) | AO43: =IF(AL43="Yes",MIN(AG45,AO11*0.15),0) -> 0 | BA43: Santa Barbara | BB43: 259415 | BC43: 299103 | BD43: 360800 | BE43: 461824 | BF43: 514501 | BG43: 231806 | BH43: 267270 | BI43: 322400 | BJ43: 412672 | BK43: 459742
AL44: =IF(AL43="yes","Please Select Type of Work and Enter Cost:",0) -> 0 | BA44: Santa Clara | BB44: 319811 | BC44: 368739 | BD44: 444800 | BE44: 569344 | BF44: 634285 | BG44: 267468 | BH44: 308388 | BI44: 372000 | BJ44: 476160 | BK44: 530472
B45: If Yes, select type of work: | U45: Enter Certified Costs of Work: | AG45: 0 | BA45: Santa Cruz | BB45: 261141 | BC45: 301093 | BD45: 363200 | BE45: 464896 | BF45: 517923 | BG45: 230655 | BH45: 265943 | BI45: 320800 | BJ45: 410624 | BK45: 457461
A46: (h) | B46: Local development impact fees required to be paid to local government entities. Certification from local entities assessing fees also required. WAIVED IMPACT FEES ARE INELIGIBLE. | AO46: 0 | BA46: Shasta | BB46: 281848 | BC46: 324968 | BD46: 392000 | BE46: 501760 | BF46: 558992 | BG46: 238708 | BH46: 275228 | BI46: 332000 | BJ46: 424960 | BK46: 473432
AL47: =IF(AL46="yes","Please Enter Amount Above:",0) -> 0 | BA47: Sierra | BB47: 261141 | BC47: 301093 | BD47: 363200 | BE47: 464896 | BF47: 517923 | BG47: 230655 | BH47: 265943 | BI47: 320800 | BJ47: 410624 | BK47: 457461
A48: (i) | B48: Projects within a county with an unadjusted 9% threshold basis limit for a 2-bedroom unit equal or less than $400,000 and within a census tract designated on the TCAC/HCD Opportunity Map as Highest or High Resource. (10%) | AL48: =IF(AND(F50="Yes",OR(AB50="Highest Resource",AB50="High Resource")),"Yes","No") -> No | AO48: =ROUND(IF(AND(F50="Yes",OR(AB50="High Resource",AB50="Highest Resource"),AL48="Yes"),AO11*0.1,0),0) -> 0 | BA48: Siskiyou | BB48: 261141 | BC48: 301093 | BD48: 363200 | BE48: 464896 | BF48: 517923 | BG48: 230655 | BH48: 265943 | BI48: 320800 | BJ48: 410624 | BK48: 457461
AL49: =IF(F50="Yes","In yellow cells, enter Tract ID # and TCAC/HCD Opportunity Map Resource level","") ->  | BA49: Solano | BB49: 293352 | BC49: 338232 | BD49: 408000 | BE49: 522240 | BF49: 581808 | BG49: 253663 | BH49: 292471 | BI49: 352800 | BJ49: 451584 | BK49: 503093
B50: County eligibility: | F50: =IFERROR(IF(VLOOKUP(AC2,BA1:BK59,AY7,FALSE)<=400000,"Yes","No"),"") ->  | H50: TCAC/HCD Opportunity Area Map Tract ID #: | V50: Opportunity Map Resource level: | BA50: Sonoma | BB50: 312334 | BC50: 360118 | BD50: 434400 | BE50: 556032 | BF50: 619454 | BG50: 268043 | BH50: 309051 | BI50: 372800 | BJ50: 477184 | BK50: 531613
A51: TOTAL HCD ADJ. THRESHOLD BASIS LIMIT: | AO51: =AO13+AO15+AO17+AO19+AO20+AO21+AO11+AO23+AO43+AO46+AO48 -> 0 | BA51: Stanislaus | BB51: 261141 | BC51: 301093 | BD51: 363200 | BE51: 464896 | BF51: 517923 | BG51: 230655 | BH51: 265943 | BI51: 320800 | BJ51: 410624 | BK51: 457461
A52: =IF(AO3="Perm Close","Adjusted Threshold Basis Limit multiplied by 170%:","Adjusted Threshold Basis Limit multiplied by 160%:") -> Adjusted Threshold Basis Limit multiplied by 160%: | AO52: =IF(AO3="Perm Close",AO51*1.7,AO51*1.6) -> 0 | BA52: Sutter | BB52: 261141 | BC52: 301093 | BD52: 363200 | BE52: 464896 | BF52: 517923 | BG52: 230655 | BH52: 265943 | BI52: 320800 | BJ52: 410624 | BK52: 457461
A53: =IF(G2="",CONCATENATE("HCD HIGH COST TEST RESULT: ",G2),CONCATENATE("HCD HIGH COST TEST RESULT FOR: ",G2)) -> HCD HIGH COST TEST RESULT: | AE53: =IF(AO51=0,0,AE54/AO51) -> 0 | BA53: Tehama | BB53: 261141 | BC53: 301093 | BD53: 363200 | BE53: 464896 | BF53: 517923 | BG53: 230655 | BH53: 265943 | BI53: 320800 | BJ53: 410624 | BK53: 457461
A54: (j) | B54: Total Eligible Basis (Dev Budget T125) | AE54: ='Dev Budget'!T124 -> 0 | AL54: =IF(AE54=0,"",IF(AE54<=AO52,"Costs Reasonable",IF(AO3="Perm Close","Costs too high > 170%","Costs too high > 160%"))) ->  | BA54: Trinity | BB54: 261141 | BC54: 301093 | BD54: 363200 | BE54: 464896 | BF54: 517923 | BG54: 230655 | BH54: 265943 | BI54: 320800 | BJ54: 410624 | BK54: 457461
BA55: Tulare | BB55: 261141 | BC55: 301093 | BD55: 363200 | BE55: 464896 | BF55: 517923 | BG55: 230655 | BH55: 265943 | BI55: 320800 | BJ55: 410624 | BK55: 457461
BA56: Tuolumne | BB56: 261141 | BC56: 301093 | BD56: 363200 | BE56: 464896 | BF56: 517923 | BG56: 230655 | BH56: 265943 | BI56: 320800 | BJ56: 410624 | BK56: 457461
BA57: Ventura | BB57: 261141 | BC57: 301093 | BD57: 363200 | BE57: 464896 | BF57: 517923 | BG57: 230655 | BH57: 265943 | BI57: 320800 | BJ57: 410624 | BK57: 457461
BA58: Yolo | BB58: 263442 | BC58: 303746 | BD58: 366400 | BE58: 468992 | BF58: 522486 | BG58: 234682 | BH58: 270586 | BI58: 326400 | BJ58: 417792 | BK58: 465446
BA59: Yuba | BB59: 261141 | BC59: 301093 | BD59: 363200 | BE59: 464896 | BF59: 517923 | BG59: 230655 | BH59: 265943 | BI59: 320800 | BJ59: 410624 | BK59: 457461

Sheet Dev Fee 2017 UMR
A1: HCD 2017 UMR Developer Fee Calculator - revised 2/4/20 (complete YELLOW shaded cells) Projects that apply in 2019 or later for the Multifamily Housing Program (MHP), Veterans Housing and Homelessness Prevention (VHHP), No Place Like Home (NPLH), and Serna Farmworker Housing Grant Programs must use the 'Dev Fee 2019' calculator. Projects subject to the 2017 UMRs that received awards or will apply under any other HCD Program must use this 'Dev Fee 2017 UMR' calculator.
A2: Project Phase: | C2: Origination | D2: Proposed Project Type:
A3: Project Name: | C3: =IF(Overview!D9="","",Overview!D9) -> 
A4: Project's Developer Fee Summary (SEE INSTRUCTIONS ABOVE) | G4: HCD Limit | H4: Project Amt. | I4: =IF(OR(I5<>0,I6<>0,I8<>0),"","") -> 
B5: =IF(LEFT(F2,1)="9","Maximum Total Developer Fee - 1i","Maximum Total Developer Fee - 2g") -> Maximum Total Developer Fee - 2g | G5: =IF(F2="No Tax Credits",H60,IF(LEFT(F2,1)="9",I24+I11,H39)) -> 0 | H5: =F9 -> 0 | I5: =MAX(0,ROUND(H5,0)-ROUND(G5,0)) -> 0
B6: =IF(LEFT(F2,1)="9","Max Developer Fee payable from development funding sources - 1i","Max Developer Fee payable from development funding sources - lesser of 1i & 2g") -> Max Developer Fee payable from development funding sources - lesser of 1i & 2g | G6: =IF(F2="No Tax Credits",G5,IF(LEFT(F2,1)="9",I24,MIN(G5-I11,I24))) -> 0 | H6: =MAX(0,H5-F10-I10) -> 0 | I6: =MAX(0,ROUND(H6,0)-ROUND(G6,0)) -> 0
B7: Deferred Developer Fee payable on a priority basis from available Cash Flow | G7: =MAX(0,MIN(3500000,G5-I11)-G6) -> 0 | H7: =MAX(0,MIN(G5,H5-F10,3500000)-H6) -> 0
B8: Deferred Developer Fee payable exclusively from Sponsor Distributions - 2j | G8: =G5-G6-G7 -> 0 | H8: =MAX(0,H5-H6-H7-F10) -> 0
A9: Total Budgeted or Actual Developer Fee | F9: ='Dev Budget'!R122+'Dev Budget'!U122 -> 0
A10: Developer Fee Contributed as Capital | F10: 0 | G10: Deferred Developer Fee | I10: 0
A11: Real Property Contributed as Capital | F11: 0 | G11: Sponsor Contributions | I11: =F10+F11 -> 0
A13: =IF(F2="","Section 1. UMR §8312(c)(1) - for all 4% Projects (project costs per TCAC 9% rules)",IF(LEFT(F2,1)="4","Section 1. UMR §8312(c)(1) - for all 4% Projects (project costs per TCAC 9% rules)","Section 1. UMR §8312(b) - for all 9% Projects")) -> Section 1. UMR §8312(c)(1) - for all 4% Projects (project costs per TCAC 9% rules)
A14: a. | B14: Project's type of construction: | D14: =IF(F2="No Tax Credits","",MID(F2,12,26)) ->  | I14: =IF(D14="New Construction",2200000,2000000) -> 2000000
A15: b. | B15: Project's Eligible Basis (exclude Developer Fee) | G15: ='Dev Budget'!S114+'Dev Budget'!T114 -> 0 | H15: x 15% = | I15: =G15*0.15 -> 0
A16: c. | B16: Basis for Non-Residential Costs (Commercial - exclude Developer Fee) | G16: ='Dev Budget'!U114 -> 0 | H16: x 15% = | I16: =G16*0.15 -> 0
A17: d. | B17: =IF(D14="New Construction","Base limit: amount that could be included in project costs under 9% rules - lesser of 1a or (1b + 1c.):","Max developer fee that could be included in project costs under 9% rules - lesser of 1a or (1b + 1c):") -> Max developer fee that could be included in project costs under 9% rules - lesser of 1a or (1b + 1c): | I17: =MIN(I14,I15+I16) -> 0
A18: High Cost Test Adjustment - New Construction only §10327(c)(2)(A)
A19: e. | B19: Total Adjusted Threshold Basis Limit - §10327(c)(5) | I19: ='TBL and High Cost Test'!AO51 -> 0
A20: f1. | B20: Total Eligible Basis - §10327(c)(2)(A) | D20: ='Dev Budget'!T124 -> 0 | E20: =IF(LEFT(F2,1)="9","","4% EB reduced by Max DF in EB using 9% rules §10327(c)(2)(A)(i)") -> 4% EB reduced by Max DF in EB using 9% rules §10327(c)(2)(A)(i) | H20: =IF(LEFT(F2,1)="9",""," f1 - f2 + f3") -> f1 - f2 + f3 | I20: =IF(LEFT(F2,1)="9",D20,D20-D21+H21) -> 0
A21: f2. | B21: =IF(F2="9% Credits New Construction","","Developer Fee in Eligible Basis") -> Developer Fee in Eligible Basis | D21: ='Dev Budget'!S122+'Dev Budget'!T122 -> 0 | E21: =IF(H21=I17,"f3. Max DF in EB using 9% rules §10327(c)(2)(A)(i) based on DF amount allowed in project costs","f3. Max DF in EB using 9% rules §10327(c)(2)(A)(i) based on Actual DF in EB") -> f3. Max DF in EB using 9% rules §10327(c)(2)(A)(i) based on DF amount allowed in project costs | H21: =MIN(D21,I17) -> 0
A22: g. | B22: High Cost Test Factor - §10327(c)(2)(A) | E22: (1f1 / 1e) | F22: ="= "&TEXT(ROUND(I20,0)," $#,##0")&" / "&TEXT(ROUND(I19,0)," $#,##0") -> = $0 / $0 | I22: =IF(I19=0,0,I20/I19) -> 0
A23: h. | B23: Max Developer Fee in Project Costs under 9% rules - §10327(c)(2)(A); UMR §8312(c)(1) | G23: =IF(D14="New Construction","(200% - 1g) * 1d","") ->  | I23: =IF(D14="New Construction",ROUND((2-I22)*I17,0),I17) -> 0
A24: i. | B24: =IF(LEFT(F2,1)="9","Maximum Total Developer Fee - UMR §8312(b)","Maximum Developer Fee payable from development funding sources - UMR §8312(c)(1)") -> Maximum Developer Fee payable from development funding sources - UMR §8312(c)(1) | I24: =+I23 -> 0
A26: Section 2. UMR §8312(c)(2) - Maximum Developer Fee allowed in Eligible Basis under TCAC 4% rules
B27: Max Developer Fee allowed in Eligible Basis under TCAC 4% rules
A28: a. | B28: =IF(OR(F2="",F2="4% Credits New Construction",F2="4% Credits Rehabilitation"),"New Construction & Rehab - Unadjusted Eligible Basis (exclude Developer Fee) - §10327(c)(2)(B)(i)","Not Applicable") -> New Construction & Rehab - Unadjusted Eligible Basis (exclude Developer Fee) - §10327(c)(2)(B)(i) | G28: ='Dev Budget'!S114 -> 0 | H28: x 15% = | I28: =G28*0.15 -> 0
A29: b. | B29: =IF(OR(C2="",D14="Acq. Rehabilitation",D14="Adaptive Reuse"),"Acq/Rehab - Unadjusted Eligible Const. Related Basis (exclude Developer Fee) - §10327(c)(2)(B)(ii)","Not Applicable") -> Not Applicable | G29: ='Dev Budget'!S114 -> 0 | H29: x 15% = | I29: =G29*0.15 -> 0
A30: c1. | B30: =IF(OR(C2="",D14="Acq. Rehabilitation",D14="Adaptive Reuse"),"Acq/Rehab - at-risk development meeting the requirements of §10325(g)(4)? - §10327(c)(2)(B)(ii)","Not Applicable") -> Not Applicable
A31: c2. | B31: =IF(AND(C2<>"",D14<>"Acq. Rehabilitation"),"Not Applicable","Acq/Rehab - rehabilitation hard construction costs per unit at least $25,000 per unit? - §10327(c)(2)(B)(ii)") -> Not Applicable
A32: c3. | B32: =IF(OR(C2="",D14="Acq. Rehabilitation",D14="Adaptive Reuse"),"Acq/Rehab-30% or more of units restricted to incomes and rents of 50% AMI or less? - §10327(c)(2)(B)(ii)","Not Applicable") -> Not Applicable
A33: c4. | B33: =IF(OR(C2="",D14="Acq. Rehabilitation",D14="Adaptive Reuse"),"Acq/Rehab - Unadj. Eligible Acq. Basis - §10327(c)(2)(B)(ii) = 15% if c1, c2 or c3 is Yes","Not Applicable") -> Not Applicable | G33: ='Dev Budget'!T114 -> 0 | H33: =IF(OR(H30="Yes",H31="Yes",H32="Yes"),0.15,0.05) -> 0.05 | I33: =G33*H33 -> 0
A34: d. | B34: Maximum Developer Fee in Eligible Basis under 4% rules §8312(c) | I34: =IF(OR(D14="New Construction",D14="Rehabilitation"),I28,I29+I33) -> 0
B35: Max Developer Fee per §8312(c)
A36: e. | B36: Total Developer Fee Limit (including deferred fee and with no sponsor contribution)
B37: -- lesser of $3,500,000 or amount in Eligible Basis under 4% rules total UMR §8312(c) amount (2d above) | H37: =MIN(3500000,ROUND(I34,0)) -> 0
A38: f. | B38: Capital Contribution by Sponsor or affiliate - UMR §8312(d) | H38: =I11 -> 0
A39: g. | B39: Maximum Total Developer Fee - total UMR §8312(c) + UMR §8312(d) 1e + 1f | H39: =+H37+H38 -> 0
A40: =IF(F2="9% Credits","o.","h.") -> h. | B40: Total Budgeted or Actual Developer Fee | H40: =F9 -> 0 | I40: =IF(ROUND(H40,0)>ROUND(H39,0),"Excess Dev Fee"&TEXT(H40-H39," $#,###"),"") -> 
A41: i. | B41: Budgeted Developer Fee paid from Development Sources | F41: Sum of Deferred and Contributed Developer Fee | G41: =F10+I10 -> 0 | H41: =H40-G41 -> 0 | I41: =IF(H41>I24,"Cannot exceed"&TEXT(MIN(I24,H39)," $#,###"),"") -> 
A42: j. | B42: Deferred Developer Fee payable on a priority basis from available Cash Flow - UMR §8312(c)(2) | H42: =MAX(0,MIN(H37,H40)-MIN(I24,H37)) -> 0
A44: Section 3. UMR §8312(a) Instructions: Complete the yellow, shaded cells - choose only one in the 'A', 'B' or 'C' sections.
A45: a. New construction and substantial rehab projects UMR §8312(a)(1)
A46: a1. | B46: Number of units (include manager's unit) | F46: 0
A47: a2. | B47: First 30 units at: | D47: 28000 | E47: each | G47: =IF(F46>29,D47*30,+F46*D47) -> 0
A48: a3. | B48: Units in excess of 30 at: | D48: 10500 | E48: each | G48: =IF(F46<30,0,(F46-30)*D48) -> 0
A49: a4. | B49: Total (a2 + a3) | H49: =+G47+G48 -> 0
A50: b. Acquisition and rehab projects UMR §8312(a)(2)
B51: with construction cost for rehab work (excluding contractor profit and overhead) between $10,500 - $37,000 per unit
A52: b1. | B52: Number of units (include manager's unit) | F52: 0
A53: b2. | B53: First 30 units at: | D53: 13000 | E53: each | G53: =IF(F52>29,D53*30,+F52*D53) -> 0
A54: b3. | B54: Units in excess of 30 at: | D54: 5500 | E54: each | G54: =IF(F52<30,0,(F52-30)*D54) -> 0
A55: b4. | B55: Total (b2 + b3) | H55: =+G53+G54 -> 0
A56: c. All other projects UMR §8312(a)(3)
A57: c1. | B57: Number of units (include manager's unit) | F57: 0
A58: c2. | B58: Total at: | D58: 2000 | E58: per unit | H58: =+F57*D58 -> 0
A59: d. Sponsor capital contribution of funds or real property UMR §8312(d) | H59: 0
A60: e. Maximum allowable Developer Fee (a4, b4 or c2; plus d) | H60: =H49+H55+H58+H59 -> 0

Sheet Env & Land Use Verification
A1: Verification of Environmental Review & Land Use Entitlements
A2: File Name: | D2: Auth to Use Grant Funds | L2: For National Environmental Policy Act (NEPA) only, provide a copy of the HUD 7015.16 "Authority To Use Grant Funds" or clarify current status of the issuance of HUD form. | AF2: Uploaded to FAAST?
A3: File Name: | D3: Environmental | L3: Provide a copy of all environmental clearances or Notice of Exemption. | AF3: Uploaded to FAAST?
A4: TO THE APPLICANT: Submit this form to the Agency or Department of local government responsible for administration of the items listed. This form may be submitted to more than one Agency or Department, if necessary. Applicants need only submit one completed form per locality. If the NEPA Responsible Entity is not a local government, submit a copy of this form to the appropriate NEPA Responsible Entity. If an item is not required, include the reason why in the box provided.
A5: Applicant
A6: Entity Name | W6: Applicant Type
A7: Address | X7: City | AE7: State | AH7: Zip
A8: Housing Development (HD) or Infrastructure Project (IP)
A9: Project Name | W9: Project County
A10: Address | X10: City | AE10: State | AH10: Zip
A11: Census Tract | K11: APN | T11: Census Tract | AD11: APN
A12: To the Local Jurisdiction or NEPA Responsible Entity: The Applicant named above will submit an application to the State of California, Department of Housing and Community Development, requesting funding for the project named above under the Transit Oriented Development Program (TOD). Projects will be evaluated based upon readiness. Please answer the following questions:
A13: Environmental Review
A14: Is this Housing Development or Infrastructure Project approved "by-right"?
A15: This form must be completed in its entirety regardless of the answer to the preceding question.
A16: All Environmental Clearances NEPA and California Environmental Quality Act (CEQA) necessary to begin construction: | K16: Not Required for this Project | O16: Has a Negative Declaration been issued? | S16: Final Date of Public Comment Period | X16: Date(s) EIR Certified / Notice of Determination filed | AC16: Date Appeal Period Ends | AH16: Have any appeals been filed?
A17: NEPA
A18: CEQA
A19: In the box below, explain why any items are not required and include documentation, if applicable:
A21: Signature Block for Environmental Review
A22: I certify that the information on this form is true and correct to the best of my knowledge.
A23: Date: | J23: Signature of party completing form:
A24: Printed name of party completing form:
A25: Title of party completing form: | T25: Agency and/or Dept. name:
A26: Agency/Dept. Address | V26: City | AE26: State | AH26: Zip
A27: Land Use Entitlements (indicate below the status of the following local approvals)
A28: All necessary and discretionary public land use approvals except building permits and other ministerial approvals are: | N28: Not Required for this Project | S28: Project is consistent with local planning documents & zoning ordinances | AA28: An Application has been submitted, accepted and deemed complete for processing. | AJ28: Date Approved
A29: General Plan Amendment:
A30: Site Plan Review:
A31: Zoning Approval:
A32: Conditional Use Permits:
A33: Density Bonus:
A34: Other Variances:
A35: Other Variances:
A36: Other Variances:
A37: Other Variances:
A38: Other Variances:
A39: In the box below, explain why any items are not required and include documentation, if applicable:
A41: Signature Block for Land Use Entitlements
A42: I certify that the information on this form is true and correct to the best of my knowledge.
A43: Date: | J43: Signature of party completing form:
A44: Printed name of party completing form:
A45: Title of party completing form: | T45: Agency and/or Dept. name:
A46: Agency/Dept. Address | V46: City | AC46: State | AH46: Zip
A47: HCD requires an original, fully completed form with "wet signatures". Faxes or electronically transmitted versions of this document will not be accepted.

Sheet Certification & Legal
A1: Certification & Legal Status
A2: On behalf of the entity identified in the signature block below, I certify that:
A3: 1. The information, statements and attachments included in this application are, to the best of my knowledge and belief, true and correct.
A4: 2. I possess the legal authority to submit this application on behalf of the entity identified in the signature block.
A5: 3. The following is a complete disclosure of all identities of interest - of all persons or entities, including affiliates, that will provide goods or services to the Project either (a) in one or more capacity or (b) that qualify as a "Related Party" to any person or entity that will provide goods or services to the project. "Related Party" is defined in Section 10302 of the California Code of Regulations (CTCAC Regulations):
A7: 4. As of the date of application, the Project, or the real property on which the Project is proposed (Property) is not part to or the subject of any claim or action at the State or Federal appellate level.
A8: 5. I have disclosed and described below any claim or action undertaken which affects or potentially affects the feasibility of the Project.
A9: In addition, I acknowledge that all information in this application and attachments is public, and may be disclosed by the State.
A12: Printed Name | K12: Title of Signatory | U12: Signature (wet signature is required) | AK12: Date
A13: Legal Disclosure
A14: For purposes of the following questions, and with the exceptions noted below, the term “applicant” shall include the applicant and joint applicant, and any subsidiary of the applicant or joint applicant if the subsidiary is involved in (for example, as a guarantor) or will be benefited by the application or the project.
A15: In addition to each of these entities themselves, the term “applicant” shall also include the direct and indirect holders of more than ten percent (10%) of the ownership interests in the entity, as well as the officers, directors, principals and senior executives of the entity if the entity is a corporation, the general and limited partners of the entity if the entity is a partnership, and the members or managers of the entity if the entity is a limited liability company. For projects using tax-exempt bonds, it shall also include the individual who will be executing the bond purchase agreement.
A16: The following questions must be responded to for each entity and person qualifying as an "applicant," or "joint applicant" as defined above.
A17: Explain all positive responses on a separate sheet and include with this questionnaire in the application.
A18: Exceptions:
A19: Public entity applicants without an ownership interest in the proposed project, including but not limited to cities, counties, and joint powers authorities with 100 or more members, are not required to respond to this questionnaire.
A20: Members of the boards of directors of non-profit corporations, including officers of the boards, are also not required to respond. However, chief executive officers (Executive Directors, Chief Executive Officers, Presidents or their equivalent) must respond, as must chief financial officers (Treasurers, Chief Financial Officers, or their equivalent).
A21: Civil Matters
A22: 1. Has the applicant filed a bankruptcy or receivership case or had a bankruptcy or receivership action commenced against it, defaulted on a loan or been foreclosed against in past ten years?
A23: 2. Is the applicant currently a party to, or been notified that it may become a party to, any civil litigation that may materially and adversely affect (a) the financial condition of the applicant’s business, or (b) the project that is the subject of the application?
A24: 3. Have there been any administrative or civil settlements, decisions, or judgments against the applicant within the past ten years that materially and adversely affected (a) the financial condition of the applicant’s business, or (b) the project that is the subject of the application?
A25: 4. Is the applicant currently subject to, or been notified that it may become subject to, any civil or administrative proceeding, examination, or investigation by a local, state or federal licensing or accreditation agency, a local, state or federal taxing authority, or a local, state or federal regulatory or enforcement agency?
A26: 5. In the past ten years, has the applicant been subject to any civil or administrative proceeding, examination, or investigation by a local, state or federal licensing or accreditation agency, a local, state or federal taxing authority, or a local, state or federal regulatory or enforcement agency that resulted in a settlement, decision, or judgment?
A27: Criminal Matters
A28: 6. Is the applicant currently a party to, or the subject of, or been notified that it may become a party to or the subject of, any criminal litigation, proceeding, charge, complaint, examination or investigation, of any kind, involving, or that could result in, felony charges against the applicant?
A29: 7. Is the applicant currently a party to, or the subject of, or been notified that it may become a party to or the subject of, any criminal litigation, proceeding, charge, complaint, examination or investigation, of any kind, involving, or that could result in, misdemeanor charges against the applicant for matters relating to the conduct of the applicant’s business?
A30: 8. Is the applicant currently a party to, or the subject of, or been notified that it may become a party to or the subject of, any criminal litigation, proceeding, charge, complaint, examination or investigation, of any kind, involving, or that could result in, criminal charges (whether felony or misdemeanor) against the applicant for any financial or fraud related crime?
A31: 9. Is the applicant currently a party to, or the subject of, or been notified that it may become a party to or the subject of, any criminal litigation, proceeding, charge, complaint, examination or investigation, of any kind, that could materially affect the financial condition of the applicant’s business?
A32: 10. Within the past ten years, has the applicant been convicted of any felony?
A33: 11. Within the past ten years, has the applicant been convicted of any misdemeanor related to the conduct of the applicant’s business?
A34: 12. Within the past ten years, has the applicant been convicted of any misdemeanor for any financial or fraud related crime?
A35: Please provide a letter of explanation if you responded "Yes" to any of the questions above.
A36: File Name: | D36: Cert. Letter of Explanation | L36: Letter of explanation for any "Yes" answers or red shaded items above. | AF36: Uploaded to FAAST?
A39: Printed Name | K39: Title of Signatory | U39: Signature (wet signature is required) | AK39: Date

Sheet Application Selection - Scoring
A1: Application Selection - Scoring §110
A2: 300 Points Max (points in blue shaded cells) | AF2: Total Score | AK2: =AK3+AK13+AK28+AK35+AK44+AK51+AK58+AK79+AK83 -> 0
A3: Extent to which Project will increase public transit ridership and minimize automobile trips §110(a) - 60 Points Max | AK3: =SUM(AK4:AK7) -> 0
A4: (1) What is the peak period headway frequency of the best performing mode of transit serving the Qualifying Transit Station? - 30 pts max | AK4: =IF(AF4="",0,IF(AF4="15 minutes or less",30,IF(AF4="16 to 20 minutes",15,IF(AF4="21 to 30 minutes",5,0)))) -> 0
A5: (2) Are there electronic user info services that provide info on schedules and real-time predicted arrival times at the Qualifying Transit Station, RHD, area businesses or through wireless device access for the best performing primary mode of transit serving the Qualifying Transit Station? - 4 points | AK5: =IF(AI5="Yes",4,0) -> 0
A6: (3) Does Qualifying Transit Station post real time schedules and route maps at the Qualifying Transit Station? - 1 point | AK6: =IF(AI6="Yes",1,0) -> 0
A7: (4) Select actions below that the Project will include to encourage higher densities. - 25 points max (5 points for each action) | AK7: =SUM(AJ8:AJ12) -> 0
A8: (A) The Project site to be developed is zoned for high-density, multifamily residential development? | AJ8: =IF(AK8="Yes",5,0) -> 0
A9: (B) The local entity has approved higher-density rezoning for the site? | AJ9: =IF(AK9="Yes",5,0) -> 0
A10: (C) The local entity has awarded a density bonus to the Project that exceeds state density bonus criteria? | AJ10: 0
A11: (D) The proposed Project is a mixed-use development? | AJ11: 0
A12: (E) The Project Developer consolidated multiple small lots into a single parcel for the Project? | AJ12: 0
A13: Location in an area designated for infill or transit-oriented development and public and private investment §110(b) - 30 Points Max | AK13: =AK14+AK17 -> 0
A14: (1) Is the HD located in an area designated for transit-oriented development? If Yes, select supporting source for the designation below. - 15 points | AK14: =IF(AI14="Yes",15,0) -> 0
A16: File Name: | D16: TOD Designation | L16: Letter or resolution executed by an officer, or an equivalent representative, from the governing body confirming such consistency. | AF16: Uploaded to FAAST?
A17: (2) Where there is coordinated public and private investment in amounts sufficient to transform the area into a transit-oriented community, score is based on the amount of permanent development funding from sources other than Program, as a percentage of the requested amount of Program funds. - 15 points max | AK17: =IF(AL25*0.75>15,15,AL25*0.75) -> 0
A18: (A) Total non-HCD funding sources amount - HD and IP (Dev Sources, cell C50) | U18: ='Dev Sources'!C50 -> 0
A19: (B) Less: Deferred Developer Fee (Dev Sources) §110(b)(2)(B)
A20: (C) Less: Land donations where value not established by current appraisal §110(b)(2)(C) | Y20: Upload land appraisal if including a land in leverage calc
A21: (C) Less: Fee Waivers when not supported by written documentation §110(b)(2)(C) | Y21: Upload Agency letter if including Fee Waiver in leverage calc
A22: (E) Less: Expenditures five years preceding application due date §110(b)(2)(E)
A23: Total net non-HCD funding sources amount | U23: =+U18-SUM(U19:X22) -> 0
A24: Total HCD funding sources amount - HD and IP (Dev Sources, cells J34 + J35) | U24: ='Dev Sources'!J34+'Dev Sources'!J35 -> 0
A25: % of net non-HCD funding sources amount to HCD Program funding | U25: =IFERROR(U23/U24,0) -> 0 | Y25: % over 100% | AA25: =(MAX(0,U25-1)) -> 0 | AD25: Round down | AF25: =FLOOR(AA25,0.1) -> 0 | AI25: 10% increments | AL25: =AF25/0.1 -> 0
A26: File Name: | D26: Land Donation | L26: Applicants claiming Land Value in the development budget must submit original purchase contract or current appraised value supported by an independent third party appraisal prepared by a MAI-qualified appraiser within one year of the application deadline. | AF26: Uploaded to FAAST?
A27: File Name: | D27: Local Agency Fee Waiver | L27: Documentation from the Local Public Agency regarding Fee Waiver. | AF27: Uploaded to FAAST?
A28: Extent to which HD serves Eligible Households §110(c) - 30 Points Max | AK28: =IF(AK31+AK32+AK33+AK34>30,30,AK31+AK32+AK33+AK34) -> 0
A29: Applications will be scored based on the percentage of units in the HD limited to various income levels in accordance to the schedule in §110(c). - 30 points max
A30: Total HD Restricted Units (these units and the units below exclude HO units and units previously funded by other HCD funding). | AG30: ='Unit Mix and Loan Amount'!O31-SUMPRODUCT(('Unit Mix and Loan Amount'!$E$5:$E$30="HO 60% AMI")*('Unit Mix and Loan Amount'!$I$5:$I$30))-SUMPRODUCT(('Unit Mix and Loan Amount'!$E$5:$E$30="HO 120% AMI")*('Unit Mix and Loan Amount'!$I$5:$I$30))-SUMPRODUCT(('Unit Mix and Loan Amount'!Y5:Z30<>"")*('Unit Mix and Loan Amount'!$E$5:$E$30<>"HO 60% AMI")*('Unit Mix and Loan Amount'!$E$5:$E$30<>"HO 120% AMI")*('Unit Mix and Loan Amount'!$I$5:$I$30)) -> 0
A31: Units restricted at 45-50% AMI | I31: =SUMPRODUCT(('Unit Mix and Loan Amount'!$E$5:$E$30="45% AMI")*('Unit Mix and Loan Amount'!$Y$5:$Y$30="")*('Unit Mix and Loan Amount'!$I$5:$I$30))+SUMPRODUCT(('Unit Mix and Loan Amount'!$E$5:$E$30="50% AMI")*('Unit Mix and Loan Amount'!$Y$5:$Y$30="")*('Unit Mix and Loan Amount'!$I$5:$I$30)) -> 0 | K31: Percentage of 45-50% AMI units to Restricted Units | X31: =IFERROR(I31/$AG$30,0) -> 0 | AA31: Score Factor | AE31: 0.2 | AF31: 45-50% AMI Score | AK31: =(X31*100)*AE31 -> 0
A32: Units restricted at 35-40% AMI | I32: =SUMPRODUCT(('Unit Mix and Loan Amount'!$E$5:$E$30="35% AMI")*('Unit Mix and Loan Amount'!$Y$5:$Y$30="")*('Unit Mix and Loan Amount'!$I$5:$I$30))+SUMPRODUCT(('Unit Mix and Loan Amount'!$E$5:$E$30="40% AMI")*('Unit Mix and Loan Amount'!$Y$5:$Y$30="")*('Unit Mix and Loan Amount'!$I$5:$I$30)) -> 0 | K32: Percentage of 35-40% AMI units to Restricted Units | X32: =IFERROR(I32/$AG$30,0) -> 0 | AA32: Score Factor | AE32: 0.5 | AF32: 35-40% AMI Score | AK32: =(X32*100)*AE32 -> 0
A33: Units restricted at 25-30% AMI | I33: =SUMPRODUCT(('Unit Mix and Loan Amount'!$E$5:$E$30="25% AMI")*('Unit Mix and Loan Amount'!$Y$5:$Y$30="")*('Unit Mix and Loan Amount'!$I$5:$I$30))+SUMPRODUCT(('Unit Mix and Loan Amount'!$E$5:$E$30="30% AMI")*('Unit Mix and Loan Amount'!$Y$5:$Y$30="")*('Unit Mix and Loan Amount'!$I$5:$I$30)) -> 0 | K33: Percentage of 25-30% AMI units to Restricted Units | X33: =IFERROR(I33/$AG$30,0) -> 0 | AA33: Score Factor | AE33: 0.8 | AF33: 25-30% AMI Score | AK33: =(X33*100)*AE33 -> 0
A34: Units restricted at 15-20% AMI | I34: =SUMPRODUCT(('Unit Mix and Loan Amount'!$E$5:$E$30="15% AMI")*('Unit Mix and Loan Amount'!$Y$5:$Y$30="")*('Unit Mix and Loan Amount'!$I$5:$I$30))+SUMPRODUCT(('Unit Mix and Loan Amount'!$E$5:$E$30="20% AMI")*('Unit Mix and Loan Amount'!$Y$5:$Y$30="")*('Unit Mix and Loan Amount'!$I$5:$I$30)) -> 0 | K34: Percentage of 15-20% AMI units to Restricted Units | X34: =IFERROR(I34/$AG$30,0) -> 0 | AA34: Score Factor | AE34: 1.1 | AF34: 15-20% AMI Score | AK34: =(X34*100)*AE34 -> 0
A35: Transit-supportive land use §110(d) - 20 Points Max | AK35: =IF(AK38+AK39>20,20,AK38+AK39) -> 0
A36: Points will be awarded based on the existing and planned land uses in the HD Project areas described in §103(a)(2)
A37: (1) Pedestrian connectivity - 10 points max | K37: Enter Project address or center most point if no address exists on US EPA Walkability Index to determine Walkability.
A38: Project address/corridor | AA38: Walkability Index | AK38: =IF(AE38="Most Walkable",10,IF(AE38="Above Average Walkable",7,IF(AE38="Below Average Walkable",4,0))) -> 0
A39: (2) HD Location to Key Destinations - 2 pts each; 10 pts max (for each item below, answer as to if the Key Destinations are within 1/2 mile of the HD) | AK39: =AD42*2 -> 0
A40: Bank or Post Office | L40: Grocery store-meets CalFresh requirements: | V40: Licensed child care facility | AD40: Med clinic accepts Medi-Cal
A41: Office Park | L41: Park-accessible to general public | V41: Pharmacy | AD41: Place of Worship
A42: Public elementary, middle or high school | L42: Public Library | V42: University or junior college | AD42: =MIN(5,(COUNTIF(J40,"Yes")+(COUNTIF(J41,"Yes")+(COUNTIF(J42,"Yes")+(COUNTIF(T40,"Yes")+(COUNTIF(T41,"Yes")+(COUNTIF(T42,"Yes")+(COUNTIF(AB40,"Yes")+(COUNTIF(AB41,"Yes")+(COUNTIF(AB42,"Yes")+(COUNTIF(AK40,"Yes")+(COUNTIF(AK41,"Yes"))))))))))))) -> 0
A43: File Name: | D43: Key Destinations | L43: Scaled map showing Key Destinations. | AF43: Uploaded to FAAST?
A44: Extent to which Project incorporates walkable corridor and bicycle features §110(e) - 50 Points Max | AK44: =IF(AI46+AI47+AH48+AI49+AI50>50,50,AI46+AI47+AH48+AI49+AI50) -> 0
A45: Points will be awarded based on the extent to which the application demonstrates the following features exist, or will exist upon completion of the Project, in the primary walkable corridor between the HD and the Qualifying Transit Station. The primary walkable corridor is the route most likely to be taken by pedestrians traveling directly between the RHD and the Transit Station. - 10 points for each feature.
A46: (1) The corridor is fully served by a continuous, ADA-compliant path? | AI46: =IF(OR(AJ46="Exists",AJ46="Will exist"),10,0) -> 0
A47: (2) The corridor is safe and accessible with interventions and features such as implementing necessary repairs and/or replacements, providing pedestrian-scale night lighting, providing shade, improving sight distance and visibility, removing any barriers to pedestrians that may have existed along the corridor, providing signage and/or wayfinding markers, etc.? | AI47: =IF(OR(AJ47="Exists",AJ47="Will exist"),10,0) -> 0
A48: (3) The proposed corridor improvements are closing any existing gaps in walkability? If no demonstrable gaps currently exist, full points awarded. | AH48: =IF(OR(AI48="No gaps exist",AI48="Will close gaps"),10,0) -> 0
A49: (4) The Qualifying Transit Station has waiting facilities, seating, lighting, and overhead shelter from outdoor elements? | AI49: 0
A50: (5) The Qualifying Transit Station has bicycle access and provides secure bicycle storage facilities, the HD has no less than one Secure Overnight Bicycle Parking spot for every two residential units that is not publicly accessible and is completely enclosed, and the transit service allows bicycle conveyance on-board? | AI50: 0
A51: Parking Alternatives and Micromobility §110(f) - 40 Points Max | AK51: =SUM(AK53:AL57) -> 0
A52: Points will be awarded based on the extent to which the pricing, supply, and management of motor vehicle parking serving the HD promotes economic efficiency and minimizes the development of new parking spaces.
A53: (1) The HD will provide to residents free transit passes or discounted passes priced at no more than half of retail cost for how long? (the pass must have a minimum value of 40 average commute length rides a month as determined by the transit agency) - 15 points max | AK53: =IF(AG53="At least 3 years",10,IF(AG53="More than 4 years",15,0)) -> 0
A54: (2) The HD will provide shared parking between different uses that serves housing residents at night and retail customers by day? - 5 points | AK54: =IF(AI54="Yes",5,0) -> 0
A55: (3) The HD will restrict dedicated parking spaces to carshare/car-sharing parking (e.g., Zipcar or Getaround)? - 5 points | AK55: =IF(AI55="Yes",5,0) -> 0
A56: (4) The HD (notwithstanding (3) above) will provide how many parking spaces? - 10 points max | AK56: =IF(X56="Zero",10,IF(X56="No More than the minimum required by the jurisdiction",5,0)) -> 0
A57: (5) The Project will include capacity for Micromobility services (e.g., Lyme, Jump, Razor, etc.) on-site that will be accessible to the public, and not solely for residents of the HD? - 5 points | AK57: =IF(AI57="Yes",5,0) -> 0
A58: Readiness of the Housing Development §110(g) - 30 Points Max | AK58: =AK59+AK61+AK66 -> 0
A59: (1) Points will be awarded based on the level of secured Enforceable Funding Commitments (EFCs) §102(p) for permanent financing of the HD excluding funding provided by another HCD Program. - 10 points max | Z59: Total HD funding amount from other HCD Programs | AK59: =IF(AJ60>=0.9,10,IF(AJ60>=0.75,5,0)) -> 0
A60: Project's Total Development Costs (TDC) for HD less deferred costs | K60: ='Dev Budget'!R123-'Dev Budget'!P123 -> 0 | O60: Non-TOD HD EFCs less HD funding from other HCD Programs | Z60: =(SUMPRODUCT(('Dev Sources'!B36:B49="Yes")*('Dev Sources'!C36:C49="HD")*('Dev Sources'!J36:J49)))-AG59 -> 0 | AD60: Non-TOD EFCs as a % of TDC: | AJ60: =IFERROR(Z60/K60,0) -> 0
A61: (2) For the Project, we have completion and approval or adoption of all necessary environmental clearances including those required under the CEQA and if applicable, NEPA, and all applicable time periods for filing appeals or lawsuits have lapsed? - 10 points | AK61: =IF(AI61="Yes",10,0) -> 0
A62: NEPA: | C62: Is Federal funding proposed that will trigger NEPA? Describe special circumstances. | X62: If Yes, enter date of "Authority to Use Grant Funds"
A64: CEQA: | C64: Project approved "by-right"? | J64: Is Project Categorically Exempt? | R64: Negative Declaration Date: | Z64: Final EIR Date: | AF64: Describe special circumstances below:
A66: (3) For the Project, answer "Yes" as applicable to the following levels of securing necessary entitlements from the local jurisdiction that will be achieved by the application deadline. - 10 points max | AK66: =IF(AK67="Yes",10,IF(OR(AK68="Yes",AK69="Yes",AK70="Yes"),5,0)) -> 0
A67: (A) All necessary local land use approvals, including by-right approval, excluding design review, have been granted for the Project, as determined by a local land use authority (e.g., planning or community development director or zoning administrator)? - 10 points
A68: (B) The Project is eligible to receive all necessary local land use approvals pursuant to a nondiscretionary local approval process and has submitted all applications for such necessary approvals? - 5 points
A69: (C) The Project is consistent with all relevant local planning documents and zoning ordinances, and applications for all necessary discretionary local land use approvals, excluding design review, have been submitted, accepted, and deemed complete by the appropriate local agencies? - 5 points
A70: (D) Local design review approval has been obtained, or is not required? - 5 points
A71: Provide a listing and status of all discretionary local land use approvals, excluding design review, required to complete the Project that have been granted, submitted or to be applied for to the appropriate local agencies, or consistent with local planning documents. This information must match the information provided on the Verification of the Status of Environmental Review and Land Use Entitlements worksheet.
A72: Agency / Issuer | M72: Land Use Approval Date | S72: Approval Type | Z72: Type and Comments
Z73: Site Plan Review
Z74: Conditional Use Permits
Z75: Zoning Approval
A79: Adopted Economic Development Plan §110(h) - 10 Points Max | AK79: =IF(AND(AK80="Yes",AK81="Yes"),10,IF(AK80="Yes",5,IF(AK81="Yes",5,0))) -> 0
A80: (1) Is Project located in a jurisdiction that has adopted either a general plan Economic Development Element or an economic development strategy? - 5 points
A81: (2) Is Project located in one of the following state or federally designated areas?: Opportunity Zone, an eligible New Markets Tax Credit (NMTC) census tract, a Neighborhood Revitalization Strategy Area (NRSA), or an authorized Business Improvement District pursuant to the Property and Business Improvement District Law of 1994 (Streets & Highways Code, §36600 et seq.) - 5 points
A83: Accessibility to Qualified Employment Areas §110(i) - 30 Points Max | AK83: =IF(AJ85>20000,30,IF(AJ85>=10000,20,IF(AJ85>=1000,10,0))) -> 0
A84: Points will be awarded based on the number of employees determined to be in a Qualified Employment Area (as determined by utilizing the instructions provided for the mapping and reporting data accessible through the link to the right) that is within a half-mile radius of a Destination Transit Station which is located no more than 30 minutes from the Qualifying Transit Station that serves the HD via public transit and involves no more than one transfer point. - 30 points max | AD84: http://onthemap.ces.census.gov/
A85: Qualifying Employment Area (QEA) - selection area: | AD85: # of employees in QEA?
A86: Tie Breaker §108(a); NOFA
A87: In the event two or more applications have the same rating and ranking scores, HCD will apply tie breaking criteria outlined in the NOFA.
A88: (1) Weighted average affordability of Restricted Units per MHP Guidelines §7320(b)(7). | U88: Affordability | X88: ='Unit Mix and Loan Amount'!AM31 -> 0 | Z88: Rental Restricted Units excluding Mgr | AI88: ='Unit Mix and Loan Amount'!AN31 -> 0 | AK88: =IFERROR(X88/AI88,0) -> 0
A89: (2) Total amount of HCD Project assistance to total costs of the Project. | Q89: TOD Project Funding | W89: ='Dev Budget'!B220+'Dev Budget'!C220 -> 0 | AA89: Total Project Costs | AG89: ='Dev Budget'!R220 -> 0 | AK89: =IFERROR(W89/AG89,0) -> 0

Sheet Sponsor Org Docs
A1: Sponsor Organizational Documents | AJ1: ='TOD Coverpage'!B43 -> 2020-05-29
A2: Resolutions***
A3: 1. Entity Name (identity of the contracting party or borrower) and Entity Type (corporation, non-profit, for-profit, LLC, etc.).
A4: 2. Name & Title of Signatory(ies)**** NOTE: Name and title of authorized signatory(ies) is preferred. In instances pertaining to municipalities/jurisdictions/transit agencies (when title is acceptable), supporting documentation evidencing the individual who currently holds the position must be provided.
A5: 3. NOFA Date.
A6: 4. Language authorizing Signatory(ies) to sign Standard Agreement.
A7: 5. Amendment Provision included.
A8: 6. Aggregate dollar amount (should be equal to or greater than the requested/award amount), Loan Amount, and each to be listed individually.
A9: 7. Person attesting validity of resolution (must be someone other than person authorized to sign Standard Agreement).
A10: 8. The meeting date authorizing resolution.
A11: 9. All votes taken at meeting authorizing resolution (ayes, no's, absent, vacant).
A12: 10. Project name as it appears on the HCD application.
A13: * The General Partner and Limited Partner who are members of the Limited Partnership will also need to submit applicable organizational documents based on the type of entity they are.
A14: ** Organizational documents for the manager of the LLC if an entity other than an individual.
A15: *** These are minimum requirements for a resolution. Updates can be requested once a review is completed.
A16: **** Ensure when identifying the Signatory(ies), if more than one is listed, that "and" or "or" is defined for individuals required to sign.
A17: Organizational Documents
A18: The following is intended as a brief summary of legal documents commonly required to verify the legal authority of the private entity or entities applying to HCD for an award of funds. The following does not apply to public applicants. Additionally, the documents required to apply for funds are legally distinct from those required to enter into a contract for award. The lists below only address documentation necessary for the application phase of the award process. If your application is successful, then additional corporate formation and authorization documentation will be required.
A19: The resolution templates below are intended to be samples. Applicants may use their own format as long as it contains ALL of the authorizations contained in the template. ▪ The person attesting to the signing of the resolution cannot be the same person authorized to execute the documents in the name of the applicant. ▪ If more than one authorized signatory is identified in the resolution, specifically state whether both signatories are required (i.e. x and y) or only one signatory (i.e. x or y) is required to submit and execute the SHMHP Program documents. ▪ If the application is being signed by a designee of the authorized signatory, the applicant must also submit a designee letter or other proof of signing authority.
A20: The Sponsor shall submit an organizational chart depicting the entity structure control of the Project.
A21: Articles of Incorporation (Corp. Code §154, 200 and 202) as certified by the CA Secretary of State. Bylaws and any amendments thereto (Corp. Code §207(b), 211 and 212) Certificate of Amendment of Articles of Incorporation (Corp. Code §900-910 (general stock), §5810-5820 (public benefit and religious corporations), §7810-7820 (mutual benefit corporations), or §12500-12510 (general cooperative corporations)) as applicable. Restated Articles of Incorporation (Corp. Code §901, 906, 910 (general stock), §5811, 5815, 5819 (public benefit and religious corporations), §7811, 7815 and 7819 (mutual benefit corporations) and §12501, 12506 and 12510 (general cooperative corporations)) as applicable. Statement of Information (CA Secretary of State form SI-100 or SI-200) Shareholder Agreements (Corp. Code §186) if applicable. Certificate of Good Standing certified by Secretary of State.
A22: Any other CA Secretary of State filings applicable to revivals, conversions or mergers.
A23: Articles of Organization (CA Secretary of State form LLC-1) Certificate of Amendment (CA Secretary of State form LLC-2) if applicable. Restated Articles of Organization (CA Secretary of State form LLC-10) if applicable. Certificate of Correction (CA Secretary of State form LLC-11) if applicable. Statement of Information (CA Secretary of State form LLC-12 or LLC-12NC) Operating Agreement (Corp. Code §17707.02(s) and 17701.10.) Certificate of Good Standing certified by Secretary of State. Certificate of Good Standing must be dated 30 days or less from the application due date.
A24: Any other CA Secretary of State filings applicable to revivals, conversions or mergers.
A25: Although potentially eligible to apply as the Sponsor, limited partnerships very rarely qualify to be a Sponsor because they lack sufficient historical development experience. Instead, limited partnerships that are Sponsor-controlled-subsidiaries may be named as the actual borrower in the SHMHP loan documents if the UMR "Sponsor" subsidiary control requirements are met. The following documents are necessary to establish whether the UMR subsidiary control requirements are met. Certificate of Limited Partnership (CA Secretary of State form LP-1) Amendment to Certificate of Limited Partnership (CA Secretary of State form LP-2) if applicable. Certificate of Correction (CA Secretary of State form LP-2) if applicable. Limited Partnership Agreement (CA Corp. Code §15901.02(x) and 15901.10) Certificate of Good Standing certified by Secretary of State.
A26: Any other CA Secretary of State filings applicable to revivals, conversions or mergers.
A27: Specific Authorizations- in addition to the general corporate authority established by the foregoing documentation, HCD also needs to verify that each applicant has sufficient specific corporate authority to apply for a TOD award under this NOFA. Usually this is done by the Sponsor providing a valid (as determined by the California Corporations Code) resolution establishing the following: (1) that the Sponsor entity has specific authority to apply for a specific amount of funds under this NOFA for the purposes of providing a restricted affordable housing development; (2) the resolution must indicate by both name and position who has authority to sign documents on behalf of the Sponsor; and (3) The resolution must indicate that the Sponsor is authorized and willing to execute any and all documents necessary to effectuate the award and its purposes. The foregoing is a brief paraphrase of the required language and it should not be used in your documentation. Please consult legal counsel to ensure sufficiency of your entity’s resolutions. One or more of the above sample resolutions may be used if appropriate to your particular corporate structure.

Sheet Application Support
A1: Application Development Team (ADT) Support Form
A2: Please complete the "yellow" cells in the form below and email a copy to: AppSupport@hcd.ca.gov. A member of the Application Development Team will respond to your request within ASAP.
A3: Full Name: | W3: Date Requested: | AE3: Application Version Date:
A4: Organization: | P4: Email: | AC4: Contact Phone:
A5: Justification:
A6: Issue # | C6: Program Name & Round | F6: Tab | J6: Section | P6: Cell# | R6: Update/Comment | AD6: Urgency | AG6: ADT Status | AJ6: Status Date | AM6: Requestor | AN6: Email | AO6: Phone | AP6: App Version
A7: 1 | AM7: =IF(C7="","",$D$3) ->  | AN7: =IF(C7="","",$R$4) ->  | AO7: =IF(C7="","",$AG$4) ->  | AP7: =IF(C7="","",$AI$3) -> 
A8: 2 | AO8: =IF(C8="","",$AG$4) ->  | AP8: =IF(C8="","",$AI$3) -> 
A9: 3 | AO9: =IF(C9="","",$AG$4) ->  | AP9: =IF(C9="","",$AI$3) -> 
A10: 4 | AO10: =IF(C10="","",$AG$4) ->  | AP10: =IF(C10="","",$AI$3) -> 
A11: 5 | AO11: =IF(C11="","",$AG$4) ->  | AP11: =IF(C11="","",$AI$3) -> 
A12: 6
A13: 7
A14: 8
A15: 9
A16: 10
A17: 11
A18: 12
A19: 13
A20: 14
A21: 15
A22: 16
A23: 17
A24: 18
A25: 19
A26: 20
A27: 21
A28: 22
A29: 23
A30: 24
A31: 25

Sheet Upload Checklist
A1: TOD Round 4 Document Upload Checklist
A2: Overview TAB
A3: Applicant | R3: FAAST File | Z3: Submitted | AC3: Comments
A4: Applicant Documents (submit documentation for each as App1 or App2)
A5: Certification & Legal Disclosure (wet signature required) | R5: App1 Cert & Legal Disclosure
A6: Resolution | R6: App1 Resolution
A7: Organizational Documents | R7: App1 OrgDoc1, OrgDoc2, etc.
A8: Organizational Chart | R8: App1 OrgChart
A9: Signature Block - upload in Microsoft Word Document. | R9: App1 Signature Block
A10: Payee Data Record (STD 204) (wet signature required) | R10: App1 STD 204 Payee Data Record
A11: Taxpayer ID Number (TIN) (Public Entities Only) (wet signature required) | R11: App1 FISCAL TIN Form
A12: Certificate of Good Standing must be dated 30 days or less from the application due date. | R12: App1 Cert of Good Standing
A13: Evidence of tax-exempt status from IRS and evidence of tax-exempt status from FTB for Corporations. | R13: App1 Tax-Exempt Status
A14: Certification & Legal Disclosure (wet signature required) | R14: App2 Cert & Legal Disclosure
A15: Resolution | R15: App2 Resolution
A16: Organizational Documents | R16: App2 OrgDoc1, OrgDoc2, etc.
A17: Organizational Chart | R17: App2 OrgChart
A18: Signature Block - upload in Microsoft Word Document. | R18: App2 Signature Block
A19: Payee Data Record (STD 204) (wet signature required) | R19: App2 STD 204 Payee Data Record
A20: Taxpayer ID Number (TIN) (Public Entities Only) (wet signature required) | R20: App2 FISCAL TIN Form
A21: Certificate of Good Standing must be dated 30 days or less from the application due date. | R21: App2 Cert of Good Standing
A22: Tax Exempt Status | R22: App2 Tax-Exempt Status
A23: Development Team Contacts | R23: FAAST File | Z23: Submitted | AC23: Comments
A24: Owner/Borrower Entity
A25: Certification & Legal Disclosure (wet signature required) | R25: Bwr Cert & Legal Disclosure
A26: Resolution | R26: Bwr Resolution
A27: Organizational Documents | R27: Bwr OrgDoc1, OrgDoc2, etc.
A28: Organizational Chart | R28: Bwr OrgChart
A29: Signature Block - upload in Microsoft Word Document. | R29: Bwr Signature Block
A30: Payee Data Record (STD 204) (wet signature required) | R30: Bwr STD 204 Payee Data Record
A31: Taxpayer ID Number (TIN) (Public Entities Only) (wet signature required) | R31: Bwr FISCAL TIN Form
A32: Tax Exempt Status | R32: Bwr Tax-Exempt Status
A33: Managing General Partner
A34: Certification & Legal Disclosure (wet signature required) | R34: MGP Cert & Legal Disclosure
A35: Resolution | R35: MGP Resolution
A36: Organizational Documents | R36: MGP OrgDoc1, OrgDoc2, etc.
A37: Organizational Chart | R37: MGP OrgChart
A38: Signature Block - upload in Microsoft Word Document. | R38: MGP Signature Block
A39: Payee Data Record (STD 204) (wet signature required) | R39: MGP STD 204 Payee Data Record
A40: Tax Exempt Status | R40: MGP Tax-Exempt Status
A41: Administrative General Partner #1
A42: Certification & Legal Disclosure (wet signature required) | R42: AGP1 Cert & Legal Disclosure
A43: Resolution | R43: AGP1 Resolution
A44: Organizational Documents | R44: AGP1 OrgDoc1, OrgDoc2, etc.
A45: Organizational Chart | R45: AGP1 OrgChart
A46: Signature Block - upload in Microsoft Word Document. | R46: AGP1 Signature Block
A47: Payee Data Record (STD 204) (wet signature required) | R47: AGP1 STD 204 Payee Data Record
A48: Tax Exempt Status | R48: AGP1 Tax-Exempt Status
A49: Administrative General Partner #2
A50: Certification & Legal Disclosure (wet signature required) | R50: AGP2 Cert & Legal Disclosure
A51: Resolution | R51: AGP2 Resolution
A52: Organizational Documents | R52: AGP2 OrgDoc2, OrgDoc2, etc.
A53: Organizational Chart | R53: AGP2 OrgChart
A54: Signature Block - upload in Microsoft Word Document. | R54: AGP2 Signature Block
A55: Payee Data Record (STD 204) (wet signature required) | R55: AGP2 STD 204 Payee Data Record
A56: Tax Exempt Status | R56: AGP2 Tax-Exempt Status
A57: HD Eligibility and Threshold TAB
A58: Description | R58: FAAST File | Z58: Submitted | AC58: Comments
A59: Narrative of current condition of structure(s) and description of overall scope of work. Include a discussion of any proposed modification to unit configurations, unit mix, need for seismic retrofit, or modifications in use (e.g., commercial/tourist hotel to SRO). | R59: Rehab or Conversion Description
A60: PNA or CNA by qualified independent third party contractor. | R60: CNA
A61: Completed market study prepared within one year of the application due date. | R61: Market Study
A62: Environmental Report 1 | R62: Env Report 1
A63: Environmental Report 2 | R63: Env Report 2
A64: Environmental Report 3 | R64: Env Report 3
A65: Environmental Report 4 | R65: Env Report 4
A66: Environmental Report 5 | R66: Env Report 5
A67: Documentation demonstrating HD Site Control | R67: HD Site Control
A68: Certificates of Occupancy for recently completed HD | R68: Exp HD1
A69: Certificates of Occupancy for recently completed HD | R69: Exp HD2
A70: If the Sponsor includes an Article XXXIV legal opinion, provide a copy of legal opinion. | R70: Article XXXIV Legal Opinion
A71: If the Locality has sufficient Article XXXIV authority, provide documentation per NOFA. | R71: Article XXXIV Authority
A72: Project-specific legal opinion with supporting materials describing how Project complies. | R72: Fair Housing Legal Opinion
A73: If HD has already received a tax credit reservation, attach documentation. | R73: Tax Credit Reservation
A74: IP Eligibility and Threshold TAB
A75: Description | R75: FAAST File | Z75: Submitted | AC75: Comments
A76: Documentation demonstrating IP Site Control | R76: IP Site Control
A77: Statement indicating IP is consistent with all applicable local rules, regulations, codes, policies and plans enforced or implemented by the approving department. | R77: IP Local Govt Letter
A78: Dev Sources TAB
A79: Description | R79: FAAST File | Z79: Submitted | AC79: Comments
A80: HD Enforceable Funding Commitments. | R80: EFC HD1; EFC HD2; EFC HD3; etc.
A81: IP Enforceable Funding Commitments. | R81: EFC IP1; EFC IP2; EFC IP3; etc.
A82: Env & Land Use Verification TAB
A83: Description | R83: FAAST File | Z83: Submitted | AC83: Comments
A84: For National Environmental Policy Act (NEPA) only, provide a copy of the HUD 7015.16 "Authority To Use Grant Funds" or clarify current status of the issuance of HUD form. | R84: Auth to Use Grant Funds
A85: Provide a copy of all environmental clearances or Notice of Exemption. | R85: Environmental
A86: Application Selection - Scoring TAB
A87: Description | R87: FAAST File | Z87: Submitted | AC87: Comments
A88: Letter or resolution executed by an officer, or an equivalent representative, from the governing body confirming such consistency. | R88: TOD Designation
A89: Applicants claiming Land Value in the development budget must submit original purchase contract or current appraised value supported by an independent third party appraisal prepared by a MAI-qualified appraiser within one year of the application deadline. | R89: Land Donation
A90: Documentation from the Local Public Agency regarding Fee Waiver. | R90: Local Agency Fee Waiver
A91: Scaled map showing Key Destinations. | R91: Key Destinations
